Workbook

Sheet Overview
M3: =V.COPYRIGHT -> ©EIOPA, 2026.
F6: RFR Extrapolation & Volatility Adjustment Tool
F8: This workbook demonstrates the extrapolation of the risk-free interest rate term structures and the calculation of the volatility adjustment. It supports the RFR technical documentation sections 8-10 and annex D. The workbook is based on the amendments to the Solvency II provisions set out in Directive (EU) 2025/2 and Commission Delegated Regulation (EU) 2026/269.
F20: Version | H20: Last Change | K20: Legend
F21: 1 | H21: 2026-05-19 | K21: Input data
K22: Intermediary calculation
K23: Output data
K24: Parameter not applicable
F26: Abbreviations
F28: AC | G28: annually compounded | J28: LLFR | K28: last liquid forward rate
F29: BEL | G29: best estimate liabilities | J29: LLP | K29: last liquid point
F30: CC | G30: continuously compounded | J30: MV | K30: market value
F31: CRA | G31: credit risk adjustment | J31: PVBP | K31: price value of a basis point
F32: CSSR | G32: credit spread sensitivity ratio | J32: RCS | K32: risk-corrected spread
F33: DLT | G33: deep, liquid and transparent | J33: RFR | K33: risk-free rate
F34: FSP | G34: first smoothing point | J34: SWP | K34: interest rate swap
F35: FWD | G35: forward rate | J35: UFR | K35: ultimate forward rate
F36: GVT | G36: government bond | J36: USA | K36: undertaking-specific adjustment
F37: IRR | G37: interest rate risk | J37: VA | K37: volatility adjustment
F39: Usage Guide
F41: This tool is structured into three sections: 1. The worksheet titled 'Input Data & Extrapolation' manages VA-relevant input data and the extrapolation of the basic risk-free interest rate term structure. 2. The worksheet named 'CSSR Calculation' addresses the computation of the credit spread sensitivity ratio, including its underlying components, along with the necessary risk-free interest rate term structure. 3. The worksheet called 'VA Term Structures' extrapolates the final risk-free interest rate term structure, incorporating the volatility adjustment.
F43: Input Data & Extrapolation
F45: For the inter- and extrapolation of the basic risk-free interest rate term structure, it is necessary to input the fundamental parameters at the top of the worksheet. These parameters include: 1. Extrapolation?: To extrapolate the basic risk-free interest rate term structure based on market data, set the option to "TRUE." Otherwise, set the option to "FALSE" to use an already extrapolated term structure. In that case the other parameters can be ignored. 2. Instrument Type: Indicate either interest rate swaps ('SWP') or zero-coupon government bonds ('GVT'). 3. Coupon Frequency: Specify the frequency of the coupon payments for swaps, if applicable. 4. FSP: Enter the first smoothing point of the term structure. 5. UFR: Provide the ultimate forward rate for the extrapolation. 6. Convergence: Input the convergence (alpha) parameter. 7. CRA: Specify the credit risk adjustment in basis points. It is essential that all required fields are accurately completed to ensure the correct extrapolation of the term structure.
F48: If the "Extrapolation?" parameter is set to the option "TRUE", then, the deep, liquid and transparent (DLT) points of the term structure must be identified in the "DLT" column by entering a "1" for DLT points and a "0" for non-DLT points. In the "LLFR Weight" column, input weights for the last liquid forward rate (LLFR) that sum to 1. For instance, if there is one DLT point after the first smoothing point (FSP), a weight has to be entered for the FSP and this point. Lastly, the market interest rates should be entered in the "Input Rate" column. The annually discretly compounded extrapolated curve is displayed in the "Extrapolated Zero Rate AC" column.
F49: Above the "LLFR Weight" column is an indicator that shows whether the LLFR weights are summing up to 1. If the "ERROR" message appears, the weights must be corrected.
F51: If the "Extrapolation?" parameter is set to the option "FALSE", then the correct DLT, LLFR weight, UFR, convergence, and LLFR parameters still have to be entered, but the basic risk-free rate term structure has to be put in the column 'Input RFR". Note: the correct DLT, LLFR weight, UFR, convergence, and LLFR parameters are the ones which were used for the construction of the basic risk-free rate term structure in this case.
F54: The calculation of the volatility adjustment relies on three key input parameters located at the top right of the worksheet. It is necessary to input the risk-corrected spreads at both the currency and country levels (only relevant for the euro) in this section. These values are utilised within the "CSSR Calculation" and "VA Term Structures" worksheets.
F56: Credit Spread Sensitivity Calculation
F58: To calculate the credit spread sensitivity, utilise the term structure provided in the "CSSR Curve" column. This term structure is essential for determining the price value of basis points for both assets and best estimate liabilities.
F61: In the section titled "Sensitivity Ratio" at the top right of the worksheet, enter the market values of assets and best estimate liabilities for both the base case and the calculation using the CSSR curve. This section will automatically calculate the price value of a basis point (PVBP) and the credit spread sensitivity ratio (CSSR), which can be reviewed in the same area.
F64: Voltatility Adjustment Term Structures
F67: Finally, the term structure with the volatility adjustment can be calculated in the "VA Term Structures" worksheet. Up to three parameters need to be configured: 1. Macro VA?: To calculate the volatility adjustment for a eurozone country, set the "Macro VA?" option to "TRUE." For other calculations, set it to "FALSE." 2. USA?: If an undertaking-specific adjustment is to be included in the VA calculation, set the "USA?" option to "TRUE." Otherwise, set it to "FALSE." 3. USA: If the "USA?" option is set to "TRUE," enter the specific adjustment value in the "USA" parameter field. Ensure these parameters are correctly configured to accurately calculate the term structure with volatility adjustment.
F69: Once the parameters are configured, the risk-free interest rate term structure with volatility adjustment can be found in the "VA curve" column. This curve can then be used in the calculation of the technical provisions.
F70: Interest Rate Risk
F72: The "IRR Up Shock" and "IRR Down Shock" worksheets demonstrate the computation of the interest rate risk shocked term structures without and with volatility adjustment. No data has to be entered in both worksheets, as all data from the worksheet "Input Data & Extrapolation" as well as the total VA from the "VA Term Structures" worksheet is used. Care has to be taken that market data and not RFR term structures are entered in the "Input Data & Extrapolation" worksheet as this is required for the LLFR calculation.
F73: Implementation Details
F75: Named ranges have been employed throughout the formulas to enhance the transparency of the calculations. The naming convention used is as follows: - Prefix with "R" for ranges - Prefix with "V" for (scalar) values - Prefix with "L" for validation lists The calculation of the bootstrapped curve, the last liquid forward rates as well as the extrapolation of the curve itself are implemented using VBA. To access the VBA code, navigate to the "Developer" tab or use the shortcut ALT + F11. All functions are organised in the module named "mExtrapolation".

Sheet Input Data & Extrapolation
M3: =V.COPYRIGHT -> ©EIOPA, 2026.
F6: Input Data & Extrapolation
H8: Curve Parameters | L8: VA Parameters
G10: Extrapolation? | H10: TRUE | K10: Currency RCS | L10: 0.01
G11: Instrument Type | H11: SWP | K11: Country RCS | L11: 0.014
G12: Coupon Frequency | H12: 1 | K12: Debt to Total Assets | L12: 0.5
G13: FSP | H13: =_xlfn.XMATCH(TRUE, R.LLFR_WEIGHTS > 0, 0) -> 20
G14: UFR | H14: 0.033
G15: Convergence | H15: 0.11
G16: CRA | H16: 10
G17: Input LLFR | H17: 0.02571
F20: Basic Risk-Free Interest Rate Term Structure
H22: LLFR Weights Check | I22: =IF(V.EXTRAPOLATION_SELECTED, IF(SUM(R.LLFR_WEIGHTS) = 1, "OK", "ERROR"), "") -> OK | K22: LLFR | L22: =IF(V.EXTRAPOLATION_SELECTED, GetLLFR(R.BOOTSTRAPPED_CURVE,R.DLT,R.LLFR_WEIGHTS), V.INPUT_LLFR) -> 0.03224887128
G24: Maturity [Y] | H24: DLT | I24: LLFR Weight | J24: =IF(V.EXTRAPOLATION_SELECTED, "Input Rate", "Input RFR") -> Input Rate | K24: Bootstrapped Zero Rate CC | L24: =IF(V.EXTRAPOLATION_SELECTED, "Extrapolated Zero Rate AC / Basic RFR", "Basic RFR") -> Extrapolated Zero Rate AC / Basic RFR
G25: 1 | H25: 1 | I25: 0 | J25: 0.02176 | K25: =IF(V.EXTRAPOLATION_SELECTED, _xlfn.LET(_xlpm.LLP, MAX(_xlfn._xlws.FILTER(R.MATURITY,R.DLT=1)), BootstrapCurve(V.INSTRUMENT,R.BASECURVE,R.DLT,"A",V.CRA,V.COUPON_FREQ,_xlpm.LLP,"C", "Z")), "") -> 0.02054744789 | L25: =IF(V.EXTRAPOLATION_SELECTED, ROUND(Extrapolation(R.BOOTSTRAPPED_CURVE, "Z", V.FSP, V.UFR, V.LLFR, V.ALPHA, "A"), 5), R.BASECURVE) -> 0.02076
G26: 2 | H26: 1 | I26: 0 | J26: 0.022621 | K26: 0.02139970014 | L26: 0.02163
G27: 3 | H27: 1 | I27: 0 | J27: 0.023795 | K27: 0.02257190539 | L27: 0.02283
G28: 4 | H28: 1 | I28: 0 | J28: 0.0248 | K28: 0.02358264676 | L28: 0.02386
G29: 5 | H29: 1 | I29: 0 | J29: 0.02569 | K29: 0.02448535888 | L29: 0.02479
G30: 6 | H30: 1 | I30: 0 | J30: 0.02651 | K30: 0.02532526896 | L30: 0.02565
G31: 7 | H31: 1 | I31: 0 | J31: 0.02732 | K31: 0.02616507066 | L31: 0.02651
G32: 8 | H32: 1 | I32: 0 | J32: 0.028 | K32: 0.02687549936 | L32: 0.02724
G33: 9 | H33: 1 | I33: 0 | J33: 0.028631 | K33: 0.02754241073 | L33: 0.02793
G34: 10 | H34: 1 | I34: 0 | J34: 0.02927 | K34: 0.02822863212 | L34: 0.02863
G35: 11 | H35: 1 | I35: 0 | J35: 0.02979 | K35: 0.02878973818 | L35: 0.02921
G36: 12 | H36: 1 | I36: 0 | J36: 0.03027 | K36: 0.02931400114 | L36: 0.02975
G37: 13 | H37: 1 | I37: 0 | J37: 0.030779 | K37: 0.0298823394 | L37: 0.03033
G38: 14 | H38: 0 | I38: 0 | J38: 0.031124 | K38: 0.03026721911 | L38: 0.03073
G39: 15 | H39: 1 | I39: 0 | J39: 0.03143 | K39: 0.03060078153 | L39: 0.03107
G40: 16 | H40: 0 | I40: 0 | J40: 0.031742 | K40: 0.03084721908 | L40: 0.03133
G41: 17 | H41: 0 | I41: 0 | J41: 0.03196 | K41: 0.03106466397 | L41: 0.03155
G42: 18 | H42: 0 | I42: 0 | J42: 0.032131 | K42: 0.03125794832 | L42: 0.03175
G43: 19 | H43: 0 | I43: 0 | J43: 0.032272 | K43: 0.03143088695 | L43: 0.03193
G44: 20 | H44: 1 | I44: 0.33 | J44: 0.03233 | K44: 0.03158653171 | L44: 0.03209
G45: 21 | H45: 0 | I45: 0 | J45: 0.03246 | K45: 0.03160777807 | L45: 0.03212
G46: 22 | H46: 0 | I46: 0 | J46: 0.032511 | K46: 0.03162709294 | L46: 0.03215
G47: 23 | H47: 0 | I47: 0 | J47: 0.032542 | K47: 0.03164472826 | L47: 0.03218
G48: 24 | H48: 0 | I48: 0 | J48: 0.032551 | K48: 0.03166089397 | L48: 0.03221
G49: 25 | H49: 1 | I49: 0.12 | J49: 0.0325 | K49: 0.03167576642 | L49: 0.03224
G50: 26 | H50: 0 | I50: 0 | J50: 0.03254 | K50: 0.03162614676 | L50: 0.03226
G51: 27 | H51: 0 | I51: 0 | J51: 0.032528 | K51: 0.03158020264 | L51: 0.03229
G52: 28 | H52: 0 | I52: 0 | J52: 0.03251 | K52: 0.03153754024 | L52: 0.03231
G53: 29 | H53: 0 | I53: 0 | J53: 0.03249 | K53: 0.03149782007 | L53: 0.03233
G54: 30 | H54: 1 | I54: 0.48 | J54: 0.032431 | K54: 0.03146074792 | L54: 0.03235
G55: 31 | H55: 0 | I55: 0 | J55: =NA() ->  | K55: 0.03136492582 | L55: 0.03237
G56: 32 | H56: 0 | I56: 0 | J56: =NA() ->  | K56: 0.0312750926 | L56: 0.03238
G57: 33 | H57: 0 | I57: 0 | J57: =NA() ->  | K57: 0.03119070383 | L57: 0.0324
G58: 34 | H58: 0 | I58: 0 | J58: =NA() ->  | K58: 0.03111127909 | L58: 0.03242
G59: 35 | H59: 0 | I59: 0 | J59: =NA() ->  | K59: 0.03103639292 | L59: 0.03243
G60: 36 | H60: 0 | I60: 0 | J60: =NA() ->  | K60: 0.03096566708 | L60: 0.03245
G61: 37 | H61: 0 | I61: 0 | J61: =NA() ->  | K61: 0.03089876427 | L61: 0.03246
G62: 38 | H62: 0 | I62: 0 | J62: =NA() ->  | K62: 0.03083538265 | L62: 0.03247
G63: 39 | H63: 0 | I63: 0 | J63: =NA() ->  | K63: 0.03077525138 | L63: 0.03249
G64: 40 | H64: 1 | I64: 0.04 | J64: 0.03206 | K64: 0.03071812667 | L64: 0.0325
G65: 41 | H65: 0 | I65: 0 | J65: =NA() ->  | K65: 0.03053990077 | L65: 0.03251
G66: 42 | H66: 0 | I66: 0 | J66: =NA() ->  | K66: 0.03037016183 | L66: 0.03252
G67: 43 | H67: 0 | I67: 0 | J67: =NA() ->  | K67: 0.03020831772 | L67: 0.03253
G68: 44 | H68: 0 | I68: 0 | J68: =NA() ->  | K68: 0.03005383016 | L68: 0.03254
G69: 45 | H69: 0 | I69: 0 | J69: =NA() ->  | K69: 0.02990620871 | L69: 0.03255
G70: 46 | H70: 0 | I70: 0 | J70: =NA() ->  | K70: 0.02976500559 | L70: 0.03256
G71: 47 | H71: 0 | I71: 0 | J71: =NA() ->  | K71: 0.02962981111 | L71: 0.03257
G72: 48 | H72: 0 | I72: 0 | J72: =NA() ->  | K72: 0.02950024974 | L72: 0.03258
G73: 49 | H73: 0 | I73: 0 | J73: =NA() ->  | K73: 0.02937597658 | L73: 0.03259
G74: 50 | H74: 1 | I74: 0.03 | J74: 0.03131 | K74: 0.02925667435 | L74: 0.0326
G75: 51 | H75: 0 | I75: 0 | J75: =NA() ->  | L75: 0.0326
G76: 52 | H76: 0 | I76: 0 | J76: =NA() ->  | L76: 0.03261
G77: 53 | H77: 0 | I77: 0 | J77: =NA() ->  | L77: 0.03262
G78: 54 | H78: 0 | I78: 0 | J78: =NA() ->  | L78: 0.03263
G79: 55 | H79: 0 | I79: 0 | J79: =NA() ->  | L79: 0.03263
G80: 56 | H80: 0 | I80: 0 | J80: =NA() ->  | L80: 0.03264
G81: 57 | H81: 0 | I81: 0 | J81: =NA() ->  | L81: 0.03265
G82: 58 | H82: 0 | I82: 0 | J82: =NA() ->  | L82: 0.03265
G83: 59 | H83: 0 | I83: 0 | J83: =NA() ->  | L83: 0.03266
G84: 60 | H84: 0 | I84: 0 | J84: =NA() ->  | L84: 0.03266
G85: 61 | H85: 0 | I85: 0 | J85: =NA() ->  | L85: 0.03267
G86: 62 | H86: 0 | I86: 0 | J86: =NA() ->  | L86: 0.03267
G87: 63 | H87: 0 | I87: 0 | J87: =NA() ->  | L87: 0.03268
G88: 64 | H88: 0 | I88: 0 | J88: =NA() ->  | L88: 0.03268
G89: 65 | H89: 0 | I89: 0 | J89: =NA() ->  | L89: 0.03269
G90: 66 | H90: 0 | I90: 0 | J90: =NA() ->  | L90: 0.03269
G91: 67 | H91: 0 | I91: 0 | J91: =NA() ->  | L91: 0.0327
G92: 68 | H92: 0 | I92: 0 | J92: =NA() ->  | L92: 0.0327
G93: 69 | H93: 0 | I93: 0 | J93: =NA() ->  | L93: 0.03271
G94: 70 | H94: 0 | I94: 0 | J94: =NA() ->  | L94: 0.03271
G95: 71 | H95: 0 | I95: 0 | J95: =NA() ->  | L95: 0.03272
G96: 72 | H96: 0 | I96: 0 | J96: =NA() ->  | L96: 0.03272
G97: 73 | H97: 0 | I97: 0 | J97: =NA() ->  | L97: 0.03272
G98: 74 | H98: 0 | I98: 0 | J98: =NA() ->  | L98: 0.03273
G99: 75 | H99: 0 | I99: 0 | J99: =NA() ->  | L99: 0.03273
G100: 76 | H100: 0 | I100: 0 | J100: =NA() ->  | L100: 0.03273
G101: 77 | H101: 0 | I101: 0 | J101: =NA() ->  | L101: 0.03274
G102: 78 | H102: 0 | I102: 0 | J102: =NA() ->  | L102: 0.03274
G103: 79 | H103: 0 | I103: 0 | J103: =NA() ->  | L103: 0.03274
G104: 80 | H104: 0 | I104: 0 | J104: =NA() ->  | L104: 0.03275
G105: 81 | H105: 0 | I105: 0 | J105: =NA() ->  | L105: 0.03275
G106: 82 | H106: 0 | I106: 0 | J106: =NA() ->  | L106: 0.03275
G107: 83 | H107: 0 | I107: 0 | J107: =NA() ->  | L107: 0.03276
G108: 84 | H108: 0 | I108: 0 | J108: =NA() ->  | L108: 0.03276
G109: 85 | H109: 0 | I109: 0 | J109: =NA() ->  | L109: 0.03276
G110: 86 | H110: 0 | I110: 0 | J110: =NA() ->  | L110: 0.03276
G111: 87 | H111: 0 | I111: 0 | J111: =NA() ->  | L111: 0.03277
G112: 88 | H112: 0 | I112: 0 | J112: =NA() ->  | L112: 0.03277
G113: 89 | H113: 0 | I113: 0 | J113: =NA() ->  | L113: 0.03277
G114: 90 | H114: 0 | I114: 0 | J114: =NA() ->  | L114: 0.03278
G115: 91 | H115: 0 | I115: 0 | J115: =NA() ->  | L115: 0.03278
G116: 92 | H116: 0 | I116: 0 | J116: =NA() ->  | L116: 0.03278
G117: 93 | H117: 0 | I117: 0 | J117: =NA() ->  | L117: 0.03278
G118: 94 | H118: 0 | I118: 0 | J118: =NA() ->  | L118: 0.03278
G119: 95 | H119: 0 | I119: 0 | J119: =NA() ->  | L119: 0.03279
G120: 96 | H120: 0 | I120: 0 | J120: =NA() ->  | L120: 0.03279
G121: 97 | H121: 0 | I121: 0 | J121: =NA() ->  | L121: 0.03279
G122: 98 | H122: 0 | I122: 0 | J122: =NA() ->  | L122: 0.03279
G123: 99 | H123: 0 | I123: 0 | J123: =NA() ->  | L123: 0.0328
G124: 100 | H124: 0 | I124: 0 | J124: =NA() ->  | L124: 0.0328
G125: 101 | H125: 0 | I125: 0 | J125: =NA() ->  | L125: 0.0328
G126: 102 | H126: 0 | I126: 0 | J126: =NA() ->  | L126: 0.0328
G127: 103 | H127: 0 | I127: 0 | J127: =NA() ->  | L127: 0.0328
G128: 104 | H128: 0 | I128: 0 | J128: =NA() ->  | L128: 0.03281
G129: 105 | H129: 0 | I129: 0 | J129: =NA() ->  | L129: 0.03281
G130: 106 | H130: 0 | I130: 0 | J130: =NA() ->  | L130: 0.03281
G131: 107 | H131: 0 | I131: 0 | J131: =NA() ->  | L131: 0.03281
G132: 108 | H132: 0 | I132: 0 | J132: =NA() ->  | L132: 0.03281
G133: 109 | H133: 0 | I133: 0 | J133: =NA() ->  | L133: 0.03281
G134: 110 | H134: 0 | I134: 0 | J134: =NA() ->  | L134: 0.03282
G135: 111 | H135: 0 | I135: 0 | J135: =NA() ->  | L135: 0.03282
G136: 112 | H136: 0 | I136: 0 | J136: =NA() ->  | L136: 0.03282
G137: 113 | H137: 0 | I137: 0 | J137: =NA() ->  | L137: 0.03282
G138: 114 | H138: 0 | I138: 0 | J138: =NA() ->  | L138: 0.03282
G139: 115 | H139: 0 | I139: 0 | J139: =NA() ->  | L139: 0.03282
G140: 116 | H140: 0 | I140: 0 | J140: =NA() ->  | L140: 0.03283
G141: 117 | H141: 0 | I141: 0 | J141: =NA() ->  | L141: 0.03283
G142: 118 | H142: 0 | I142: 0 | J142: =NA() ->  | L142: 0.03283
G143: 119 | H143: 0 | I143: 0 | J143: =NA() ->  | L143: 0.03283
G144: 120 | H144: 0 | I144: 0 | J144: =NA() ->  | L144: 0.03283
G145: 121 | H145: 0 | I145: 0 | J145: =NA() ->  | L145: 0.03283
G146: 122 | H146: 0 | I146: 0 | J146: =NA() ->  | L146: 0.03283
G147: 123 | H147: 0 | I147: 0 | J147: =NA() ->  | L147: 0.03284
G148: 124 | H148: 0 | I148: 0 | J148: =NA() ->  | L148: 0.03284
G149: 125 | H149: 0 | I149: 0 | J149: =NA() ->  | L149: 0.03284
G150: 126 | H150: 0 | I150: 0 | J150: =NA() ->  | L150: 0.03284
G151: 127 | H151: 0 | I151: 0 | J151: =NA() ->  | L151: 0.03284
G152: 128 | H152: 0 | I152: 0 | J152: =NA() ->  | L152: 0.03284
G153: 129 | H153: 0 | I153: 0 | J153: =NA() ->  | L153: 0.03284
G154: 130 | H154: 0 | I154: 0 | J154: =NA() ->  | L154: 0.03284
G155: 131 | H155: 0 | I155: 0 | J155: =NA() ->  | L155: 0.03285
G156: 132 | H156: 0 | I156: 0 | J156: =NA() ->  | L156: 0.03285
G157: 133 | H157: 0 | I157: 0 | J157: =NA() ->  | L157: 0.03285
G158: 134 | H158: 0 | I158: 0 | J158: =NA() ->  | L158: 0.03285
G159: 135 | H159: 0 | I159: 0 | J159: =NA() ->  | L159: 0.03285
G160: 136 | H160: 0 | I160: 0 | J160: =NA() ->  | L160: 0.03285
G161: 137 | H161: 0 | I161: 0 | J161: =NA() ->  | L161: 0.03285
G162: 138 | H162: 0 | I162: 0 | J162: =NA() ->  | L162: 0.03285
G163: 139 | H163: 0 | I163: 0 | J163: =NA() ->  | L163: 0.03285
G164: 140 | H164: 0 | I164: 0 | J164: =NA() ->  | L164: 0.03286
G165: 141 | H165: 0 | I165: 0 | J165: =NA() ->  | L165: 0.03286
G166: 142 | H166: 0 | I166: 0 | J166: =NA() ->  | L166: 0.03286
G167: 143 | H167: 0 | I167: 0 | J167: =NA() ->  | L167: 0.03286
G168: 144 | H168: 0 | I168: 0 | J168: =NA() ->  | L168: 0.03286
G169: 145 | H169: 0 | I169: 0 | J169: =NA() ->  | L169: 0.03286
G170: 146 | H170: 0 | I170: 0 | J170: =NA() ->  | L170: 0.03286
G171: 147 | H171: 0 | I171: 0 | J171: =NA() ->  | L171: 0.03286
G172: 148 | H172: 0 | I172: 0 | J172: =NA() ->  | L172: 0.03286
G173: 149 | H173: 0 | I173: 0 | J173: =NA() ->  | L173: 0.03286
G174: 150 | H174: 0 | I174: 0 | J174: =NA() ->  | L174: 0.03287

Sheet CSSR Calculation
M3: =V.COPYRIGHT -> ©EIOPA, 2026.
F6: Credit Spread Sensitivity Ratio Calculation
H8: Parameters | L8: Sensitivity Ratio
G10: Notional VA | H10: =ROUND(85% * V.RCS_CU, 4) -> 0.0085 | L10: 500000
L11: 490000
L12: =(V.MVFI-V.MVFI_NOTIONAL)/V.NOTIONAL_VA -> 1176470.588
L13: 870000
L14: 850000
L15: =(V.BEL-V.BEL_NOTIONAL)/V.NOTIONAL_VA -> 2352941.176
K16: CSSR | L16: =IF(V.PVBP_BEL <= 0, 1, MAX(MIN(V.PVBP_MVFI/V.PVBP_BEL, 1), 0)) -> 0.5
F18: Term Structure with Notional VA
J20: LLFR | K20: =_xlfn.LET(_xlpm.FIRST_LLFR_FORWARD, INDEX(R.FORWARDS_CC, V.FSP), _xlpm.FIRST_LLFR_WEIGHT, INDEX(R.LLFR_WEIGHTS, V.FSP), V.LLFR - _xlpm.FIRST_LLFR_WEIGHT * _xlpm.FIRST_LLFR_FORWARD + _xlpm.FIRST_LLFR_WEIGHT * INDEX(R.NOTIONAL_VA_CURVE, V.FSP)) -> 0.03504201715
G23: Maturity [Y] | H23: RFR | I23: RFR CC | J23: Fwd RFR CC | K23: Fwd RFR CC + VA* | L23: CSSR Curve
G24: 1 | H24: =R.BASIC_RFR -> 0.02076 | I24: =LN(1+H24) -> 0.02054744789 | J24: =I24 -> 0.02054744789 | K24: =J24+LN(1+V.NOTIONAL_VA) -> 0.0290115263 | L24: =ROUND(Extrapolation(R.NOTIONAL_VA_CURVE,"F", V.FSP,V.UFR,V.NOTIONAL_VA_LLFR,V.ALPHA,"A"), 5) -> 0.02944
G25: 2 | H25: 0.02163 | I25: =LN(1+H25) -> 0.02139939101 | J25: =G25*I25-G24*I24 -> 0.02225133412 | K25: 0.03071541254 | L25: 0.03031
G26: 3 | H26: 0.02283 | I26: 0.02257329525 | J26: =G26*I26-G25*I25 -> 0.02492110375 | K26: 0.03338518216 | L26: 0.03152
G27: 4 | H27: 0.02386 | I27: 0.02357979852 | J27: 0.02659930832 | K27: 0.03506338674 | L27: 0.03256
G28: 5 | H28: 0.02479 | I28: 0.02448771355 | J28: 0.02811937367 | K28: 0.03658345209 | L28: 0.0335
G29: 6 | H29: 0.02565 | I29: 0.02532655795 | J29: 0.02952077992 | K29: 0.03798485833 | L29: 0.03437
G30: 7 | H30: 0.02651 | I30: 0.02616469927 | J30: 0.03119354722 | K30: 0.03965762563 | L30: 0.03524
G31: 8 | H31: 0.02724 | I31: 0.02687559401 | J31: 0.03185185715 | K31: 0.04031593556 | L31: 0.03597
G32: 9 | H32: 0.02793 | I32: 0.02754707133 | J32: 0.03291888992 | K32: 0.04138296833 | L32: 0.03667
G33: 10 | H33: 0.02863 | I33: 0.02822781979 | J33: 0.03435455593 | K33: 0.04281863435 | L33: 0.03737
G34: 11 | H34: 0.02921 | I34: 0.02879151766 | J34: 0.03442849639 | K34: 0.0428925748 | L34: 0.03796
G35: 12 | H35: 0.02975 | I35: 0.02931605433 | J35: 0.03508595772 | K35: 0.04355003613 | L35: 0.0385
G36: 13 | H36: 0.03033 | I36: 0.02987913928 | J36: 0.0366361586 | K36: 0.04510023701 | L36: 0.03909
G37: 14 | H37: 0.03073 | I37: 0.03026728907 | J37: 0.03531323636 | K37: 0.04377731478 | L37: 0.03949
G38: 15 | H38: 0.03107 | I38: 0.03059709798 | J38: 0.03521442269 | K38: 0.0436785011 | L38: 0.03983
G39: 16 | H39: 0.03133 | I39: 0.03084923142 | J39: 0.03463123299 | K39: 0.0430953114 | L39: 0.0401
G40: 17 | H40: 0.03155 | I40: 0.03106252545 | J40: 0.03447523003 | K40: 0.04293930845 | L40: 0.04032
G41: 18 | H41: 0.03175 | I41: 0.03125638965 | J41: 0.03455208103 | K41: 0.04301615944 | L41: 0.04052
G42: 19 | H42: 0.03193 | I42: 0.0314308353 | J42: 0.03457085702 | K42: 0.04303493543 | L42: 0.0407
G43: 20 | H43: 0.03209 | I43: 0.03158587256 | J43: 0.03453158046 | K43: 0.04299565887 | L43: 0.04086
G44: 21 | H44: 0.03212 | I44: 0.03161493937 | J44: 0.03219627557 | K44: 0.04066035398 | L44: 0.04061
G45: 22 | H45: 0.03215 | I45: 0.03164400533 | J45: 0.0322543906 | K45: 0.04071846902 | L45: 0.04036
G46: 23 | H46: 0.03218 | I46: 0.03167307045 | J46: 0.0323125031 | K46: 0.04077658152 | L46: 0.04013
G47: 24 | H47: 0.03221 | I47: 0.03170213473 | J47: 0.03237061307 | K47: 0.04083469148 | L47: 0.03991
G48: 25 | H48: 0.03224 | I48: 0.03173119816 | J48: 0.0324287205 | K48: 0.04089279892 | L48: 0.0397
G49: 26 | H49: 0.03226 | I49: 0.03175057331 | J49: 0.0322349521 | K49: 0.04069903051 | L49: 0.0395
G50: 27 | H50: 0.03229 | I50: 0.03177963534 | J50: 0.03253524794 | K50: 0.04099932635 | L50: 0.0393
G51: 28 | H51: 0.03231 | I51: 0.03179900955 | J51: 0.0323221133 | K51: 0.04078619171 | L51: 0.03912
G52: 29 | H52: 0.03233 | I52: 0.03181838339 | J52: 0.03236085084 | K52: 0.04082492925 | L52: 0.03894
G53: 30 | H53: 0.03235 | I53: 0.03183775685 | J53: 0.03239958725 | K53: 0.04086366567 | L53: 0.03878
G54: 31 | H54: 0.03237 | I54: 0.03185712994 | J54: 0.03243832254 | K54: 0.04090240096 | L54: 0.03862
G55: 32 | H55: 0.03238 | I55: 0.03186681634 | J55: 0.03216709482 | K55: 0.04063117323 | L55: 0.03846
G56: 33 | H56: 0.0324 | I56: 0.03188618886 | J56: 0.03250610963 | K56: =J56+LN(1+V.NOTIONAL_VA) -> 0.04097018804 | L56: 0.03832
G57: 34 | H57: 0.03242 | I57: 0.03190556101 | J57: 0.03254484192 | K57: 0.04100892033 | L57: 0.03818
G58: 35 | H58: 0.03243 | I58: 0.03191524694 | J58: 0.03224456869 | K58: 0.0407086471 | L58: 0.03805
G59: 36 | H59: 0.03245 | I59: 0.03193461853 | J59: 0.03261262403 | K59: 0.04107670244 | L59: 0.03792
G60: 37 | H60: 0.03246 | I60: 0.03194430418 | J60: 0.03229298766 | K60: 0.04075706607 | L60: 0.0378
G61: 38 | H61: 0.03247 | I61: 0.03195398974 | J61: 0.0323123554 | K61: 0.04077643381 | L61: 0.03768
G62: 39 | H62: 0.03249 | I62: 0.03197336058 | J62: 0.03270945232 | K62: 0.04117353073 | L62: 0.03757
G63: 40 | H63: 0.0325 | I63: 0.03198304585 | J63: 0.03236077165 | K63: 0.04082485007 | L63: 0.03746
G64: 41 | H64: 0.03251 | I64: 0.03199273104 | J64: 0.03238013836 | K64: 0.04084421677 | L64: 0.03736
G65: 42 | H65: 0.03252 | I65: 0.03200241613 | J65: 0.03239950479 | K65: 0.0408635832 | L65: 0.03726
G66: 43 | H66: 0.03253 | I66: 0.03201210112 | J66: 0.03241887093 | K66: 0.04088294935 | L66: 0.03717
G67: 44 | H67: 0.03254 | I67: 0.03202178602 | J67: 0.0324382368 | K67: 0.04090231521 | L67: 0.03708
G68: 45 | H68: 0.03255 | I68: 0.03203147083 | J68: 0.03245760238 | K68: 0.04092168079 | L68: 0.03699
G69: 46 | H69: 0.03256 | I69: 0.03204115554 | J69: 0.03247696768 | K69: 0.04094104609 | L69: 0.03691
G70: 47 | H70: 0.03257 | I70: 0.03205084017 | J70: 0.0324963327 | K70: 0.04096041111 | L70: 0.03683
G71: 48 | H71: 0.03258 | I71: 0.03206052469 | J71: 0.03251569744 | K71: 0.04097977585 | L71: 0.03675
G72: 49 | H72: 0.03259 | I72: 0.03207020912 | J72: 0.0325350619 | K72: 0.04099914031 | L72: 0.03668
G73: 50 | H73: 0.0326 | I73: 0.03207989346 | J73: 0.03255442607 | K73: 0.04101850449 | L73: 0.03661
G74: 51 | H74: 0.0326 | I74: 0.03207989346 | J74: 0.03207989346 | K74: 0.04054397188 | L74: 0.03654
G75: 52 | H75: 0.03261 | I75: 0.03208957771 | J75: 0.03258347421 | K75: 0.04104755263 | L75: 0.03647
G76: 53 | H76: 0.03262 | I76: 0.03209926186 | J76: 0.03260283773 | K76: 0.04106691615 | L76: 0.03641
G77: 54 | H77: 0.03263 | I77: 0.03210894592 | J77: 0.03262220097 | K77: 0.04108627938 | L77: 0.03634
G78: 55 | H78: 0.03263 | I78: 0.03210894592 | J78: 0.03210894592 | K78: 0.04057302433 | L78: 0.03628
G79: 56 | H79: 0.03264 | I79: 0.03211862988 | J79: 0.03265124789 | K79: 0.0411153263 | L79: 0.03623
G80: 57 | H80: 0.03265 | I80: 0.03212831375 | J80: 0.03267061047 | K80: 0.04113468889 | L80: 0.03617
G81: 58 | H81: 0.03265 | I81: 0.03212831375 | J81: 0.03212831375 | K81: 0.04059239216 | L81: 0.03612
G82: 59 | H82: 0.03266 | I82: 0.03213799753 | J82: 0.03269965655 | K82: 0.04116373496 | L82: 0.03606
G83: 60 | H83: 0.03266 | I83: 0.03213799753 | J83: 0.03213799753 | K83: 0.04060207594 | L83: 0.03601
G84: 61 | H84: 0.03267 | I84: 0.03214768121 | J84: 0.03272870216 | K84: 0.04119278057 | L84: 0.03596
G85: 62 | H85: 0.03267 | I85: 0.03214768121 | J85: 0.03214768121 | K85: 0.04061175962 | L85: 0.03592
G86: 63 | H86: 0.03268 | I86: 0.0321573648 | J86: 0.0327577473 | K86: 0.04122182571 | L86: 0.03587
G87: 64 | H87: 0.03268 | I87: 0.0321573648 | J87: 0.0321573648 | K87: 0.04062144321 | L87: 0.03583
G88: 65 | H88: 0.03269 | I88: 0.03216704829 | J88: 0.03278679197 | K88: =J88+LN(1+V.NOTIONAL_VA) -> 0.04125087038 | L88: 0.03578
G89: 66 | H89: 0.03269 | I89: =LN(1+H89) -> 0.03216704829 | J89: 0.03216704829 | K89: 0.04063112671 | L89: 0.03574
G90: 67 | H90: 0.0327 | I90: 0.0321767317 | J90: =G90*I90-G89*I89 -> 0.03281583617 | K90: 0.04127991459 | L90: 0.0357
G91: 68 | H91: 0.0327 | I91: 0.0321767317 | J91: 0.0321767317 | K91: 0.04064081011 | L91: 0.03566
G92: 69 | H92: 0.03271 | I92: 0.032186415 | J92: 0.03284487991 | K92: 0.04130895832 | L92: 0.03562
G93: 70 | H93: 0.03271 | I93: 0.032186415 | J93: 0.032186415 | K93: 0.04065049341 | L93: 0.03559
G94: 71 | H94: 0.03272 | I94: 0.03219609822 | J94: 0.03287392317 | K94: 0.04133800159 | L94: 0.03555
G95: 72 | H95: 0.03272 | I95: 0.03219609822 | J95: 0.03219609822 | K95: 0.04066017663 | L95: 0.03551
G96: 73 | H96: 0.03272 | I96: 0.03219609822 | J96: 0.03219609822 | K96: 0.04066017663 | L96: 0.03548
G97: 74 | H97: 0.03273 | I97: 0.03220578134 | J97: 0.03291264909 | K97: 0.0413767275 | L97: 0.03545
G98: 75 | H98: 0.03273 | I98: 0.03220578134 | J98: 0.03220578134 | K98: 0.04066985975 | L98: 0.03541
G99: 76 | H99: 0.03273 | I99: 0.03220578134 | J99: 0.03220578134 | K99: 0.04066985975 | L99: 0.03538
G100: 77 | H100: 0.03274 | I100: 0.03221546436 | J100: 0.03295137435 | K100: 0.04141545276 | L100: 0.03535
G101: 78 | H101: 0.03274 | I101: 0.03221546436 | J101: 0.03221546436 | K101: 0.04067954277 | L101: 0.03532
G102: 79 | H102: 0.03274 | I102: 0.03221546436 | J102: 0.03221546436 | K102: 0.04067954277 | L102: 0.03529
G103: 80 | H103: 0.03275 | I103: 0.03222514729 | J103: 0.03299009895 | K103: 0.04145417736 | L103: 0.03526
G104: 81 | H104: 0.03275 | I104: 0.03222514729 | J104: 0.03222514729 | K104: 0.04068922571 | L104: 0.03523
G105: 82 | H105: 0.03275 | I105: 0.03222514729 | J105: 0.03222514729 | K105: 0.04068922571 | L105: 0.03521
G106: 83 | H106: 0.03276 | I106: 0.03223483013 | J106: 0.0330288229 | K106: 0.04149290131 | L106: 0.03518
G107: 84 | H107: 0.03276 | I107: 0.03223483013 | J107: 0.03223483013 | K107: 0.04069890855 | L107: 0.03515
G108: 85 | H108: 0.03276 | I108: 0.03223483013 | J108: 0.03223483013 | K108: 0.04069890855 | L108: 0.03513
G109: 86 | H109: 0.03276 | I109: 0.03223483013 | J109: 0.03223483013 | K109: 0.04069890855 | L109: 0.0351
G110: 87 | H110: 0.03277 | I110: 0.03224451288 | J110: 0.03307722894 | K110: 0.04154130735 | L110: 0.03508
G111: 88 | H111: 0.03277 | I111: 0.03224451288 | J111: 0.03224451288 | K111: 0.04070859129 | L111: 0.03506
G112: 89 | H112: 0.03277 | I112: 0.03224451288 | J112: 0.03224451288 | K112: 0.04070859129 | L112: 0.03503
G113: 90 | H113: 0.03278 | I113: 0.03225419553 | J113: 0.03311595148 | K113: 0.04158002989 | L113: 0.03501
G114: 91 | H114: 0.03278 | I114: 0.03225419553 | J114: 0.03225419553 | K114: 0.04071827394 | L114: 0.03499
G115: 92 | H115: 0.03278 | I115: 0.03225419553 | J115: 0.03225419553 | K115: 0.04071827394 | L115: 0.03497
G116: 93 | H116: 0.03278 | I116: 0.03225419553 | J116: 0.03225419553 | K116: 0.04071827394 | L116: 0.03495
G117: 94 | H117: 0.03278 | I117: 0.03225419553 | J117: 0.03225419553 | K117: 0.04071827394 | L117: 0.03493
G118: 95 | H118: 0.03279 | I118: 0.03226387809 | J118: 0.03317403848 | K118: 0.04163811689 | L118: 0.03491
G119: 96 | H119: 0.03279 | I119: 0.03226387809 | J119: 0.03226387809 | K119: 0.0407279565 | L119: 0.03489
G120: 97 | H120: 0.03279 | I120: 0.03226387809 | J120: 0.03226387809 | K120: =J120+LN(1+V.NOTIONAL_VA) -> 0.0407279565 | L120: 0.03487
G121: 98 | H121: 0.03279 | I121: 0.03226387809 | J121: 0.03226387809 | K121: 0.0407279565 | L121: 0.03485
G122: 99 | H122: 0.0328 | I122: 0.03227356055 | J122: 0.03322244198 | K122: 0.0416865204 | L122: 0.03483
G123: 100 | H123: 0.0328 | I123: 0.03227356055 | J123: 0.03227356055 | K123: 0.04073763896 | L123: 0.03481
G124: 101 | H124: 0.0328 | I124: 0.03227356055 | J124: 0.03227356055 | K124: 0.04073763896 | L124: 0.03479
G125: 102 | H125: 0.0328 | I125: 0.03227356055 | J125: 0.03227356055 | K125: 0.04073763896 | L125: 0.03477
G126: 103 | H126: 0.0328 | I126: 0.03227356055 | J126: 0.03227356055 | K126: 0.04073763896 | L126: 0.03476
G127: 104 | H127: 0.03281 | I127: 0.03228324292 | J127: 0.03328052702 | K127: 0.04174460543 | L127: 0.03474
G128: 105 | H128: 0.03281 | I128: 0.03228324292 | J128: 0.03228324292 | K128: 0.04074732133 | L128: 0.03472
G129: 106 | H129: 0.03281 | I129: 0.03228324292 | J129: 0.03228324292 | K129: 0.04074732133 | L129: 0.03471
G130: 107 | H130: 0.03281 | I130: 0.03228324292 | J130: 0.03228324292 | K130: 0.04074732133 | L130: 0.03469
G131: 108 | H131: 0.03281 | I131: 0.03228324292 | J131: 0.03228324292 | K131: 0.04074732133 | L131: 0.03468
G132: 109 | H132: 0.03281 | I132: 0.03228324292 | J132: 0.03228324292 | K132: 0.04074732133 | L132: 0.03466
G133: 110 | H133: 0.03282 | I133: 0.0322929252 | J133: 0.03334829329 | K133: 0.0418123717 | L133: 0.03465
G134: 111 | H134: 0.03282 | I134: 0.0322929252 | J134: 0.0322929252 | K134: 0.04075700361 | L134: 0.03463
G135: 112 | H135: 0.03282 | I135: 0.0322929252 | J135: 0.0322929252 | K135: 0.04075700361 | L135: 0.03462
G136: 113 | H136: 0.03282 | I136: 0.0322929252 | J136: 0.0322929252 | K136: 0.04075700361 | L136: 0.0346
G137: 114 | H137: 0.03282 | I137: 0.0322929252 | J137: 0.0322929252 | K137: 0.04075700361 | L137: 0.03459
G138: 115 | H138: 0.03282 | I138: 0.0322929252 | J138: 0.0322929252 | K138: 0.04075700361 | L138: 0.03457
G139: 116 | H139: 0.03283 | I139: 0.03230260738 | J139: 0.03341605835 | K139: 0.04188013676 | L139: 0.03456
G140: 117 | H140: 0.03283 | I140: 0.03230260738 | J140: 0.03230260738 | K140: 0.04076668579 | L140: 0.03455
G141: 118 | H141: 0.03283 | I141: 0.03230260738 | J141: 0.03230260738 | K141: 0.04076668579 | L141: 0.03453
G142: 119 | H142: 0.03283 | I142: 0.03230260738 | J142: 0.03230260738 | K142: 0.04076668579 | L142: 0.03452
G143: 120 | H143: 0.03283 | I143: 0.03230260738 | J143: 0.03230260738 | K143: 0.04076668579 | L143: 0.03451
G144: 121 | H144: 0.03283 | I144: 0.03230260738 | J144: 0.03230260738 | K144: 0.04076668579 | L144: 0.0345
G145: 122 | H145: 0.03283 | I145: 0.03230260738 | J145: 0.03230260738 | K145: 0.04076668579 | L145: 0.03448
G146: 123 | H146: 0.03284 | I146: 0.03231228947 | J146: 0.03349350428 | K146: 0.04195758269 | L146: 0.03447
G147: 124 | H147: 0.03284 | I147: 0.03231228947 | J147: 0.03231228947 | K147: 0.04077636788 | L147: 0.03446
G148: 125 | H148: 0.03284 | I148: 0.03231228947 | J148: 0.03231228947 | K148: 0.04077636788 | L148: 0.03445
G149: 126 | H149: 0.03284 | I149: 0.03231228947 | J149: 0.03231228947 | K149: 0.04077636788 | L149: 0.03444
G150: 127 | H150: 0.03284 | I150: 0.03231228947 | J150: 0.03231228947 | K150: 0.04077636788 | L150: 0.03442
G151: 128 | H151: 0.03284 | I151: 0.03231228947 | J151: 0.03231228947 | K151: 0.04077636788 | L151: 0.03441
G152: 129 | H152: 0.03284 | I152: 0.03231228947 | J152: 0.03231228947 | K152: =J152+LN(1+V.NOTIONAL_VA) -> 0.04077636788 | L152: 0.0344
G153: 130 | H153: 0.03284 | I153: =LN(1+H153) -> 0.03231228947 | J153: 0.03231228947 | K153: 0.04077636788 | L153: 0.03439
G154: 131 | H154: 0.03285 | I154: 0.03232197146 | J154: =G154*I154-G153*I153 -> 0.0335806308 | K154: 0.04204470921 | L154: 0.03438
G155: 132 | H155: 0.03285 | I155: 0.03232197146 | J155: 0.03232197146 | K155: 0.04078604987 | L155: 0.03437
G156: 133 | H156: 0.03285 | I156: 0.03232197146 | J156: 0.03232197146 | K156: 0.04078604987 | L156: 0.03436
G157: 134 | H157: 0.03285 | I157: 0.03232197146 | J157: 0.03232197146 | K157: 0.04078604987 | L157: 0.03435
G158: 135 | H158: 0.03285 | I158: 0.03232197146 | J158: 0.03232197146 | K158: 0.04078604987 | L158: 0.03434
G159: 136 | H159: 0.03285 | I159: 0.03232197146 | J159: 0.03232197146 | K159: 0.04078604987 | L159: 0.03433
G160: 137 | H160: 0.03285 | I160: 0.03232197146 | J160: 0.03232197146 | K160: 0.04078604987 | L160: 0.03432
G161: 138 | H161: 0.03285 | I161: 0.03232197146 | J161: 0.03232197146 | K161: 0.04078604987 | L161: 0.03431
G162: 139 | H162: 0.03285 | I162: 0.03232197146 | J162: 0.03232197146 | K162: 0.04078604987 | L162: 0.0343
G163: 140 | H163: 0.03286 | I163: 0.03233165336 | J163: 0.03367743762 | K163: 0.04214151603 | L163: 0.03429
G164: 141 | H164: 0.03286 | I164: 0.03233165336 | J164: 0.03233165336 | K164: 0.04079573178 | L164: 0.03428
G165: 142 | H165: 0.03286 | I165: 0.03233165336 | J165: 0.03233165336 | K165: 0.04079573178 | L165: 0.03427
G166: 143 | H166: 0.03286 | I166: 0.03233165336 | J166: 0.03233165336 | K166: 0.04079573178 | L166: 0.03427
G167: 144 | H167: 0.03286 | I167: 0.03233165336 | J167: 0.03233165336 | K167: 0.04079573178 | L167: 0.03426
G168: 145 | H168: 0.03286 | I168: 0.03233165336 | J168: 0.03233165336 | K168: 0.04079573178 | L168: 0.03425
G169: 146 | H169: 0.03286 | I169: 0.03233165336 | J169: 0.03233165336 | K169: 0.04079573178 | L169: 0.03424
G170: 147 | H170: 0.03286 | I170: 0.03233165336 | J170: 0.03233165336 | K170: 0.04079573178 | L170: 0.03423
G171: 148 | H171: 0.03286 | I171: 0.03233165336 | J171: 0.03233165336 | K171: 0.04079573178 | L171: 0.03422
G172: 149 | H172: 0.03286 | I172: 0.03233165336 | J172: 0.03233165336 | K172: 0.04079573178 | L172: 0.03421
G173: 150 | H173: 0.03287 | I173: 0.03234133517 | J173: 0.03378392447 | K173: 0.04224800289 | L173: 0.03421

Sheet VA Term Structures
M3: =V.COPYRIGHT -> ©EIOPA, 2026.
F6: Risk-Free Interest Rate Term Structures with Volatility Adjustment
H8: Settings | L8: VA Calculation
G10: Macro VA? | H10: FALSE | K10: Currency VA | L10: =IF(V.USA_SELECTED, 85% * V.CSSR * V.USA * V.RCS_CU, 85% * V.CSSR * V.RCS_CU) -> 0.0034
G11: USA? | H11: TRUE | L11: =MAX(MIN((V.RCS_CO * V.DTTA - 0.6%) / 0.3%, 1), 0) -> 0.3333333333
G12: USA | H12: 0.8 | K12: Macro VA | L12: =IF(V.MACROVA_SELECTED, 85% * V.CSSR * MAX(V.RCS_CO - 1.3 * V.RCS_CU, 0) * V.W_CO, NA()) -> 
K13: Total VA | L13: =ROUND(IF(V.MACROVA_SELECTED, V.CURRENCY_VA + V.MACRO_VA, V.CURRENCY_VA), 4) -> 0.0034
F18: Risk-free Interest Rate Term Structure with Volatility Adjustment
J20: LLFR | K20: =_xlfn.LET(_xlpm.FIRST_LLFR_FORWARD, INDEX(R.FWD_CURVE, V.FSP), _xlpm.FIRST_LLFR_WEIGHT, INDEX(R.LLFR_WEIGHTS, V.FSP), V.LLFR - _xlpm.FIRST_LLFR_WEIGHT * _xlpm.FIRST_LLFR_FORWARD + _xlpm.FIRST_LLFR_WEIGHT * INDEX(R.FWD_VA_CURVE, V.FSP)) -> 0.03336896819
G22: Maturity [Y] | H22: RFR | I22: RFR CC | J22: Fwd RFR CC | K22: Fwd RFR CC + VA | L22: VA Curve
G23: 1 | H23: =R.BASIC_RFR -> 0.02076 | I23: =LN(1+H23) -> 0.02054744789 | J23: =I23 -> 0.02054744789 | K23: =J23+LN(1+V.TOTAL_VA) -> 0.02394168096 | L23: =ROUND(Extrapolation(K23:K172, "F", V.FSP,V.UFR,V.TOTAL_VA_LLFR,V.ALPHA,"A"), 5) -> 0.02423
G24: 2 | H24: 0.02163 | I24: =LN(1+H24) -> 0.02139939101 | J24: =G24*I24-G23*I23 -> 0.02225133412 | K24: 0.02564556719 | L24: 0.0251
G25: 3 | H25: 0.02283 | I25: 0.02257329525 | J25: =G25*I25-G24*I24 -> 0.02492110375 | K25: 0.02831533681 | L25: 0.02631
G26: 4 | H26: 0.02386 | I26: 0.02357979852 | J26: 0.02659930832 | K26: 0.02999354139 | L26: 0.02734
G27: 5 | H27: 0.02479 | I27: 0.02448771355 | J27: 0.02811937367 | K27: 0.03151360674 | L27: 0.02827
G28: 6 | H28: 0.02565 | I28: 0.02532655795 | J28: 0.02952077992 | K28: 0.03291501299 | L28: 0.02914
G29: 7 | H29: 0.02651 | I29: 0.02616469927 | J29: 0.03119354722 | K29: 0.03458778029 | L29: 0.03
G30: 8 | H30: 0.02724 | I30: 0.02687559401 | J30: 0.03185185715 | K30: 0.03524609022 | L30: 0.03073
G31: 9 | H31: 0.02793 | I31: 0.02754707133 | J31: 0.03291888992 | K31: 0.03631312299 | L31: 0.03142
G32: 10 | H32: 0.02863 | I32: 0.02822781979 | J32: 0.03435455593 | K32: 0.037748789 | L32: 0.03213
G33: 11 | H33: 0.02921 | I33: 0.02879151766 | J33: 0.03442849639 | K33: 0.03782272946 | L33: 0.03271
G34: 12 | H34: 0.02975 | I34: 0.02931605433 | J34: 0.03508595772 | K34: 0.03848019079 | L34: 0.03325
G35: 13 | H35: 0.03033 | I35: 0.02987913928 | J35: 0.0366361586 | K35: 0.04003039167 | L35: 0.03383
G36: 14 | H36: 0.03073 | I36: 0.03026728907 | J36: 0.03531323636 | K36: 0.03870746943 | L36: 0.03423
G37: 15 | H37: 0.03107 | I37: 0.03059709798 | J37: 0.03521442269 | K37: 0.03860865576 | L37: 0.03458
G38: 16 | H38: 0.03133 | I38: 0.03084923142 | J38: 0.03463123299 | K38: 0.03802546606 | L38: 0.03484
G39: 17 | H39: 0.03155 | I39: 0.03106252545 | J39: 0.03447523003 | K39: 0.0378694631 | L39: 0.03506
G40: 18 | H40: 0.03175 | I40: 0.03125638965 | J40: 0.03455208103 | K40: 0.0379463141 | L40: 0.03526
G41: 19 | H41: 0.03193 | I41: 0.0314308353 | J41: 0.03457085702 | K41: 0.03796509009 | L41: 0.03544
G42: 20 | H42: 0.03209 | I42: 0.03158587256 | J42: 0.03453158046 | K42: 0.03792581352 | L42: 0.0356
G43: 21 | H43: 0.03212 | I43: 0.03161493937 | J43: 0.03219627557 | K43: 0.03559050864 | L43: 0.03552
G44: 22 | H44: 0.03215 | I44: 0.03164400533 | J44: 0.0322543906 | K44: 0.03564862367 | L44: 0.03544
G45: 23 | H45: 0.03218 | I45: 0.03167307045 | J45: 0.0323125031 | K45: 0.03570673617 | L45: 0.03536
G46: 24 | H46: 0.03221 | I46: 0.03170213473 | J46: 0.03237061307 | K46: 0.03576484614 | L46: 0.03529
G47: 25 | H47: 0.03224 | I47: 0.03173119816 | J47: 0.0324287205 | K47: 0.03582295357 | L47: 0.03522
G48: 26 | H48: 0.03226 | I48: 0.03175057331 | J48: 0.0322349521 | K48: 0.03562918517 | L48: 0.03516
G49: 27 | H49: 0.03229 | I49: 0.03177963534 | J49: 0.03253524794 | K49: 0.03592948101 | L49: 0.03509
G50: 28 | H50: 0.03231 | I50: 0.03179900955 | J50: 0.0323221133 | K50: 0.03571634637 | L50: 0.03503
G51: 29 | H51: 0.03233 | I51: 0.03181838339 | J51: 0.03236085084 | K51: 0.03575508391 | L51: 0.03498
G52: 30 | H52: 0.03235 | I52: 0.03183775685 | J52: 0.03239958725 | K52: 0.03579382032 | L52: 0.03492
G53: 31 | H53: 0.03237 | I53: 0.03185712994 | J53: 0.03243832254 | K53: 0.03583255561 | L53: 0.03487
G54: 32 | H54: 0.03238 | I54: 0.03186681634 | J54: 0.03216709482 | K54: 0.03556132789 | L54: 0.03482
G55: 33 | H55: 0.0324 | I55: 0.03188618886 | J55: 0.03250610963 | K55: =J55+LN(1+V.TOTAL_VA) -> 0.0359003427 | L55: 0.03477
G56: 34 | H56: 0.03242 | I56: 0.03190556101 | J56: 0.03254484192 | K56: 0.03593907498 | L56: 0.03472
G57: 35 | H57: 0.03243 | I57: 0.03191524694 | J57: 0.03224456869 | K57: 0.03563880176 | L57: 0.03468
G58: 36 | H58: 0.03245 | I58: 0.03193461853 | J58: 0.03261262403 | K58: 0.0360068571 | L58: 0.03464
G59: 37 | H59: 0.03246 | I59: 0.03194430418 | J59: 0.03229298766 | K59: 0.03568722073 | L59: 0.0346
G60: 38 | H60: 0.03247 | I60: 0.03195398974 | J60: 0.0323123554 | K60: 0.03570658847 | L60: 0.03456
G61: 39 | H61: 0.03249 | I61: 0.03197336058 | J61: 0.03270945232 | K61: 0.03610368538 | L61: 0.03452
G62: 40 | H62: 0.0325 | I62: 0.03198304585 | J62: 0.03236077165 | K62: 0.03575500472 | L62: 0.03449
G63: 41 | H63: 0.03251 | I63: 0.03199273104 | J63: 0.03238013836 | K63: 0.03577437143 | L63: 0.03445
G64: 42 | H64: 0.03252 | I64: 0.03200241613 | J64: 0.03239950479 | K64: 0.03579373786 | L64: 0.03442
G65: 43 | H65: 0.03253 | I65: 0.03201210112 | J65: 0.03241887093 | K65: 0.035813104 | L65: 0.03439
G66: 44 | H66: 0.03254 | I66: 0.03202178602 | J66: 0.0324382368 | K66: 0.03583246986 | L66: 0.03436
G67: 45 | H67: 0.03255 | I67: 0.03203147083 | J67: 0.03245760238 | K67: 0.03585183545 | L67: 0.03433
G68: 46 | H68: 0.03256 | I68: 0.03204115554 | J68: 0.03247696768 | K68: 0.03587120075 | L68: 0.0343
G69: 47 | H69: 0.03257 | I69: 0.03205084017 | J69: 0.0324963327 | K69: 0.03589056577 | L69: 0.03428
G70: 48 | H70: 0.03258 | I70: 0.03206052469 | J70: 0.03251569744 | K70: 0.03590993051 | L70: 0.03425
G71: 49 | H71: 0.03259 | I71: 0.03207020912 | J71: 0.0325350619 | K71: 0.03592929496 | L71: 0.03423
G72: 50 | H72: 0.0326 | I72: 0.03207989346 | J72: 0.03255442607 | K72: 0.03594865914 | L72: 0.0342
G73: 51 | H73: 0.0326 | I73: 0.03207989346 | J73: 0.03207989346 | K73: 0.03547412653 | L73: 0.03418
G74: 52 | H74: 0.03261 | I74: 0.03208957771 | J74: 0.03258347421 | K74: 0.03597770728 | L74: 0.03416
G75: 53 | H75: 0.03262 | I75: 0.03209926186 | J75: 0.03260283773 | K75: 0.0359970708 | L75: 0.03414
G76: 54 | H76: 0.03263 | I76: 0.03210894592 | J76: 0.03262220097 | K76: 0.03601643404 | L76: 0.03412
G77: 55 | H77: 0.03263 | I77: 0.03210894592 | J77: 0.03210894592 | K77: 0.03550317899 | L77: 0.0341
G78: 56 | H78: 0.03264 | I78: 0.03211862988 | J78: 0.03265124789 | K78: 0.03604548096 | L78: 0.03408
G79: 57 | H79: 0.03265 | I79: 0.03212831375 | J79: 0.03267061047 | K79: 0.03606484354 | L79: 0.03406
G80: 58 | H80: 0.03265 | I80: 0.03212831375 | J80: 0.03212831375 | K80: 0.03552254682 | L80: 0.03404
G81: 59 | H81: 0.03266 | I81: 0.03213799753 | J81: 0.03269965655 | K81: 0.03609388962 | L81: 0.03402
G82: 60 | H82: 0.03266 | I82: 0.03213799753 | J82: 0.03213799753 | K82: 0.0355322306 | L82: 0.03401
G83: 61 | H83: 0.03267 | I83: 0.03214768121 | J83: 0.03272870216 | K83: 0.03612293523 | L83: 0.03399
G84: 62 | H84: 0.03267 | I84: 0.03214768121 | J84: 0.03214768121 | K84: 0.03554191428 | L84: 0.03397
G85: 63 | H85: 0.03268 | I85: 0.0321573648 | J85: 0.0327577473 | K85: 0.03615198037 | L85: 0.03396
G86: 64 | H86: 0.03268 | I86: 0.0321573648 | J86: 0.0321573648 | K86: 0.03555159787 | L86: 0.03394
G87: 65 | H87: 0.03269 | I87: 0.03216704829 | J87: 0.03278679197 | K87: =J87+LN(1+V.TOTAL_VA) -> 0.03618102504 | L87: 0.03393
G88: 66 | H88: 0.03269 | I88: =LN(1+H88) -> 0.03216704829 | J88: 0.03216704829 | K88: 0.03556128136 | L88: 0.03391
G89: 67 | H89: 0.0327 | I89: 0.0321767317 | J89: =G89*I89-G88*I88 -> 0.03281583617 | K89: 0.03621006924 | L89: 0.0339
G90: 68 | H90: 0.0327 | I90: 0.0321767317 | J90: 0.0321767317 | K90: 0.03557096476 | L90: 0.03389
G91: 69 | H91: 0.03271 | I91: 0.032186415 | J91: 0.03284487991 | K91: 0.03623911298 | L91: 0.03387
G92: 70 | H92: 0.03271 | I92: 0.032186415 | J92: 0.032186415 | K92: 0.03558064807 | L92: 0.03386
G93: 71 | H93: 0.03272 | I93: 0.03219609822 | J93: 0.03287392317 | K93: 0.03626815624 | L93: 0.03385
G94: 72 | H94: 0.03272 | I94: 0.03219609822 | J94: 0.03219609822 | K94: 0.03559033128 | L94: 0.03384
G95: 73 | H95: 0.03272 | I95: 0.03219609822 | J95: 0.03219609822 | K95: 0.03559033128 | L95: 0.03383
G96: 74 | H96: 0.03273 | I96: 0.03220578134 | J96: 0.03291264909 | K96: 0.03630688216 | L96: 0.03382
G97: 75 | H97: 0.03273 | I97: 0.03220578134 | J97: 0.03220578134 | K97: 0.0356000144 | L97: 0.03381
G98: 76 | H98: 0.03273 | I98: 0.03220578134 | J98: 0.03220578134 | K98: 0.0356000144 | L98: 0.03379
G99: 77 | H99: 0.03274 | I99: 0.03221546436 | J99: 0.03295137435 | K99: 0.03634560742 | L99: 0.03378
G100: 78 | H100: 0.03274 | I100: 0.03221546436 | J100: 0.03221546436 | K100: 0.03560969743 | L100: 0.03377
G101: 79 | H101: 0.03274 | I101: 0.03221546436 | J101: 0.03221546436 | K101: 0.03560969743 | L101: 0.03376
G102: 80 | H102: 0.03275 | I102: 0.03222514729 | J102: 0.03299009895 | K102: 0.03638433202 | L102: 0.03375
G103: 81 | H103: 0.03275 | I103: 0.03222514729 | J103: 0.03222514729 | K103: 0.03561938036 | L103: 0.03375
G104: 82 | H104: 0.03275 | I104: 0.03222514729 | J104: 0.03222514729 | K104: 0.03561938036 | L104: 0.03374
G105: 83 | H105: 0.03276 | I105: 0.03223483013 | J105: 0.0330288229 | K105: 0.03642305597 | L105: 0.03373
G106: 84 | H106: 0.03276 | I106: 0.03223483013 | J106: 0.03223483013 | K106: 0.0356290632 | L106: 0.03372
G107: 85 | H107: 0.03276 | I107: 0.03223483013 | J107: 0.03223483013 | K107: 0.0356290632 | L107: 0.03371
G108: 86 | H108: 0.03276 | I108: 0.03223483013 | J108: 0.03223483013 | K108: 0.0356290632 | L108: 0.0337
G109: 87 | H109: 0.03277 | I109: 0.03224451288 | J109: 0.03307722894 | K109: 0.036471462 | L109: 0.03369
G110: 88 | H110: 0.03277 | I110: 0.03224451288 | J110: 0.03224451288 | K110: 0.03563874595 | L110: 0.03369
G111: 89 | H111: 0.03277 | I111: 0.03224451288 | J111: 0.03224451288 | K111: 0.03563874595 | L111: 0.03368
G112: 90 | H112: 0.03278 | I112: 0.03225419553 | J112: 0.03311595148 | K112: 0.03651018455 | L112: 0.03367
G113: 91 | H113: 0.03278 | I113: 0.03225419553 | J113: 0.03225419553 | K113: 0.0356484286 | L113: 0.03366
G114: 92 | H114: 0.03278 | I114: 0.03225419553 | J114: 0.03225419553 | K114: 0.0356484286 | L114: 0.03366
G115: 93 | H115: 0.03278 | I115: 0.03225419553 | J115: 0.03225419553 | K115: 0.0356484286 | L115: 0.03365
G116: 94 | H116: 0.03278 | I116: 0.03225419553 | J116: 0.03225419553 | K116: 0.0356484286 | L116: 0.03364
G117: 95 | H117: 0.03279 | I117: 0.03226387809 | J117: 0.03317403848 | K117: 0.03656827155 | L117: 0.03364
G118: 96 | H118: 0.03279 | I118: 0.03226387809 | J118: 0.03226387809 | K118: 0.03565811115 | L118: 0.03363
G119: 97 | H119: 0.03279 | I119: 0.03226387809 | J119: 0.03226387809 | K119: =J119+LN(1+V.TOTAL_VA) -> 0.03565811115 | L119: 0.03362
G120: 98 | H120: 0.03279 | I120: 0.03226387809 | J120: 0.03226387809 | K120: 0.03565811115 | L120: 0.03362
G121: 99 | H121: 0.0328 | I121: 0.03227356055 | J121: 0.03322244198 | K121: 0.03661667505 | L121: 0.03361
G122: 100 | H122: 0.0328 | I122: 0.03227356055 | J122: 0.03227356055 | K122: 0.03566779362 | L122: 0.0336
G123: 101 | H123: 0.0328 | I123: 0.03227356055 | J123: 0.03227356055 | K123: 0.03566779362 | L123: 0.0336
G124: 102 | H124: 0.0328 | I124: 0.03227356055 | J124: 0.03227356055 | K124: 0.03566779362 | L124: 0.03359
G125: 103 | H125: 0.0328 | I125: 0.03227356055 | J125: 0.03227356055 | K125: 0.03566779362 | L125: 0.03359
G126: 104 | H126: 0.03281 | I126: 0.03228324292 | J126: 0.03328052702 | K126: 0.03667476008 | L126: 0.03358
G127: 105 | H127: 0.03281 | I127: 0.03228324292 | J127: 0.03228324292 | K127: 0.03567747599 | L127: 0.03358
G128: 106 | H128: 0.03281 | I128: 0.03228324292 | J128: 0.03228324292 | K128: 0.03567747599 | L128: 0.03357
G129: 107 | H129: 0.03281 | I129: 0.03228324292 | J129: 0.03228324292 | K129: 0.03567747599 | L129: 0.03356
G130: 108 | H130: 0.03281 | I130: 0.03228324292 | J130: 0.03228324292 | K130: 0.03567747599 | L130: 0.03356
G131: 109 | H131: 0.03281 | I131: 0.03228324292 | J131: 0.03228324292 | K131: 0.03567747599 | L131: 0.03355
G132: 110 | H132: 0.03282 | I132: 0.0322929252 | J132: 0.03334829329 | K132: 0.03674252636 | L132: 0.03355
G133: 111 | H133: 0.03282 | I133: 0.0322929252 | J133: 0.0322929252 | K133: 0.03568715826 | L133: 0.03354
G134: 112 | H134: 0.03282 | I134: 0.0322929252 | J134: 0.0322929252 | K134: 0.03568715826 | L134: 0.03354
G135: 113 | H135: 0.03282 | I135: 0.0322929252 | J135: 0.0322929252 | K135: 0.03568715826 | L135: 0.03353
G136: 114 | H136: 0.03282 | I136: 0.0322929252 | J136: 0.0322929252 | K136: 0.03568715826 | L136: 0.03353
G137: 115 | H137: 0.03282 | I137: 0.0322929252 | J137: 0.0322929252 | K137: 0.03568715826 | L137: 0.03353
G138: 116 | H138: 0.03283 | I138: 0.03230260738 | J138: 0.03341605835 | K138: 0.03681029142 | L138: 0.03352
G139: 117 | H139: 0.03283 | I139: 0.03230260738 | J139: 0.03230260738 | K139: 0.03569684045 | L139: 0.03352
G140: 118 | H140: 0.03283 | I140: 0.03230260738 | J140: 0.03230260738 | K140: 0.03569684045 | L140: 0.03351
G141: 119 | H141: 0.03283 | I141: 0.03230260738 | J141: 0.03230260738 | K141: 0.03569684045 | L141: 0.03351
G142: 120 | H142: 0.03283 | I142: 0.03230260738 | J142: 0.03230260738 | K142: 0.03569684045 | L142: 0.0335
G143: 121 | H143: 0.03283 | I143: 0.03230260738 | J143: 0.03230260738 | K143: 0.03569684045 | L143: 0.0335
G144: 122 | H144: 0.03283 | I144: 0.03230260738 | J144: 0.03230260738 | K144: 0.03569684045 | L144: 0.0335
G145: 123 | H145: 0.03284 | I145: 0.03231228947 | J145: 0.03349350428 | K145: 0.03688773735 | L145: 0.03349
G146: 124 | H146: 0.03284 | I146: 0.03231228947 | J146: 0.03231228947 | K146: 0.03570652254 | L146: 0.03349
G147: 125 | H147: 0.03284 | I147: 0.03231228947 | J147: 0.03231228947 | K147: 0.03570652254 | L147: 0.03348
G148: 126 | H148: 0.03284 | I148: 0.03231228947 | J148: 0.03231228947 | K148: 0.03570652254 | L148: 0.03348
G149: 127 | H149: 0.03284 | I149: 0.03231228947 | J149: 0.03231228947 | K149: 0.03570652254 | L149: 0.03348
G150: 128 | H150: 0.03284 | I150: 0.03231228947 | J150: 0.03231228947 | K150: 0.03570652254 | L150: 0.03347
G151: 129 | H151: 0.03284 | I151: 0.03231228947 | J151: 0.03231228947 | K151: =J151+LN(1+V.TOTAL_VA) -> 0.03570652254 | L151: 0.03347
G152: 130 | H152: 0.03284 | I152: =LN(1+H152) -> 0.03231228947 | J152: 0.03231228947 | K152: 0.03570652254 | L152: 0.03346
G153: 131 | H153: 0.03285 | I153: 0.03232197146 | J153: =G153*I153-G152*I152 -> 0.0335806308 | K153: 0.03697486386 | L153: 0.03346
G154: 132 | H154: 0.03285 | I154: 0.03232197146 | J154: 0.03232197146 | K154: 0.03571620453 | L154: 0.03346
G155: 133 | H155: 0.03285 | I155: 0.03232197146 | J155: 0.03232197146 | K155: 0.03571620453 | L155: 0.03345
G156: 134 | H156: 0.03285 | I156: 0.03232197146 | J156: 0.03232197146 | K156: 0.03571620453 | L156: 0.03345
G157: 135 | H157: 0.03285 | I157: 0.03232197146 | J157: 0.03232197146 | K157: 0.03571620453 | L157: 0.03345
G158: 136 | H158: 0.03285 | I158: 0.03232197146 | J158: 0.03232197146 | K158: 0.03571620453 | L158: 0.03344
G159: 137 | H159: 0.03285 | I159: 0.03232197146 | J159: 0.03232197146 | K159: 0.03571620453 | L159: 0.03344
G160: 138 | H160: 0.03285 | I160: 0.03232197146 | J160: 0.03232197146 | K160: 0.03571620453 | L160: 0.03344
G161: 139 | H161: 0.03285 | I161: 0.03232197146 | J161: 0.03232197146 | K161: 0.03571620453 | L161: 0.03343
G162: 140 | H162: 0.03286 | I162: 0.03233165336 | J162: 0.03367743762 | K162: 0.03707167069 | L162: 0.03343
G163: 141 | H163: 0.03286 | I163: 0.03233165336 | J163: 0.03233165336 | K163: 0.03572588643 | L163: 0.03343
G164: 142 | H164: 0.03286 | I164: 0.03233165336 | J164: 0.03233165336 | K164: 0.03572588643 | L164: 0.03343
G165: 143 | H165: 0.03286 | I165: 0.03233165336 | J165: 0.03233165336 | K165: 0.03572588643 | L165: 0.03342
G166: 144 | H166: 0.03286 | I166: 0.03233165336 | J166: 0.03233165336 | K166: 0.03572588643 | L166: 0.03342
G167: 145 | H167: 0.03286 | I167: 0.03233165336 | J167: 0.03233165336 | K167: 0.03572588643 | L167: 0.03342
G168: 146 | H168: 0.03286 | I168: 0.03233165336 | J168: 0.03233165336 | K168: 0.03572588643 | L168: 0.03341
G169: 147 | H169: 0.03286 | I169: 0.03233165336 | J169: 0.03233165336 | K169: 0.03572588643 | L169: 0.03341
G170: 148 | H170: 0.03286 | I170: 0.03233165336 | J170: 0.03233165336 | K170: 0.03572588643 | L170: 0.03341
G171: 149 | H171: 0.03286 | I171: 0.03233165336 | J171: 0.03233165336 | K171: 0.03572588643 | L171: 0.03341
G172: 150 | H172: 0.03287 | I172: 0.03234133517 | J172: 0.03378392447 | K172: 0.03717815754 | L172: 0.0334

Sheet IRR Up Shock
Q3: =V.COPYRIGHT -> ©EIOPA, 2026.
F6: Interest Rate Risk Up Shock
H8: Curve Parameters
G10: FSP | H10: =V.FSP -> 20
G11: UFR | H11: =V.UFR + 0.0015 -> 0.0345
G12: VA | H12: =V.TOTAL_VA -> 0.0034
F17: Up Shock Risk-Free Interest Rate Term Structure
K19: LLFRIRR Up | L19: =GetLLFR(R.IRR_SHOCK_UP_CC,R.DLT,R.LLFR_WEIGHTS) -> 0.04047023312 | N19: LLFR*IRR Up | O19: =_xlfn.LET(_xlpm.FIRST_LLFR_WEIGHT, INDEX(R.LLFR_WEIGHTS, V.FSP), V.LLFR_IRR_UP + _xlpm.FIRST_LLFR_WEIGHT * LN(1+$H$12)) -> 0.04159033003
G21: Maturity [Y] | H21: Input Rate | I21: Bootstrapped Zero Rate AC | J21: IRR Shock Up AC | K21: IRR Shock Up CC | L21: IRR Up RFR | M21: Fwd IRR Shock Up CC | N21: Fwd + VA CC | O21: IRR Up with VA
G22: 1 | H22: =R.BASECURVE -> 0.02176 | I22: =_xlfn.LET(_xlpm.LLP, MAX(_xlfn._xlws.FILTER(R.MATURITY,R.DLT=1)), BootstrapCurve(V.INSTRUMENT,_xlfn.ANCHORARRAY(H22),R.DLT,"A",V.CRA,V.COUPON_FREQ,_xlpm.LLP,"A", "Z")) -> 0.02076 | J22: =_xlfn.LET(_xlpm.m, G22, _xlpm.rfr, I22, _xlpm.sm_up, INDEX(R.IRR_SM_UP, _xlpm.m), _xlpm.bm_up, INDEX(R.IRR_BM_UP, _xlpm.m), _xlpm.rfr * (1 + _xlpm.sm_up) + _xlpm.bm_up) -> 0.0548236 | K22: =LN(1+J22) -> 0.05337354916 | L22: =ROUND(Extrapolation(R.IRR_SHOCK_UP_CC, "Z", V.FSP, V.UFR_UP, V.LLFR_IRR_UP, V.ALPHA, "A"), 5) -> 0.05482 | M22: =K22 -> 0.05337354916 | N22: =M22+LN(1+V.TOTAL_VA) -> 0.05676778222 | O22: =ROUND(Extrapolation(N22:N171, "F", V.FSP,V.UFR_UP,V.LLFR_STAR_IRR_UP,V.ALPHA,"A"), 5) -> 0.05841
G23: 2 | H23: 0.022621 | I23: 0.02163031582 | J23: =_xlfn.LET(_xlpm.m, G23, _xlpm.rfr, I23, _xlpm.sm_up, INDEX(R.IRR_SM_UP, _xlpm.m), _xlpm.bm_up, INDEX(R.IRR_BM_UP, _xlpm.m), _xlpm.rfr * (1 + _xlpm.sm_up) + _xlpm.bm_up) -> 0.0516943832 | K23: =LN(1+J23) -> 0.05040256185 | L23: 0.05169 | M23: =G23*K23-G22*K22 -> 0.04743157454 | N23: 0.0508258076 | O23: 0.05527
G24: 3 | H24: 0.023795 | I24: 0.02282857841 | J24: =_xlfn.LET(_xlpm.m, G24, _xlpm.rfr, I24, _xlpm.sm_up, INDEX(R.IRR_SM_UP, _xlpm.m), _xlpm.bm_up, INDEX(R.IRR_BM_UP, _xlpm.m), _xlpm.rfr * (1 + _xlpm.sm_up) + _xlpm.bm_up) -> 0.05121458183 | K24: 0.04994624025 | L24: 0.05121 | M24: 0.04903359707 | N24: 0.05242783014 | O24: 0.05479
G25: 4 | H25: 0.0248 | I25: 0.0238629162 | J25: =_xlfn.LET(_xlpm.m, G25, _xlpm.rfr, I25, _xlpm.sm_up, INDEX(R.IRR_SM_UP, _xlpm.m), _xlpm.bm_up, INDEX(R.IRR_BM_UP, _xlpm.m), _xlpm.rfr * (1 + _xlpm.sm_up) + _xlpm.bm_up) -> 0.05093985766 | K25: 0.04968486633 | L25: 0.05094 | M25: 0.04890074458 | N25: 0.05229497765 | O25: 0.05451
G26: 5 | H26: 0.02569 | I26: 0.02478758696 | J26: =_xlfn.LET(_xlpm.m, G26, _xlpm.rfr, I26, _xlpm.sm_up, INDEX(R.IRR_SM_UP, _xlpm.m), _xlpm.bm_up, INDEX(R.IRR_BM_UP, _xlpm.m), _xlpm.rfr * (1 + _xlpm.sm_up) + _xlpm.bm_up) -> 0.0517420011 | K26: 0.05044783813 | L26: 0.05174 | M26: 0.05349972532 | N26: 0.05689395839 | O26: 0.05532
G27: 6 | H27: 0.02651 | I27: 0.02564867796 | J27: =_xlfn.LET(_xlpm.m, G27, _xlpm.rfr, I27, _xlpm.sm_up, INDEX(R.IRR_SM_UP, _xlpm.m), _xlpm.bm_up, INDEX(R.IRR_BM_UP, _xlpm.m), _xlpm.rfr * (1 + _xlpm.sm_up) + _xlpm.bm_up) -> 0.05056463592 | K27: 0.04932776813 | L27: 0.05056 | M27: 0.04372741811 | N27: 0.04712165118 | O27: 0.05414
G28: 7 | H28: 0.02732 | I28: 0.02651038123 | J28: =_xlfn.LET(_xlpm.m, G28, _xlpm.rfr, I28, _xlpm.sm_up, INDEX(R.IRR_SM_UP, _xlpm.m), _xlpm.bm_up, INDEX(R.IRR_BM_UP, _xlpm.m), _xlpm.rfr * (1 + _xlpm.sm_up) + _xlpm.bm_up) -> 0.04931922229 | K28: 0.04814159417 | L28: 0.04932 | M28: 0.04102455042 | N28: 0.04441878348 | O28: 0.05289
G29: 8 | H29: 0.028 | I29: 0.02723990278 | J29: =_xlfn.LET(_xlpm.m, G29, _xlpm.rfr, I29, _xlpm.sm_up, INDEX(R.IRR_SM_UP, _xlpm.m), _xlpm.bm_up, INDEX(R.IRR_BM_UP, _xlpm.m), _xlpm.rfr * (1 + _xlpm.sm_up) + _xlpm.bm_up) -> 0.04840146972 | K29: 0.04726659434 | L29: 0.0484 | M29: 0.04114159551 | N29: 0.04453582858 | O29: 0.05197
G30: 9 | H30: 0.028631 | I30: 0.02792520924 | J30: =_xlfn.LET(_xlpm.m, G30, _xlpm.rfr, I30, _xlpm.sm_up, INDEX(R.IRR_SM_UP, _xlpm.m), _xlpm.bm_up, INDEX(R.IRR_BM_UP, _xlpm.m), _xlpm.rfr * (1 + _xlpm.sm_up) + _xlpm.bm_up) -> 0.04806127619 | K30: 0.04694205384 | L30: 0.04806 | M30: 0.04434572985 | N30: 0.04773996292 | O30: 0.05162
G31: 10 | H31: 0.02927 | I31: 0.02863083559 | J31: =_xlfn.LET(_xlpm.m, G31, _xlpm.rfr, I31, _xlpm.sm_up, INDEX(R.IRR_SM_UP, _xlpm.m), _xlpm.bm_up, INDEX(R.IRR_BM_UP, _xlpm.m), _xlpm.rfr * (1 + _xlpm.sm_up) + _xlpm.bm_up) -> 0.04772008626 | K31: 0.04661645696 | L31: 0.04772 | M31: 0.04368608507 | N31: 0.04708031814 | O31: 0.05128
G32: 11 | H32: 0.02979 | I32: 0.02920816854 | J32: =_xlfn.LET(_xlpm.m, G32, _xlpm.rfr, I32, _xlpm.sm_up, INDEX(R.IRR_SM_UP, _xlpm.m), _xlpm.bm_up, INDEX(R.IRR_BM_UP, _xlpm.m), _xlpm.rfr * (1 + _xlpm.sm_up) + _xlpm.bm_up) -> 0.0484706191 | K32: 0.04733254912 | L32: 0.04847 | M32: 0.05449347074 | N32: 0.05788770381 | O32: 0.05204
G33: 12 | H33: 0.03027 | I33: 0.02974788573 | J33: =_xlfn.LET(_xlpm.m, G33, _xlpm.rfr, I33, _xlpm.sm_up, INDEX(R.IRR_SM_UP, _xlpm.m), _xlpm.bm_up, INDEX(R.IRR_BM_UP, _xlpm.m), _xlpm.rfr * (1 + _xlpm.sm_up) + _xlpm.bm_up) -> 0.04917225145 | K33: 0.04800152132 | L33: 0.04917 | M33: 0.05536021544 | N33: 0.05875444851 | O33: 0.05274
G34: 13 | H34: 0.030779 | I34: 0.03033329719 | J34: =_xlfn.LET(_xlpm.m, G34, _xlpm.rfr, I34, _xlpm.sm_up, INDEX(R.IRR_SM_UP, _xlpm.m), _xlpm.bm_up, INDEX(R.IRR_BM_UP, _xlpm.m), _xlpm.rfr * (1 + _xlpm.sm_up) + _xlpm.bm_up) -> 0.04993328634 | K34: 0.04872662534 | L34: 0.04993 | M34: 0.05742787356 | N34: 0.06082210663 | O34: 0.0535
G35: 14 | H35: 0.031124 | I35: 0.03072992789 | J35: =_xlfn.LET(_xlpm.m, G35, _xlpm.rfr, I35, _xlpm.sm_up, INDEX(R.IRR_SM_UP, _xlpm.m), _xlpm.bm_up, INDEX(R.IRR_BM_UP, _xlpm.m), _xlpm.rfr * (1 + _xlpm.sm_up) + _xlpm.bm_up) -> 0.04984160698 | K35: 0.0486393023 | L35: 0.04984 | M35: 0.0475041028 | N35: 0.05089833587 | O35: 0.05341
G36: 15 | H36: 0.03143 | I36: 0.03107379801 | J36: =_xlfn.LET(_xlpm.m, G36, _xlpm.rfr, I36, _xlpm.sm_up, INDEX(R.IRR_SM_UP, _xlpm.m), _xlpm.bm_up, INDEX(R.IRR_BM_UP, _xlpm.m), _xlpm.rfr * (1 + _xlpm.sm_up) + _xlpm.bm_up) -> 0.04957446145 | K36: 0.04838480721 | L36: 0.04957 | M36: 0.04482187604 | N36: 0.04821610911 | O36: 0.05314
G37: 16 | H37: 0.031742 | I37: 0.03132792462 | J37: =_xlfn.LET(_xlpm.m, G37, _xlpm.rfr, I37, _xlpm.sm_up, INDEX(R.IRR_SM_UP, _xlpm.m), _xlpm.bm_up, INDEX(R.IRR_BM_UP, _xlpm.m), _xlpm.rfr * (1 + _xlpm.sm_up) + _xlpm.bm_up) -> 0.04989974351 | K37: 0.04869467724 | L37: 0.0499 | M37: 0.05334272758 | N37: 0.05673696065 | O37: 0.05347
G38: 17 | H38: 0.03196 | I38: 0.03155220599 | J38: =_xlfn.LET(_xlpm.m, G38, _xlpm.rfr, I38, _xlpm.sm_up, INDEX(R.IRR_SM_UP, _xlpm.m), _xlpm.bm_up, INDEX(R.IRR_BM_UP, _xlpm.m), _xlpm.rfr * (1 + _xlpm.sm_up) + _xlpm.bm_up) -> 0.04957130161 | K38: 0.04838179661 | L38: 0.04957 | M38: 0.04337570664 | N38: 0.04676993971 | O38: 0.05314
G39: 18 | H39: 0.032131 | I39: 0.03175160816 | J39: =_xlfn.LET(_xlpm.m, G39, _xlpm.rfr, I39, _xlpm.sm_up, INDEX(R.IRR_SM_UP, _xlpm.m), _xlpm.bm_up, INDEX(R.IRR_BM_UP, _xlpm.m), _xlpm.rfr * (1 + _xlpm.sm_up) + _xlpm.bm_up) -> 0.04910702628 | K39: 0.04793935116 | L39: 0.04911 | M39: 0.04041777854 | N39: 0.0438120116 | O39: 0.05267
G40: 19 | H40: 0.032272 | I40: 0.03193005329 | J40: =_xlfn.LET(_xlpm.m, G40, _xlpm.rfr, I40, _xlpm.sm_up, INDEX(R.IRR_SM_UP, _xlpm.m), _xlpm.bm_up, INDEX(R.IRR_BM_UP, _xlpm.m), _xlpm.rfr * (1 + _xlpm.sm_up) + _xlpm.bm_up) -> 0.04933186715 | K40: 0.04815364463 | L40: 0.04933 | M40: 0.05201092706 | N40: 0.05540516012 | O40: 0.0529
G41: 20 | H41: 0.03233 | I41: 0.0320906803 | J41: =_xlfn.LET(_xlpm.m, G41, _xlpm.rfr, I41, _xlpm.sm_up, INDEX(R.IRR_SM_UP, _xlpm.m), _xlpm.bm_up, INDEX(R.IRR_BM_UP, _xlpm.m), _xlpm.rfr * (1 + _xlpm.sm_up) + _xlpm.bm_up) -> 0.04891335038 | K41: 0.04775472389 | L41: 0.04891 | M41: 0.0401752297 | N41: 0.04356946276 | O41: 0.05248
G42: 21 | H42: 0.03246 | I42: 0.03211260871 | J42: =_xlfn.LET(_xlpm.m, G42, _xlpm.rfr, I42, _xlpm.sm_up, INDEX(R.IRR_SM_UP, _xlpm.m), _xlpm.bm_up, INDEX(R.IRR_BM_UP, _xlpm.m), _xlpm.rfr * (1 + _xlpm.sm_up) + _xlpm.bm_up) -> 0.04884076088 | K42: 0.04768551702 | L42: 0.04853 | M42: 0.04630137962 | N42: 0.04969561269 | O42: 0.05198
G43: 22 | H43: 0.032511 | I43: 0.03213254402 | J43: =_xlfn.LET(_xlpm.m, G43, _xlpm.rfr, I43, _xlpm.sm_up, INDEX(R.IRR_SM_UP, _xlpm.m), _xlpm.bm_up, INDEX(R.IRR_BM_UP, _xlpm.m), _xlpm.rfr * (1 + _xlpm.sm_up) + _xlpm.bm_up) -> 0.04834435459 | K43: 0.04721211455 | L43: 0.04816 | M43: 0.0372706627 | N43: 0.04066489577 | O43: 0.05149
G44: 23 | H44: 0.032542 | I44: 0.03215074617 | J44: =_xlfn.LET(_xlpm.m, G44, _xlpm.rfr, I44, _xlpm.sm_up, INDEX(R.IRR_SM_UP, _xlpm.m), _xlpm.bm_up, INDEX(R.IRR_BM_UP, _xlpm.m), _xlpm.rfr * (1 + _xlpm.sm_up) + _xlpm.bm_up) -> 0.04806692525 | K44: 0.04694744383 | L44: 0.04778 | M44: 0.041124688 | N44: 0.04451892107 | O44: 0.05101
G45: 24 | H45: 0.032551 | I45: 0.03216743175 | J45: =_xlfn.LET(_xlpm.m, G45, _xlpm.rfr, I45, _xlpm.sm_up, INDEX(R.IRR_SM_UP, _xlpm.m), _xlpm.bm_up, INDEX(R.IRR_BM_UP, _xlpm.m), _xlpm.rfr * (1 + _xlpm.sm_up) + _xlpm.bm_up) -> 0.04756594105 | K45: 0.04646932172 | L45: 0.04742 | M45: 0.03547251316 | N45: 0.03886674623 | O45: 0.05055
G46: 25 | H46: 0.0325 | I46: 0.03218278272 | J46: =_xlfn.LET(_xlpm.m, G46, _xlpm.rfr, I46, _xlpm.sm_up, INDEX(R.IRR_SM_UP, _xlpm.m), _xlpm.bm_up, INDEX(R.IRR_BM_UP, _xlpm.m), _xlpm.rfr * (1 + _xlpm.sm_up) + _xlpm.bm_up) -> 0.04706299492 | K46: 0.04598909715 | L46: 0.04707 | M46: 0.03446370749 | N46: 0.03785794056 | O46: 0.0501
G47: 26 | H47: 0.03254 | I47: 0.03213156744 | J47: =_xlfn.LET(_xlpm.m, G47, _xlpm.rfr, I47, _xlpm.sm_up, INDEX(R.IRR_SM_UP, _xlpm.m), _xlpm.bm_up, INDEX(R.IRR_BM_UP, _xlpm.m), _xlpm.rfr * (1 + _xlpm.sm_up) + _xlpm.bm_up) -> 0.04680051228 | K47: 0.04573838105 | L47: 0.04673 | M47: 0.03947047857 | N47: 0.04286471164 | O47: 0.04966
G48: 27 | H48: 0.032528 | I48: 0.03208414815 | J48: =_xlfn.LET(_xlpm.m, G48, _xlpm.rfr, I48, _xlpm.sm_up, INDEX(R.IRR_SM_UP, _xlpm.m), _xlpm.bm_up, INDEX(R.IRR_BM_UP, _xlpm.m), _xlpm.rfr * (1 + _xlpm.sm_up) + _xlpm.bm_up) -> 0.04622181926 | K48: 0.04518540746 | L48: 0.0464 | M48: 0.03080809423 | N48: 0.0342023273 | O48: 0.04924
G49: 28 | H49: 0.03251 | I49: 0.0320401179 | J49: =_xlfn.LET(_xlpm.m, G49, _xlpm.rfr, I49, _xlpm.sm_up, INDEX(R.IRR_SM_UP, _xlpm.m), _xlpm.bm_up, INDEX(R.IRR_BM_UP, _xlpm.m), _xlpm.rfr * (1 + _xlpm.sm_up) + _xlpm.bm_up) -> 0.04596854266 | K49: 0.04494329125 | L49: 0.04608 | M49: 0.03840615354 | N49: 0.04180038661 | O49: 0.04884
G50: 29 | H50: 0.03249 | I50: 0.03199912591 | J50: =_xlfn.LET(_xlpm.m, G50, _xlpm.rfr, I50, _xlpm.sm_up, INDEX(R.IRR_SM_UP, _xlpm.m), _xlpm.bm_up, INDEX(R.IRR_BM_UP, _xlpm.m), _xlpm.rfr * (1 + _xlpm.sm_up) + _xlpm.bm_up) -> 0.04539895109 | K50: 0.04439858394 | L50: 0.04577 | M50: 0.02914677922 | N50: 0.03254101228 | O50: 0.04845
G51: 30 | H51: 0.032431 | I51: 0.03196086819 | J51: =_xlfn.LET(_xlpm.m, G51, _xlpm.rfr, I51, _xlpm.sm_up, INDEX(R.IRR_SM_UP, _xlpm.m), _xlpm.bm_up, INDEX(R.IRR_BM_UP, _xlpm.m), _xlpm.rfr * (1 + _xlpm.sm_up) + _xlpm.bm_up) -> 0.04525304182 | K51: 0.04425900139 | L51: 0.04547 | M51: 0.04021110746 | N51: 0.04360534052 | O51: 0.04808
G52: 31 | I52: 0.03186198827 | J52: =_xlfn.LET(_xlpm.m, G52, _xlpm.rfr, I52, _xlpm.sm_up, INDEX(R.IRR_SM_UP, _xlpm.m), _xlpm.bm_up, INDEX(R.IRR_BM_UP, _xlpm.m), _xlpm.rfr * (1 + _xlpm.sm_up) + _xlpm.bm_up) -> 0.04523438592 | K52: 0.04424115302 | L52: 0.04518 | M52: 0.04370570182 | N52: 0.04709993489 | O52: 0.04772
G53: 32 | I53: 0.03176929695 | J53: =_xlfn.LET(_xlpm.m, G53, _xlpm.rfr, I53, _xlpm.sm_up, INDEX(R.IRR_SM_UP, _xlpm.m), _xlpm.bm_up, INDEX(R.IRR_BM_UP, _xlpm.m), _xlpm.rfr * (1 + _xlpm.sm_up) + _xlpm.bm_up) -> 0.04522315634 | K53: 0.04423040936 | L53: 0.04491 | M53: 0.04389735596 | N53: 0.04729158903 | O53: 0.04737
G54: 33 | I54: 0.03168223088 | J54: =_xlfn.LET(_xlpm.m, G54, _xlpm.rfr, I54, _xlpm.sm_up, INDEX(R.IRR_SM_UP, _xlpm.m), _xlpm.bm_up, INDEX(R.IRR_BM_UP, _xlpm.m), _xlpm.rfr * (1 + _xlpm.sm_up) + _xlpm.bm_up) -> 0.04511867705 | K54: 0.04413044552 | L54: 0.04464 | M54: 0.04093160283 | N54: =M54+LN(1+V.TOTAL_VA) -> 0.0443258359 | O54: 0.04704
G55: 34 | I55: 0.03160029304 | J55: =_xlfn.LET(_xlpm.m, G55, _xlpm.rfr, I55, _xlpm.sm_up, INDEX(R.IRR_SM_UP, _xlpm.m), _xlpm.bm_up, INDEX(R.IRR_BM_UP, _xlpm.m), _xlpm.rfr * (1 + _xlpm.sm_up) + _xlpm.bm_up) -> 0.04502035165 | K55: 0.04403636049 | L55: 0.04439 | M55: =G55*K55-G54*K54 -> 0.04093155447 | N55: 0.04432578754 | O55: 0.04672
G56: 35 | I56: 0.03152304334 | J56: =_xlfn.LET(_xlpm.m, G56, _xlpm.rfr, I56, _xlpm.sm_up, INDEX(R.IRR_SM_UP, _xlpm.m), _xlpm.bm_up, INDEX(R.IRR_BM_UP, _xlpm.m), _xlpm.rfr * (1 + _xlpm.sm_up) + _xlpm.bm_up) -> 0.044927652 | K56: 0.04394765049 | L56: 0.04415 | M56: 0.04093151025 | N56: 0.04432574332 | O56: 0.04642
G57: 36 | I57: 0.03145009059 | J57: =_xlfn.LET(_xlpm.m, G57, _xlpm.rfr, I57, _xlpm.sm_up, INDEX(R.IRR_SM_UP, _xlpm.m), _xlpm.bm_up, INDEX(R.IRR_BM_UP, _xlpm.m), _xlpm.rfr * (1 + _xlpm.sm_up) + _xlpm.bm_up) -> 0.04494010871 | K57: 0.04395957153 | L57: 0.04391 | M57: 0.0443768081 | N57: 0.04777104117 | O57: 0.04613
G58: 37 | I58: 0.03138108598 | J58: =_xlfn.LET(_xlpm.m, G58, _xlpm.rfr, I58, _xlpm.sm_up, INDEX(R.IRR_SM_UP, _xlpm.m), _xlpm.bm_up, INDEX(R.IRR_BM_UP, _xlpm.m), _xlpm.rfr * (1 + _xlpm.sm_up) + _xlpm.bm_up) -> 0.04517111404 | K58: 0.0441806175 | L58: 0.04369 | M58: 0.05213827248 | N58: 0.05553250555 | O58: 0.04585
G59: 38 | I59: 0.03131571746 | J59: =_xlfn.LET(_xlpm.m, G59, _xlpm.rfr, I59, _xlpm.sm_up, INDEX(R.IRR_SM_UP, _xlpm.m), _xlpm.bm_up, INDEX(R.IRR_BM_UP, _xlpm.m), _xlpm.rfr * (1 + _xlpm.sm_up) + _xlpm.bm_up) -> 0.04509201812 | K59: 0.04410493716 | L59: 0.04347 | M59: 0.0413047644 | N59: 0.04469899746 | O59: 0.04558
G60: 39 | I60: 0.03125370499 | J60: =_xlfn.LET(_xlpm.m, G60, _xlpm.rfr, I60, _xlpm.sm_up, INDEX(R.IRR_SM_UP, _xlpm.m), _xlpm.bm_up, INDEX(R.IRR_BM_UP, _xlpm.m), _xlpm.rfr * (1 + _xlpm.sm_up) + _xlpm.bm_up) -> 0.04511698304 | K60: 0.04412882464 | L60: 0.04326 | M60: 0.04503654905 | N60: 0.04843078212 | O60: 0.04532
G61: 40 | H61: 0.03206 | I61: 0.0311947966 | J61: =_xlfn.LET(_xlpm.m, G61, _xlpm.rfr, I61, _xlpm.sm_up, INDEX(R.IRR_SM_UP, _xlpm.m), _xlpm.bm_up, INDEX(R.IRR_BM_UP, _xlpm.m), _xlpm.rfr * (1 + _xlpm.sm_up) + _xlpm.bm_up) -> 0.04504570389 | K61: 0.04406062024 | L61: 0.04306 | M61: 0.04140064852 | N61: 0.04479488159 | O61: 0.04507
G62: 41 | I62: 0.03101102737 | J62: =_xlfn.LET(_xlpm.m, G62, _xlpm.rfr, I62, _xlpm.sm_up, INDEX(R.IRR_SM_UP, _xlpm.m), _xlpm.bm_up, INDEX(R.IRR_BM_UP, _xlpm.m), _xlpm.rfr * (1 + _xlpm.sm_up) + _xlpm.bm_up) -> 0.04492334311 | K62: 0.04394352685 | L62: 0.04287 | M62: 0.03925979145 | N62: 0.04265402452 | O62: 0.04483
G63: 42 | I63: 0.03083603949 | J63: =_xlfn.LET(_xlpm.m, G63, _xlpm.rfr, I63, _xlpm.sm_up, INDEX(R.IRR_SM_UP, _xlpm.m), _xlpm.bm_up, INDEX(R.IRR_BM_UP, _xlpm.m), _xlpm.rfr * (1 + _xlpm.sm_up) + _xlpm.bm_up) -> 0.04471160779 | K63: 0.04374087392 | L63: 0.04268 | M63: 0.03543210366 | N63: 0.03882633673 | O63: 0.0446
G64: 43 | I64: 0.03066921825 | J64: =_xlfn.LET(_xlpm.m, G64, _xlpm.rfr, I64, _xlpm.sm_up, INDEX(R.IRR_SM_UP, _xlpm.m), _xlpm.bm_up, INDEX(R.IRR_BM_UP, _xlpm.m), _xlpm.rfr * (1 + _xlpm.sm_up) + _xlpm.bm_up) -> 0.04460975409 | K64: 0.0436433746 | L64: 0.04251 | M64: 0.03954840331 | N64: 0.04294263638 | O64: 0.04438
G65: 44 | I65: 0.03051000498 | J65: =_xlfn.LET(_xlpm.m, G65, _xlpm.rfr, I65, _xlpm.sm_up, INDEX(R.IRR_SM_UP, _xlpm.m), _xlpm.bm_up, INDEX(R.IRR_BM_UP, _xlpm.m), _xlpm.rfr * (1 + _xlpm.sm_up) + _xlpm.bm_up) -> 0.04441710603 | K65: 0.04345893651 | L65: 0.04234 | M65: 0.03552809866 | N65: 0.03892233172 | O65: 0.04417
G66: 45 | I66: 0.03035789083 | J66: =_xlfn.LET(_xlpm.m, G66, _xlpm.rfr, I66, _xlpm.sm_up, INDEX(R.IRR_SM_UP, _xlpm.m), _xlpm.bm_up, INDEX(R.IRR_BM_UP, _xlpm.m), _xlpm.rfr * (1 + _xlpm.sm_up) + _xlpm.bm_up) -> 0.04423304791 | K66: 0.04328269051 | L66: 0.04217 | M66: 0.03552786638 | N66: 0.03892209944 | O66: 0.04397
G67: 46 | I67: 0.03021241135 | J67: =_xlfn.LET(_xlpm.m, G67, _xlpm.rfr, I67, _xlpm.sm_up, INDEX(R.IRR_SM_UP, _xlpm.m), _xlpm.bm_up, INDEX(R.IRR_BM_UP, _xlpm.m), _xlpm.rfr * (1 + _xlpm.sm_up) + _xlpm.bm_up) -> 0.04405701773 | K67: 0.04311410266 | L67: 0.04201 | M67: 0.0355276492 | N67: 0.03892188227 | O67: 0.04377
G68: 47 | I68: 0.03007314174 | J68: =_xlfn.LET(_xlpm.m, G68, _xlpm.rfr, I68, _xlpm.sm_up, INDEX(R.IRR_SM_UP, _xlpm.m), _xlpm.bm_up, INDEX(R.IRR_BM_UP, _xlpm.m), _xlpm.rfr * (1 + _xlpm.sm_up) + _xlpm.bm_up) -> 0.0438885015 | K68: 0.04295268443 | L68: 0.04186 | M68: 0.03552744585 | N68: 0.03892167892 | O68: 0.04358
G69: 48 | I69: 0.02993969269 | J69: =_xlfn.LET(_xlpm.m, G69, _xlpm.rfr, I69, _xlpm.sm_up, INDEX(R.IRR_SM_UP, _xlpm.m), _xlpm.bm_up, INDEX(R.IRR_BM_UP, _xlpm.m), _xlpm.rfr * (1 + _xlpm.sm_up) + _xlpm.bm_up) -> 0.04362702815 | K69: 0.0427021729 | L69: 0.04171 | M69: 0.03092813123 | N69: 0.0343223643 | O69: 0.0434
G70: 49 | I70: 0.02981170678 | J70: =_xlfn.LET(_xlpm.m, G70, _xlpm.rfr, I70, _xlpm.sm_up, INDEX(R.IRR_SM_UP, _xlpm.m), _xlpm.bm_up, INDEX(R.IRR_BM_UP, _xlpm.m), _xlpm.rfr * (1 + _xlpm.sm_up) + _xlpm.bm_up) -> 0.04347216521 | K70: 0.04255377273 | L70: 0.04157 | M70: 0.03543056431 | N70: 0.03882479737 | O70: 0.04322
G71: 50 | H71: 0.03131 | I71: 0.02968885528 | J71: =_xlfn.LET(_xlpm.m, G71, _xlpm.rfr, I71, _xlpm.sm_up, INDEX(R.IRR_SM_UP, _xlpm.m), _xlpm.bm_up, INDEX(R.IRR_BM_UP, _xlpm.m), _xlpm.rfr * (1 + _xlpm.sm_up) + _xlpm.bm_up) -> 0.04322351489 | K71: 0.04231545305 | L71: 0.04144 | M71: 0.03063778882 | N71: 0.03403202188 | O71: 0.04306
G72: 51 | J72: =_xlfn.LET(_xlpm.m, G72, _xlpm.rfr, I72, _xlpm.sm_up, INDEX(R.IRR_SM_UP, _xlpm.m), _xlpm.bm_up, INDEX(R.IRR_BM_UP, _xlpm.m), _xlpm.rfr * (1 + _xlpm.sm_up) + _xlpm.bm_up) ->  | L72: 0.0413 | O72: 0.04289
G73: 52 | J73: =_xlfn.LET(_xlpm.m, G73, _xlpm.rfr, I73, _xlpm.sm_up, INDEX(R.IRR_SM_UP, _xlpm.m), _xlpm.bm_up, INDEX(R.IRR_BM_UP, _xlpm.m), _xlpm.rfr * (1 + _xlpm.sm_up) + _xlpm.bm_up) ->  | L73: 0.04118 | O73: 0.04273
G74: 53 | J74: =_xlfn.LET(_xlpm.m, G74, _xlpm.rfr, I74, _xlpm.sm_up, INDEX(R.IRR_SM_UP, _xlpm.m), _xlpm.bm_up, INDEX(R.IRR_BM_UP, _xlpm.m), _xlpm.rfr * (1 + _xlpm.sm_up) + _xlpm.bm_up) ->  | L74: 0.04105 | O74: 0.04258
G75: 54 | J75: =_xlfn.LET(_xlpm.m, G75, _xlpm.rfr, I75, _xlpm.sm_up, INDEX(R.IRR_SM_UP, _xlpm.m), _xlpm.bm_up, INDEX(R.IRR_BM_UP, _xlpm.m), _xlpm.rfr * (1 + _xlpm.sm_up) + _xlpm.bm_up) ->  | L75: 0.04094 | O75: 0.04244
G76: 55 | J76: =_xlfn.LET(_xlpm.m, G76, _xlpm.rfr, I76, _xlpm.sm_up, INDEX(R.IRR_SM_UP, _xlpm.m), _xlpm.bm_up, INDEX(R.IRR_BM_UP, _xlpm.m), _xlpm.rfr * (1 + _xlpm.sm_up) + _xlpm.bm_up) ->  | L76: 0.04082 | O76: 0.0423
G77: 56 | J77: =_xlfn.LET(_xlpm.m, G77, _xlpm.rfr, I77, _xlpm.sm_up, INDEX(R.IRR_SM_UP, _xlpm.m), _xlpm.bm_up, INDEX(R.IRR_BM_UP, _xlpm.m), _xlpm.rfr * (1 + _xlpm.sm_up) + _xlpm.bm_up) ->  | L77: 0.04071 | O77: 0.04216
G78: 57 | J78: =_xlfn.LET(_xlpm.m, G78, _xlpm.rfr, I78, _xlpm.sm_up, INDEX(R.IRR_SM_UP, _xlpm.m), _xlpm.bm_up, INDEX(R.IRR_BM_UP, _xlpm.m), _xlpm.rfr * (1 + _xlpm.sm_up) + _xlpm.bm_up) ->  | L78: 0.0406 | O78: 0.04203
G79: 58 | J79: =_xlfn.LET(_xlpm.m, G79, _xlpm.rfr, I79, _xlpm.sm_up, INDEX(R.IRR_SM_UP, _xlpm.m), _xlpm.bm_up, INDEX(R.IRR_BM_UP, _xlpm.m), _xlpm.rfr * (1 + _xlpm.sm_up) + _xlpm.bm_up) ->  | L79: 0.0405 | O79: 0.0419
G80: 59 | J80: =_xlfn.LET(_xlpm.m, G80, _xlpm.rfr, I80, _xlpm.sm_up, INDEX(R.IRR_SM_UP, _xlpm.m), _xlpm.bm_up, INDEX(R.IRR_BM_UP, _xlpm.m), _xlpm.rfr * (1 + _xlpm.sm_up) + _xlpm.bm_up) ->  | L80: 0.0404 | O80: 0.04177
G81: 60 | J81: =_xlfn.LET(_xlpm.m, G81, _xlpm.rfr, I81, _xlpm.sm_up, INDEX(R.IRR_SM_UP, _xlpm.m), _xlpm.bm_up, INDEX(R.IRR_BM_UP, _xlpm.m), _xlpm.rfr * (1 + _xlpm.sm_up) + _xlpm.bm_up) ->  | L81: 0.0403 | O81: 0.04165
G82: 61 | J82: =_xlfn.LET(_xlpm.m, G82, _xlpm.rfr, I82, _xlpm.sm_up, INDEX(R.IRR_SM_UP, _xlpm.m), _xlpm.bm_up, INDEX(R.IRR_BM_UP, _xlpm.m), _xlpm.rfr * (1 + _xlpm.sm_up) + _xlpm.bm_up) ->  | L82: 0.04021 | O82: 0.04154
G83: 62 | J83: =_xlfn.LET(_xlpm.m, G83, _xlpm.rfr, I83, _xlpm.sm_up, INDEX(R.IRR_SM_UP, _xlpm.m), _xlpm.bm_up, INDEX(R.IRR_BM_UP, _xlpm.m), _xlpm.rfr * (1 + _xlpm.sm_up) + _xlpm.bm_up) ->  | L83: 0.04012 | O83: 0.04143
G84: 63 | J84: =_xlfn.LET(_xlpm.m, G84, _xlpm.rfr, I84, _xlpm.sm_up, INDEX(R.IRR_SM_UP, _xlpm.m), _xlpm.bm_up, INDEX(R.IRR_BM_UP, _xlpm.m), _xlpm.rfr * (1 + _xlpm.sm_up) + _xlpm.bm_up) ->  | L84: 0.04003 | O84: 0.04132
G85: 64 | J85: =_xlfn.LET(_xlpm.m, G85, _xlpm.rfr, I85, _xlpm.sm_up, INDEX(R.IRR_SM_UP, _xlpm.m), _xlpm.bm_up, INDEX(R.IRR_BM_UP, _xlpm.m), _xlpm.rfr * (1 + _xlpm.sm_up) + _xlpm.bm_up) ->  | L85: 0.03994 | O85: 0.04121
G86: 65 | J86: =_xlfn.LET(_xlpm.m, G86, _xlpm.rfr, I86, _xlpm.sm_up, INDEX(R.IRR_SM_UP, _xlpm.m), _xlpm.bm_up, INDEX(R.IRR_BM_UP, _xlpm.m), _xlpm.rfr * (1 + _xlpm.sm_up) + _xlpm.bm_up) ->  | L86: 0.03986 | N86: =M86+LN(1+V.TOTAL_VA) ->  | O86: 0.04111
G87: 66 | J87: =_xlfn.LET(_xlpm.m, G87, _xlpm.rfr, I87, _xlpm.sm_up, INDEX(R.IRR_SM_UP, _xlpm.m), _xlpm.bm_up, INDEX(R.IRR_BM_UP, _xlpm.m), _xlpm.rfr * (1 + _xlpm.sm_up) + _xlpm.bm_up) ->  | K87: =LN(1+J87) ->  | L87: 0.03978 | M87: =G87*K87-G86*K86 ->  | O87: 0.04101
G88: 67 | J88: =_xlfn.LET(_xlpm.m, G88, _xlpm.rfr, I88, _xlpm.sm_up, INDEX(R.IRR_SM_UP, _xlpm.m), _xlpm.bm_up, INDEX(R.IRR_BM_UP, _xlpm.m), _xlpm.rfr * (1 + _xlpm.sm_up) + _xlpm.bm_up) ->  | L88: 0.0397 | O88: 0.04091
G89: 68 | J89: =_xlfn.LET(_xlpm.m, G89, _xlpm.rfr, I89, _xlpm.sm_up, INDEX(R.IRR_SM_UP, _xlpm.m), _xlpm.bm_up, INDEX(R.IRR_BM_UP, _xlpm.m), _xlpm.rfr * (1 + _xlpm.sm_up) + _xlpm.bm_up) ->  | L89: 0.03962 | O89: 0.04082
G90: 69 | J90: =_xlfn.LET(_xlpm.m, G90, _xlpm.rfr, I90, _xlpm.sm_up, INDEX(R.IRR_SM_UP, _xlpm.m), _xlpm.bm_up, INDEX(R.IRR_BM_UP, _xlpm.m), _xlpm.rfr * (1 + _xlpm.sm_up) + _xlpm.bm_up) ->  | L90: 0.03955 | O90: 0.04073
G91: 70 | J91: =_xlfn.LET(_xlpm.m, G91, _xlpm.rfr, I91, _xlpm.sm_up, INDEX(R.IRR_SM_UP, _xlpm.m), _xlpm.bm_up, INDEX(R.IRR_BM_UP, _xlpm.m), _xlpm.rfr * (1 + _xlpm.sm_up) + _xlpm.bm_up) ->  | L91: 0.03948 | O91: 0.04064
G92: 71 | J92: =_xlfn.LET(_xlpm.m, G92, _xlpm.rfr, I92, _xlpm.sm_up, INDEX(R.IRR_SM_UP, _xlpm.m), _xlpm.bm_up, INDEX(R.IRR_BM_UP, _xlpm.m), _xlpm.rfr * (1 + _xlpm.sm_up) + _xlpm.bm_up) ->  | L92: 0.03941 | O92: 0.04055
G93: 72 | J93: =_xlfn.LET(_xlpm.m, G93, _xlpm.rfr, I93, _xlpm.sm_up, INDEX(R.IRR_SM_UP, _xlpm.m), _xlpm.bm_up, INDEX(R.IRR_BM_UP, _xlpm.m), _xlpm.rfr * (1 + _xlpm.sm_up) + _xlpm.bm_up) ->  | L93: 0.03934 | O93: 0.04047
G94: 73 | J94: =_xlfn.LET(_xlpm.m, G94, _xlpm.rfr, I94, _xlpm.sm_up, INDEX(R.IRR_SM_UP, _xlpm.m), _xlpm.bm_up, INDEX(R.IRR_BM_UP, _xlpm.m), _xlpm.rfr * (1 + _xlpm.sm_up) + _xlpm.bm_up) ->  | L94: 0.03927 | O94: 0.04039
G95: 74 | J95: =_xlfn.LET(_xlpm.m, G95, _xlpm.rfr, I95, _xlpm.sm_up, INDEX(R.IRR_SM_UP, _xlpm.m), _xlpm.bm_up, INDEX(R.IRR_BM_UP, _xlpm.m), _xlpm.rfr * (1 + _xlpm.sm_up) + _xlpm.bm_up) ->  | L95: 0.03921 | O95: 0.04031
G96: 75 | J96: =_xlfn.LET(_xlpm.m, G96, _xlpm.rfr, I96, _xlpm.sm_up, INDEX(R.IRR_SM_UP, _xlpm.m), _xlpm.bm_up, INDEX(R.IRR_BM_UP, _xlpm.m), _xlpm.rfr * (1 + _xlpm.sm_up) + _xlpm.bm_up) ->  | L96: 0.03915 | O96: 0.04023
G97: 76 | J97: =_xlfn.LET(_xlpm.m, G97, _xlpm.rfr, I97, _xlpm.sm_up, INDEX(R.IRR_SM_UP, _xlpm.m), _xlpm.bm_up, INDEX(R.IRR_BM_UP, _xlpm.m), _xlpm.rfr * (1 + _xlpm.sm_up) + _xlpm.bm_up) ->  | L97: 0.03909 | O97: 0.04015
G98: 77 | J98: =_xlfn.LET(_xlpm.m, G98, _xlpm.rfr, I98, _xlpm.sm_up, INDEX(R.IRR_SM_UP, _xlpm.m), _xlpm.bm_up, INDEX(R.IRR_BM_UP, _xlpm.m), _xlpm.rfr * (1 + _xlpm.sm_up) + _xlpm.bm_up) ->  | L98: 0.03903 | O98: 0.04008
G99: 78 | J99: =_xlfn.LET(_xlpm.m, G99, _xlpm.rfr, I99, _xlpm.sm_up, INDEX(R.IRR_SM_UP, _xlpm.m), _xlpm.bm_up, INDEX(R.IRR_BM_UP, _xlpm.m), _xlpm.rfr * (1 + _xlpm.sm_up) + _xlpm.bm_up) ->  | L99: 0.03897 | O99: 0.04001
G100: 79 | J100: =_xlfn.LET(_xlpm.m, G100, _xlpm.rfr, I100, _xlpm.sm_up, INDEX(R.IRR_SM_UP, _xlpm.m), _xlpm.bm_up, INDEX(R.IRR_BM_UP, _xlpm.m), _xlpm.rfr * (1 + _xlpm.sm_up) + _xlpm.bm_up) ->  | L100: 0.03891 | O100: 0.03994
G101: 80 | J101: =_xlfn.LET(_xlpm.m, G101, _xlpm.rfr, I101, _xlpm.sm_up, INDEX(R.IRR_SM_UP, _xlpm.m), _xlpm.bm_up, INDEX(R.IRR_BM_UP, _xlpm.m), _xlpm.rfr * (1 + _xlpm.sm_up) + _xlpm.bm_up) ->  | L101: 0.03886 | O101: 0.03987
G102: 81 | J102: =_xlfn.LET(_xlpm.m, G102, _xlpm.rfr, I102, _xlpm.sm_up, INDEX(R.IRR_SM_UP, _xlpm.m), _xlpm.bm_up, INDEX(R.IRR_BM_UP, _xlpm.m), _xlpm.rfr * (1 + _xlpm.sm_up) + _xlpm.bm_up) ->  | L102: 0.0388 | O102: 0.0398
G103: 82 | J103: =_xlfn.LET(_xlpm.m, G103, _xlpm.rfr, I103, _xlpm.sm_up, INDEX(R.IRR_SM_UP, _xlpm.m), _xlpm.bm_up, INDEX(R.IRR_BM_UP, _xlpm.m), _xlpm.rfr * (1 + _xlpm.sm_up) + _xlpm.bm_up) ->  | L103: 0.03875 | O103: 0.03974
G104: 83 | J104: =_xlfn.LET(_xlpm.m, G104, _xlpm.rfr, I104, _xlpm.sm_up, INDEX(R.IRR_SM_UP, _xlpm.m), _xlpm.bm_up, INDEX(R.IRR_BM_UP, _xlpm.m), _xlpm.rfr * (1 + _xlpm.sm_up) + _xlpm.bm_up) ->  | L104: 0.0387 | O104: 0.03968
G105: 84 | J105: =_xlfn.LET(_xlpm.m, G105, _xlpm.rfr, I105, _xlpm.sm_up, INDEX(R.IRR_SM_UP, _xlpm.m), _xlpm.bm_up, INDEX(R.IRR_BM_UP, _xlpm.m), _xlpm.rfr * (1 + _xlpm.sm_up) + _xlpm.bm_up) ->  | L105: 0.03865 | O105: 0.03961
G106: 85 | J106: =_xlfn.LET(_xlpm.m, G106, _xlpm.rfr, I106, _xlpm.sm_up, INDEX(R.IRR_SM_UP, _xlpm.m), _xlpm.bm_up, INDEX(R.IRR_BM_UP, _xlpm.m), _xlpm.rfr * (1 + _xlpm.sm_up) + _xlpm.bm_up) ->  | L106: 0.0386 | O106: 0.03955
G107: 86 | J107: =_xlfn.LET(_xlpm.m, G107, _xlpm.rfr, I107, _xlpm.sm_up, INDEX(R.IRR_SM_UP, _xlpm.m), _xlpm.bm_up, INDEX(R.IRR_BM_UP, _xlpm.m), _xlpm.rfr * (1 + _xlpm.sm_up) + _xlpm.bm_up) ->  | L107: 0.03855 | O107: 0.0395
G108: 87 | J108: =_xlfn.LET(_xlpm.m, G108, _xlpm.rfr, I108, _xlpm.sm_up, INDEX(R.IRR_SM_UP, _xlpm.m), _xlpm.bm_up, INDEX(R.IRR_BM_UP, _xlpm.m), _xlpm.rfr * (1 + _xlpm.sm_up) + _xlpm.bm_up) ->  | L108: 0.03851 | O108: 0.03944
G109: 88 | J109: =_xlfn.LET(_xlpm.m, G109, _xlpm.rfr, I109, _xlpm.sm_up, INDEX(R.IRR_SM_UP, _xlpm.m), _xlpm.bm_up, INDEX(R.IRR_BM_UP, _xlpm.m), _xlpm.rfr * (1 + _xlpm.sm_up) + _xlpm.bm_up) ->  | L109: 0.03846 | O109: 0.03938
G110: 89 | J110: =_xlfn.LET(_xlpm.m, G110, _xlpm.rfr, I110, _xlpm.sm_up, INDEX(R.IRR_SM_UP, _xlpm.m), _xlpm.bm_up, INDEX(R.IRR_BM_UP, _xlpm.m), _xlpm.rfr * (1 + _xlpm.sm_up) + _xlpm.bm_up) ->  | L110: 0.03842 | O110: 0.03933
G111: 90 | J111: =_xlfn.LET(_xlpm.m, G111, _xlpm.rfr, I111, _xlpm.sm_up, INDEX(R.IRR_SM_UP, _xlpm.m), _xlpm.bm_up, INDEX(R.IRR_BM_UP, _xlpm.m), _xlpm.rfr * (1 + _xlpm.sm_up) + _xlpm.bm_up) ->  | L111: 0.03837 | O111: 0.03927
G112: 91 | J112: =_xlfn.LET(_xlpm.m, G112, _xlpm.rfr, I112, _xlpm.sm_up, INDEX(R.IRR_SM_UP, _xlpm.m), _xlpm.bm_up, INDEX(R.IRR_BM_UP, _xlpm.m), _xlpm.rfr * (1 + _xlpm.sm_up) + _xlpm.bm_up) ->  | L112: 0.03833 | O112: 0.03922
G113: 92 | J113: =_xlfn.LET(_xlpm.m, G113, _xlpm.rfr, I113, _xlpm.sm_up, INDEX(R.IRR_SM_UP, _xlpm.m), _xlpm.bm_up, INDEX(R.IRR_BM_UP, _xlpm.m), _xlpm.rfr * (1 + _xlpm.sm_up) + _xlpm.bm_up) ->  | L113: 0.03829 | O113: 0.03917
G114: 93 | J114: =_xlfn.LET(_xlpm.m, G114, _xlpm.rfr, I114, _xlpm.sm_up, INDEX(R.IRR_SM_UP, _xlpm.m), _xlpm.bm_up, INDEX(R.IRR_BM_UP, _xlpm.m), _xlpm.rfr * (1 + _xlpm.sm_up) + _xlpm.bm_up) ->  | L114: 0.03825 | O114: 0.03912
G115: 94 | J115: =_xlfn.LET(_xlpm.m, G115, _xlpm.rfr, I115, _xlpm.sm_up, INDEX(R.IRR_SM_UP, _xlpm.m), _xlpm.bm_up, INDEX(R.IRR_BM_UP, _xlpm.m), _xlpm.rfr * (1 + _xlpm.sm_up) + _xlpm.bm_up) ->  | L115: 0.03821 | O115: 0.03907
G116: 95 | J116: =_xlfn.LET(_xlpm.m, G116, _xlpm.rfr, I116, _xlpm.sm_up, INDEX(R.IRR_SM_UP, _xlpm.m), _xlpm.bm_up, INDEX(R.IRR_BM_UP, _xlpm.m), _xlpm.rfr * (1 + _xlpm.sm_up) + _xlpm.bm_up) ->  | L116: 0.03817 | O116: 0.03902
G117: 96 | J117: =_xlfn.LET(_xlpm.m, G117, _xlpm.rfr, I117, _xlpm.sm_up, INDEX(R.IRR_SM_UP, _xlpm.m), _xlpm.bm_up, INDEX(R.IRR_BM_UP, _xlpm.m), _xlpm.rfr * (1 + _xlpm.sm_up) + _xlpm.bm_up) ->  | L117: 0.03813 | O117: 0.03897
G118: 97 | J118: =_xlfn.LET(_xlpm.m, G118, _xlpm.rfr, I118, _xlpm.sm_up, INDEX(R.IRR_SM_UP, _xlpm.m), _xlpm.bm_up, INDEX(R.IRR_BM_UP, _xlpm.m), _xlpm.rfr * (1 + _xlpm.sm_up) + _xlpm.bm_up) ->  | L118: 0.03809 | N118: =M118+LN(1+V.TOTAL_VA) ->  | O118: 0.03893
G119: 98 | J119: =_xlfn.LET(_xlpm.m, G119, _xlpm.rfr, I119, _xlpm.sm_up, INDEX(R.IRR_SM_UP, _xlpm.m), _xlpm.bm_up, INDEX(R.IRR_BM_UP, _xlpm.m), _xlpm.rfr * (1 + _xlpm.sm_up) + _xlpm.bm_up) ->  | L119: 0.03806 | M119: =G119*K119-G118*K118 ->  | O119: 0.03888
G120: 99 | J120: =_xlfn.LET(_xlpm.m, G120, _xlpm.rfr, I120, _xlpm.sm_up, INDEX(R.IRR_SM_UP, _xlpm.m), _xlpm.bm_up, INDEX(R.IRR_BM_UP, _xlpm.m), _xlpm.rfr * (1 + _xlpm.sm_up) + _xlpm.bm_up) ->  | L120: 0.03802 | O120: 0.03884
G121: 100 | J121: =_xlfn.LET(_xlpm.m, G121, _xlpm.rfr, I121, _xlpm.sm_up, INDEX(R.IRR_SM_UP, _xlpm.m), _xlpm.bm_up, INDEX(R.IRR_BM_UP, _xlpm.m), _xlpm.rfr * (1 + _xlpm.sm_up) + _xlpm.bm_up) ->  | L121: 0.03798 | O121: 0.0388
G122: 101 | J122: =_xlfn.LET(_xlpm.m, G122, _xlpm.rfr, I122, _xlpm.sm_up, INDEX(R.IRR_SM_UP, _xlpm.m), _xlpm.bm_up, INDEX(R.IRR_BM_UP, _xlpm.m), _xlpm.rfr * (1 + _xlpm.sm_up) + _xlpm.bm_up) ->  | L122: 0.03795 | O122: 0.03875
G123: 102 | J123: =_xlfn.LET(_xlpm.m, G123, _xlpm.rfr, I123, _xlpm.sm_up, INDEX(R.IRR_SM_UP, _xlpm.m), _xlpm.bm_up, INDEX(R.IRR_BM_UP, _xlpm.m), _xlpm.rfr * (1 + _xlpm.sm_up) + _xlpm.bm_up) ->  | L123: 0.03792 | O123: 0.03871
G124: 103 | J124: =_xlfn.LET(_xlpm.m, G124, _xlpm.rfr, I124, _xlpm.sm_up, INDEX(R.IRR_SM_UP, _xlpm.m), _xlpm.bm_up, INDEX(R.IRR_BM_UP, _xlpm.m), _xlpm.rfr * (1 + _xlpm.sm_up) + _xlpm.bm_up) ->  | L124: 0.03788 | O124: 0.03867
G125: 104 | J125: =_xlfn.LET(_xlpm.m, G125, _xlpm.rfr, I125, _xlpm.sm_up, INDEX(R.IRR_SM_UP, _xlpm.m), _xlpm.bm_up, INDEX(R.IRR_BM_UP, _xlpm.m), _xlpm.rfr * (1 + _xlpm.sm_up) + _xlpm.bm_up) ->  | L125: 0.03785 | O125: 0.03863
G126: 105 | J126: =_xlfn.LET(_xlpm.m, G126, _xlpm.rfr, I126, _xlpm.sm_up, INDEX(R.IRR_SM_UP, _xlpm.m), _xlpm.bm_up, INDEX(R.IRR_BM_UP, _xlpm.m), _xlpm.rfr * (1 + _xlpm.sm_up) + _xlpm.bm_up) ->  | L126: 0.03782 | O126: 0.03859
G127: 106 | J127: =_xlfn.LET(_xlpm.m, G127, _xlpm.rfr, I127, _xlpm.sm_up, INDEX(R.IRR_SM_UP, _xlpm.m), _xlpm.bm_up, INDEX(R.IRR_BM_UP, _xlpm.m), _xlpm.rfr * (1 + _xlpm.sm_up) + _xlpm.bm_up) ->  | L127: 0.03779 | O127: 0.03855
G128: 107 | J128: =_xlfn.LET(_xlpm.m, G128, _xlpm.rfr, I128, _xlpm.sm_up, INDEX(R.IRR_SM_UP, _xlpm.m), _xlpm.bm_up, INDEX(R.IRR_BM_UP, _xlpm.m), _xlpm.rfr * (1 + _xlpm.sm_up) + _xlpm.bm_up) ->  | L128: 0.03776 | O128: 0.03851
G129: 108 | J129: =_xlfn.LET(_xlpm.m, G129, _xlpm.rfr, I129, _xlpm.sm_up, INDEX(R.IRR_SM_UP, _xlpm.m), _xlpm.bm_up, INDEX(R.IRR_BM_UP, _xlpm.m), _xlpm.rfr * (1 + _xlpm.sm_up) + _xlpm.bm_up) ->  | L129: 0.03773 | O129: 0.03848
G130: 109 | J130: =_xlfn.LET(_xlpm.m, G130, _xlpm.rfr, I130, _xlpm.sm_up, INDEX(R.IRR_SM_UP, _xlpm.m), _xlpm.bm_up, INDEX(R.IRR_BM_UP, _xlpm.m), _xlpm.rfr * (1 + _xlpm.sm_up) + _xlpm.bm_up) ->  | L130: 0.0377 | O130: 0.03844
G131: 110 | J131: =_xlfn.LET(_xlpm.m, G131, _xlpm.rfr, I131, _xlpm.sm_up, INDEX(R.IRR_SM_UP, _xlpm.m), _xlpm.bm_up, INDEX(R.IRR_BM_UP, _xlpm.m), _xlpm.rfr * (1 + _xlpm.sm_up) + _xlpm.bm_up) ->  | L131: 0.03767 | O131: 0.0384
G132: 111 | J132: =_xlfn.LET(_xlpm.m, G132, _xlpm.rfr, I132, _xlpm.sm_up, INDEX(R.IRR_SM_UP, _xlpm.m), _xlpm.bm_up, INDEX(R.IRR_BM_UP, _xlpm.m), _xlpm.rfr * (1 + _xlpm.sm_up) + _xlpm.bm_up) ->  | L132: 0.03764 | O132: 0.03837
G133: 112 | J133: =_xlfn.LET(_xlpm.m, G133, _xlpm.rfr, I133, _xlpm.sm_up, INDEX(R.IRR_SM_UP, _xlpm.m), _xlpm.bm_up, INDEX(R.IRR_BM_UP, _xlpm.m), _xlpm.rfr * (1 + _xlpm.sm_up) + _xlpm.bm_up) ->  | L133: 0.03761 | O133: 0.03833
G134: 113 | J134: =_xlfn.LET(_xlpm.m, G134, _xlpm.rfr, I134, _xlpm.sm_up, INDEX(R.IRR_SM_UP, _xlpm.m), _xlpm.bm_up, INDEX(R.IRR_BM_UP, _xlpm.m), _xlpm.rfr * (1 + _xlpm.sm_up) + _xlpm.bm_up) ->  | L134: 0.03758 | O134: 0.0383
G135: 114 | J135: =_xlfn.LET(_xlpm.m, G135, _xlpm.rfr, I135, _xlpm.sm_up, INDEX(R.IRR_SM_UP, _xlpm.m), _xlpm.bm_up, INDEX(R.IRR_BM_UP, _xlpm.m), _xlpm.rfr * (1 + _xlpm.sm_up) + _xlpm.bm_up) ->  | L135: 0.03756 | O135: 0.03827
G136: 115 | J136: =_xlfn.LET(_xlpm.m, G136, _xlpm.rfr, I136, _xlpm.sm_up, INDEX(R.IRR_SM_UP, _xlpm.m), _xlpm.bm_up, INDEX(R.IRR_BM_UP, _xlpm.m), _xlpm.rfr * (1 + _xlpm.sm_up) + _xlpm.bm_up) ->  | L136: 0.03753 | O136: 0.03823
G137: 116 | J137: =_xlfn.LET(_xlpm.m, G137, _xlpm.rfr, I137, _xlpm.sm_up, INDEX(R.IRR_SM_UP, _xlpm.m), _xlpm.bm_up, INDEX(R.IRR_BM_UP, _xlpm.m), _xlpm.rfr * (1 + _xlpm.sm_up) + _xlpm.bm_up) ->  | L137: 0.0375 | O137: 0.0382
G138: 117 | J138: =_xlfn.LET(_xlpm.m, G138, _xlpm.rfr, I138, _xlpm.sm_up, INDEX(R.IRR_SM_UP, _xlpm.m), _xlpm.bm_up, INDEX(R.IRR_BM_UP, _xlpm.m), _xlpm.rfr * (1 + _xlpm.sm_up) + _xlpm.bm_up) ->  | L138: 0.03748 | O138: 0.03817
G139: 118 | J139: =_xlfn.LET(_xlpm.m, G139, _xlpm.rfr, I139, _xlpm.sm_up, INDEX(R.IRR_SM_UP, _xlpm.m), _xlpm.bm_up, INDEX(R.IRR_BM_UP, _xlpm.m), _xlpm.rfr * (1 + _xlpm.sm_up) + _xlpm.bm_up) ->  | L139: 0.03745 | O139: 0.03814
G140: 119 | J140: =_xlfn.LET(_xlpm.m, G140, _xlpm.rfr, I140, _xlpm.sm_up, INDEX(R.IRR_SM_UP, _xlpm.m), _xlpm.bm_up, INDEX(R.IRR_BM_UP, _xlpm.m), _xlpm.rfr * (1 + _xlpm.sm_up) + _xlpm.bm_up) ->  | L140: 0.03743 | O140: 0.03811
G141: 120 | J141: =_xlfn.LET(_xlpm.m, G141, _xlpm.rfr, I141, _xlpm.sm_up, INDEX(R.IRR_SM_UP, _xlpm.m), _xlpm.bm_up, INDEX(R.IRR_BM_UP, _xlpm.m), _xlpm.rfr * (1 + _xlpm.sm_up) + _xlpm.bm_up) ->  | L141: 0.0374 | O141: 0.03808
G142: 121 | J142: =_xlfn.LET(_xlpm.m, G142, _xlpm.rfr, I142, _xlpm.sm_up, INDEX(R.IRR_SM_UP, _xlpm.m), _xlpm.bm_up, INDEX(R.IRR_BM_UP, _xlpm.m), _xlpm.rfr * (1 + _xlpm.sm_up) + _xlpm.bm_up) ->  | L142: 0.03738 | O142: 0.03805
G143: 122 | J143: =_xlfn.LET(_xlpm.m, G143, _xlpm.rfr, I143, _xlpm.sm_up, INDEX(R.IRR_SM_UP, _xlpm.m), _xlpm.bm_up, INDEX(R.IRR_BM_UP, _xlpm.m), _xlpm.rfr * (1 + _xlpm.sm_up) + _xlpm.bm_up) ->  | L143: 0.03736 | O143: 0.03802
G144: 123 | J144: =_xlfn.LET(_xlpm.m, G144, _xlpm.rfr, I144, _xlpm.sm_up, INDEX(R.IRR_SM_UP, _xlpm.m), _xlpm.bm_up, INDEX(R.IRR_BM_UP, _xlpm.m), _xlpm.rfr * (1 + _xlpm.sm_up) + _xlpm.bm_up) ->  | L144: 0.03733 | O144: 0.03799
G145: 124 | J145: =_xlfn.LET(_xlpm.m, G145, _xlpm.rfr, I145, _xlpm.sm_up, INDEX(R.IRR_SM_UP, _xlpm.m), _xlpm.bm_up, INDEX(R.IRR_BM_UP, _xlpm.m), _xlpm.rfr * (1 + _xlpm.sm_up) + _xlpm.bm_up) ->  | L145: 0.03731 | O145: 0.03796
G146: 125 | J146: =_xlfn.LET(_xlpm.m, G146, _xlpm.rfr, I146, _xlpm.sm_up, INDEX(R.IRR_SM_UP, _xlpm.m), _xlpm.bm_up, INDEX(R.IRR_BM_UP, _xlpm.m), _xlpm.rfr * (1 + _xlpm.sm_up) + _xlpm.bm_up) ->  | L146: 0.03729 | O146: 0.03793
G147: 126 | J147: =_xlfn.LET(_xlpm.m, G147, _xlpm.rfr, I147, _xlpm.sm_up, INDEX(R.IRR_SM_UP, _xlpm.m), _xlpm.bm_up, INDEX(R.IRR_BM_UP, _xlpm.m), _xlpm.rfr * (1 + _xlpm.sm_up) + _xlpm.bm_up) ->  | L147: 0.03726 | O147: 0.03791
G148: 127 | J148: =_xlfn.LET(_xlpm.m, G148, _xlpm.rfr, I148, _xlpm.sm_up, INDEX(R.IRR_SM_UP, _xlpm.m), _xlpm.bm_up, INDEX(R.IRR_BM_UP, _xlpm.m), _xlpm.rfr * (1 + _xlpm.sm_up) + _xlpm.bm_up) ->  | L148: 0.03724 | O148: 0.03788
G149: 128 | J149: =_xlfn.LET(_xlpm.m, G149, _xlpm.rfr, I149, _xlpm.sm_up, INDEX(R.IRR_SM_UP, _xlpm.m), _xlpm.bm_up, INDEX(R.IRR_BM_UP, _xlpm.m), _xlpm.rfr * (1 + _xlpm.sm_up) + _xlpm.bm_up) ->  | L149: 0.03722 | O149: 0.03785
G150: 129 | J150: =_xlfn.LET(_xlpm.m, G150, _xlpm.rfr, I150, _xlpm.sm_up, INDEX(R.IRR_SM_UP, _xlpm.m), _xlpm.bm_up, INDEX(R.IRR_BM_UP, _xlpm.m), _xlpm.rfr * (1 + _xlpm.sm_up) + _xlpm.bm_up) ->  | L150: 0.0372 | N150: =M150+LN(1+V.TOTAL_VA) ->  | O150: 0.03783
G151: 130 | J151: =_xlfn.LET(_xlpm.m, G151, _xlpm.rfr, I151, _xlpm.sm_up, INDEX(R.IRR_SM_UP, _xlpm.m), _xlpm.bm_up, INDEX(R.IRR_BM_UP, _xlpm.m), _xlpm.rfr * (1 + _xlpm.sm_up) + _xlpm.bm_up) ->  | K151: =LN(1+J151) ->  | L151: 0.03718 | M151: =G151*K151-G150*K150 ->  | O151: 0.0378
G152: 131 | J152: =_xlfn.LET(_xlpm.m, G152, _xlpm.rfr, I152, _xlpm.sm_up, INDEX(R.IRR_SM_UP, _xlpm.m), _xlpm.bm_up, INDEX(R.IRR_BM_UP, _xlpm.m), _xlpm.rfr * (1 + _xlpm.sm_up) + _xlpm.bm_up) ->  | L152: 0.03716 | O152: 0.03778
G153: 132 | J153: =_xlfn.LET(_xlpm.m, G153, _xlpm.rfr, I153, _xlpm.sm_up, INDEX(R.IRR_SM_UP, _xlpm.m), _xlpm.bm_up, INDEX(R.IRR_BM_UP, _xlpm.m), _xlpm.rfr * (1 + _xlpm.sm_up) + _xlpm.bm_up) ->  | L153: 0.03714 | O153: 0.03775
G154: 133 | J154: =_xlfn.LET(_xlpm.m, G154, _xlpm.rfr, I154, _xlpm.sm_up, INDEX(R.IRR_SM_UP, _xlpm.m), _xlpm.bm_up, INDEX(R.IRR_BM_UP, _xlpm.m), _xlpm.rfr * (1 + _xlpm.sm_up) + _xlpm.bm_up) ->  | L154: 0.03712 | O154: 0.03773
G155: 134 | J155: =_xlfn.LET(_xlpm.m, G155, _xlpm.rfr, I155, _xlpm.sm_up, INDEX(R.IRR_SM_UP, _xlpm.m), _xlpm.bm_up, INDEX(R.IRR_BM_UP, _xlpm.m), _xlpm.rfr * (1 + _xlpm.sm_up) + _xlpm.bm_up) ->  | L155: 0.0371 | O155: 0.0377
G156: 135 | J156: =_xlfn.LET(_xlpm.m, G156, _xlpm.rfr, I156, _xlpm.sm_up, INDEX(R.IRR_SM_UP, _xlpm.m), _xlpm.bm_up, INDEX(R.IRR_BM_UP, _xlpm.m), _xlpm.rfr * (1 + _xlpm.sm_up) + _xlpm.bm_up) ->  | L156: 0.03708 | O156: 0.03768
G157: 136 | J157: =_xlfn.LET(_xlpm.m, G157, _xlpm.rfr, I157, _xlpm.sm_up, INDEX(R.IRR_SM_UP, _xlpm.m), _xlpm.bm_up, INDEX(R.IRR_BM_UP, _xlpm.m), _xlpm.rfr * (1 + _xlpm.sm_up) + _xlpm.bm_up) ->  | L157: 0.03706 | O157: 0.03766
G158: 137 | J158: =_xlfn.LET(_xlpm.m, G158, _xlpm.rfr, I158, _xlpm.sm_up, INDEX(R.IRR_SM_UP, _xlpm.m), _xlpm.bm_up, INDEX(R.IRR_BM_UP, _xlpm.m), _xlpm.rfr * (1 + _xlpm.sm_up) + _xlpm.bm_up) ->  | L158: 0.03704 | O158: 0.03763
G159: 138 | J159: =_xlfn.LET(_xlpm.m, G159, _xlpm.rfr, I159, _xlpm.sm_up, INDEX(R.IRR_SM_UP, _xlpm.m), _xlpm.bm_up, INDEX(R.IRR_BM_UP, _xlpm.m), _xlpm.rfr * (1 + _xlpm.sm_up) + _xlpm.bm_up) ->  | L159: 0.03702 | O159: 0.03761
G160: 139 | J160: =_xlfn.LET(_xlpm.m, G160, _xlpm.rfr, I160, _xlpm.sm_up, INDEX(R.IRR_SM_UP, _xlpm.m), _xlpm.bm_up, INDEX(R.IRR_BM_UP, _xlpm.m), _xlpm.rfr * (1 + _xlpm.sm_up) + _xlpm.bm_up) ->  | L160: 0.03701 | O160: 0.03759
G161: 140 | J161: =_xlfn.LET(_xlpm.m, G161, _xlpm.rfr, I161, _xlpm.sm_up, INDEX(R.IRR_SM_UP, _xlpm.m), _xlpm.bm_up, INDEX(R.IRR_BM_UP, _xlpm.m), _xlpm.rfr * (1 + _xlpm.sm_up) + _xlpm.bm_up) ->  | L161: 0.03699 | O161: 0.03757
G162: 141 | J162: =_xlfn.LET(_xlpm.m, G162, _xlpm.rfr, I162, _xlpm.sm_up, INDEX(R.IRR_SM_UP, _xlpm.m), _xlpm.bm_up, INDEX(R.IRR_BM_UP, _xlpm.m), _xlpm.rfr * (1 + _xlpm.sm_up) + _xlpm.bm_up) ->  | L162: 0.03697 | O162: 0.03754
G163: 142 | J163: =_xlfn.LET(_xlpm.m, G163, _xlpm.rfr, I163, _xlpm.sm_up, INDEX(R.IRR_SM_UP, _xlpm.m), _xlpm.bm_up, INDEX(R.IRR_BM_UP, _xlpm.m), _xlpm.rfr * (1 + _xlpm.sm_up) + _xlpm.bm_up) ->  | L163: 0.03695 | O163: 0.03752
G164: 143 | J164: =_xlfn.LET(_xlpm.m, G164, _xlpm.rfr, I164, _xlpm.sm_up, INDEX(R.IRR_SM_UP, _xlpm.m), _xlpm.bm_up, INDEX(R.IRR_BM_UP, _xlpm.m), _xlpm.rfr * (1 + _xlpm.sm_up) + _xlpm.bm_up) ->  | L164: 0.03694 | O164: 0.0375
G165: 144 | J165: =_xlfn.LET(_xlpm.m, G165, _xlpm.rfr, I165, _xlpm.sm_up, INDEX(R.IRR_SM_UP, _xlpm.m), _xlpm.bm_up, INDEX(R.IRR_BM_UP, _xlpm.m), _xlpm.rfr * (1 + _xlpm.sm_up) + _xlpm.bm_up) ->  | L165: 0.03692 | O165: 0.03748
G166: 145 | J166: =_xlfn.LET(_xlpm.m, G166, _xlpm.rfr, I166, _xlpm.sm_up, INDEX(R.IRR_SM_UP, _xlpm.m), _xlpm.bm_up, INDEX(R.IRR_BM_UP, _xlpm.m), _xlpm.rfr * (1 + _xlpm.sm_up) + _xlpm.bm_up) ->  | L166: 0.0369 | O166: 0.03746
G167: 146 | J167: =_xlfn.LET(_xlpm.m, G167, _xlpm.rfr, I167, _xlpm.sm_up, INDEX(R.IRR_SM_UP, _xlpm.m), _xlpm.bm_up, INDEX(R.IRR_BM_UP, _xlpm.m), _xlpm.rfr * (1 + _xlpm.sm_up) + _xlpm.bm_up) ->  | L167: 0.03689 | O167: 0.03744
G168: 147 | J168: =_xlfn.LET(_xlpm.m, G168, _xlpm.rfr, I168, _xlpm.sm_up, INDEX(R.IRR_SM_UP, _xlpm.m), _xlpm.bm_up, INDEX(R.IRR_BM_UP, _xlpm.m), _xlpm.rfr * (1 + _xlpm.sm_up) + _xlpm.bm_up) ->  | L168: 0.03687 | O168: 0.03742
G169: 148 | J169: =_xlfn.LET(_xlpm.m, G169, _xlpm.rfr, I169, _xlpm.sm_up, INDEX(R.IRR_SM_UP, _xlpm.m), _xlpm.bm_up, INDEX(R.IRR_BM_UP, _xlpm.m), _xlpm.rfr * (1 + _xlpm.sm_up) + _xlpm.bm_up) ->  | L169: 0.03685 | O169: 0.0374
G170: 149 | J170: =_xlfn.LET(_xlpm.m, G170, _xlpm.rfr, I170, _xlpm.sm_up, INDEX(R.IRR_SM_UP, _xlpm.m), _xlpm.bm_up, INDEX(R.IRR_BM_UP, _xlpm.m), _xlpm.rfr * (1 + _xlpm.sm_up) + _xlpm.bm_up) ->  | L170: 0.03684 | O170: 0.03738
G171: 150 | J171: =_xlfn.LET(_xlpm.m, G171, _xlpm.rfr, I171, _xlpm.sm_up, INDEX(R.IRR_SM_UP, _xlpm.m), _xlpm.bm_up, INDEX(R.IRR_BM_UP, _xlpm.m), _xlpm.rfr * (1 + _xlpm.sm_up) + _xlpm.bm_up) ->  | L171: 0.03682 | O171: 0.03736

Sheet IRR Down Shock
Q3: =V.COPYRIGHT -> ©EIOPA, 2026.
F6: Interest Rate Risk Down Shock
H8: Curve Parameters
G10: FSP | H10: =V.FSP -> 20
G11: UFR | H11: =V.UFR-0.0015 -> 0.0315
G12: VA | H12: =V.TOTAL_VA -> 0.0034
F17: Down Shock Risk-Free Interest Rate Term Structure
J19: LLFRIRR Down | K19: =GetLLFR(R.IRR_SHOCK_DOWN_CC,R.DLT,R.LLFR_WEIGHTS) -> 0.01012239604 | M19: LLFR*IRR Down | N19: =_xlfn.LET(_xlpm.FIRST_LLFR_WEIGHT, INDEX(R.LLFR_WEIGHTS, V.FSP), V.LLFR_IRR_DOWN + _xlpm.FIRST_LLFR_WEIGHT * LN(1+V.TOTAL_VA)) -> 0.01124249295
G21: Maturity [Y] | H21: Input Rate | I21: Bootstrapped Zero Rate AC | J21: IRR Shock Down AC | K21: IRR Shock Down CC | L21: IRR Down RFR | M21: Fwd IRR Shock Down CC | N21: Fwd + VA CC | O21: IRR Down with VA
G22: 1 | H22: =R.BASECURVE -> 0.02176 | I22: =_xlfn.LET(_xlpm.LLP, MAX(_xlfn._xlws.FILTER(R.MATURITY,R.DLT=1)), BootstrapCurve(V.INSTRUMENT,_xlfn.ANCHORARRAY(H22),R.DLT,"A",V.CRA,V.COUPON_FREQ,_xlpm.LLP,"A", "Z")) -> 0.02076 | J22: =_xlfn.LET(_xlpm.m, G22, _xlpm.rfr, I22, _xlpm.sm_down, INDEX(R.IRR_SM_DOWN, _xlpm.m), _xlpm.bm_down, INDEX(R.IRR_BM_DOWN, _xlpm.m), _xlpm.rfr * (1 - _xlpm.sm_down) - _xlpm.bm_down) -> -0.0028808 | K22: =LN(1+J22) -> -0.002884957491 | L22: =_xlfn.BYROW(_xlfn.HSTACK(ROUND(Extrapolation(R.IRR_SHOCK_DOWN_CC, "Z", V.FSP, V.UFR_DOWN, V.LLFR_IRR_DOWN, V.ALPHA, "A"), 5), R.RM_FLOOR), _xlfn.LAMBDA(_xlpm.r, MAX(_xlpm.r ))) -> -0.00288 | M22: =K22 -> -0.002884957491 | N22: =M22+LN(1+V.TOTAL_VA) -> 0.0005092755772 | O22: =_xlfn.BYROW(_xlfn.HSTACK(ROUND(Extrapolation(N22:N171, "F", V.FSP,V.UFR_DOWN,V.LLFR_STAR_IRR_DOWN,V.ALPHA,"A"), 5),R.RM_FLOOR), _xlfn.LAMBDA(_xlpm.r, MAX(_xlpm.r))) -> 0.00051
G23: 2 | H23: 0.022621 | I23: 0.02163031582 | J23: =_xlfn.LET(_xlpm.m, G23, _xlpm.rfr, I23, _xlpm.sm_down, INDEX(R.IRR_SM_DOWN, _xlpm.m), _xlpm.bm_down, INDEX(R.IRR_BM_DOWN, _xlpm.m), _xlpm.rfr * (1 - _xlpm.sm_down) - _xlpm.bm_down) -> 0.0006988547513 | K23: =LN(1+J23) -> 0.000698610666 | L23: 0.0007 | M23: =G23*K23-G22*K22 -> 0.004282178823 | N23: 0.007676411891 | O23: 0.0041
G24: 3 | H24: 0.023795 | I24: 0.02282857841 | J24: =_xlfn.LET(_xlpm.m, G24, _xlpm.rfr, I24, _xlpm.sm_down, INDEX(R.IRR_SM_DOWN, _xlpm.m), _xlpm.bm_down, INDEX(R.IRR_BM_DOWN, _xlpm.m), _xlpm.rfr * (1 - _xlpm.sm_down) - _xlpm.bm_down) -> 0.004484003908 | K24: 0.004473980714 | L24: 0.00448 | M24: 0.01202472081 | N24: 0.01541895388 | O24: 0.0079
G25: 4 | H25: 0.0248 | I25: 0.0238629162 | J25: =_xlfn.LET(_xlpm.m, G25, _xlpm.rfr, I25, _xlpm.sm_down, INDEX(R.IRR_SM_DOWN, _xlpm.m), _xlpm.bm_down, INDEX(R.IRR_BM_DOWN, _xlpm.m), _xlpm.rfr * (1 - _xlpm.sm_down) - _xlpm.bm_down) -> 0.006917749722 | K25: 0.006893931872 | L25: 0.00692 | M25: 0.01415378535 | N25: 0.01754801841 | O25: 0.01034
G26: 5 | H26: 0.02569 | I26: 0.02478758696 | J26: =_xlfn.LET(_xlpm.m, G26, _xlpm.rfr, I26, _xlpm.sm_down, INDEX(R.IRR_SM_DOWN, _xlpm.m), _xlpm.bm_down, INDEX(R.IRR_BM_DOWN, _xlpm.m), _xlpm.rfr * (1 - _xlpm.sm_down) - _xlpm.bm_down) -> 0.007772552178 | K26: 0.007742501507 | L26: 0.00777 | M26: 0.01113678005 | N26: 0.01453101311 | O26: 0.0112
G27: 6 | H27: 0.02651 | I27: 0.02564867796 | J27: =_xlfn.LET(_xlpm.m, G27, _xlpm.rfr, I27, _xlpm.sm_down, INDEX(R.IRR_SM_DOWN, _xlpm.m), _xlpm.bm_down, INDEX(R.IRR_BM_DOWN, _xlpm.m), _xlpm.rfr * (1 - _xlpm.sm_down) - _xlpm.bm_down) -> 0.009202180333 | K27: 0.009160098239 | L27: 0.0092 | M27: 0.0162480819 | N27: 0.01964231497 | O27: 0.01263
G28: 7 | H28: 0.02732 | I28: 0.02651038123 | J28: =_xlfn.LET(_xlpm.m, G28, _xlpm.rfr, I28, _xlpm.sm_down, INDEX(R.IRR_SM_DOWN, _xlpm.m), _xlpm.bm_down, INDEX(R.IRR_BM_DOWN, _xlpm.m), _xlpm.rfr * (1 - _xlpm.sm_down) - _xlpm.bm_down) -> 0.01040154018 | K28: 0.01034781638 | L28: 0.0104 | M28: 0.0174741252 | N28: 0.02086835827 | O28: 0.01384
G29: 8 | H29: 0.028 | I29: 0.02723990278 | J29: =_xlfn.LET(_xlpm.m, G29, _xlpm.rfr, I29, _xlpm.sm_down, INDEX(R.IRR_SM_DOWN, _xlpm.m), _xlpm.bm_down, INDEX(R.IRR_BM_DOWN, _xlpm.m), _xlpm.rfr * (1 - _xlpm.sm_down) - _xlpm.bm_down) -> 0.01068873972 | K29: 0.01063201897 | L29: 0.01069 | M29: 0.0126214371 | N29: 0.01601567017 | O29: 0.01413
G30: 9 | H30: 0.028631 | I30: 0.02792520924 | J30: =_xlfn.LET(_xlpm.m, G30, _xlpm.rfr, I30, _xlpm.sm_down, INDEX(R.IRR_SM_DOWN, _xlpm.m), _xlpm.bm_down, INDEX(R.IRR_BM_DOWN, _xlpm.m), _xlpm.rfr * (1 - _xlpm.sm_down) - _xlpm.bm_down) -> 0.01093437763 | K30: 0.01087502956 | L30: 0.01093 | M30: 0.01281911428 | N30: 0.01621334735 | O30: 0.01437
G31: 10 | H31: 0.02927 | I31: 0.02863083559 | J31: =_xlfn.LET(_xlpm.m, G31, _xlpm.rfr, I31, _xlpm.sm_down, INDEX(R.IRR_SM_DOWN, _xlpm.m), _xlpm.bm_down, INDEX(R.IRR_BM_DOWN, _xlpm.m), _xlpm.rfr * (1 - _xlpm.sm_down) - _xlpm.bm_down) -> 0.01107850135 | K31: 0.01101758426 | L31: 0.01108 | M31: 0.01230057654 | N31: 0.01569480961 | O31: 0.01452
G32: 11 | H32: 0.02979 | I32: 0.02920816854 | J32: =_xlfn.LET(_xlpm.m, G32, _xlpm.rfr, I32, _xlpm.sm_down, INDEX(R.IRR_SM_DOWN, _xlpm.m), _xlpm.bm_down, INDEX(R.IRR_BM_DOWN, _xlpm.m), _xlpm.rfr * (1 - _xlpm.sm_down) - _xlpm.bm_down) -> 0.01123281944 | K32: 0.01117019981 | L32: 0.01123 | M32: 0.01269635539 | N32: 0.01609058846 | O32: 0.01467
G33: 12 | H33: 0.03027 | I33: 0.02974788573 | J33: =_xlfn.LET(_xlpm.m, G33, _xlpm.rfr, I33, _xlpm.sm_down, INDEX(R.IRR_SM_DOWN, _xlpm.m), _xlpm.bm_down, INDEX(R.IRR_BM_DOWN, _xlpm.m), _xlpm.rfr * (1 - _xlpm.sm_down) - _xlpm.bm_down) -> 0.01125377372 | K33: 0.01119092112 | L33: 0.01125 | M33: 0.01141885553 | N33: 0.0148130886 | O33: 0.01469
G34: 13 | H34: 0.030779 | I34: 0.03033329719 | J34: =_xlfn.LET(_xlpm.m, G34, _xlpm.rfr, I34, _xlpm.sm_down, INDEX(R.IRR_SM_DOWN, _xlpm.m), _xlpm.bm_down, INDEX(R.IRR_BM_DOWN, _xlpm.m), _xlpm.rfr * (1 - _xlpm.sm_down) - _xlpm.bm_down) -> 0.0113899794 | K34: 0.01132560196 | L34: 0.01139 | M34: 0.01294177198 | N34: 0.01633600505 | O34: 0.01483
G35: 14 | H35: 0.031124 | I35: 0.03072992789 | J35: =_xlfn.LET(_xlpm.m, G35, _xlpm.rfr, I35, _xlpm.sm_down, INDEX(R.IRR_SM_DOWN, _xlpm.m), _xlpm.bm_down, INDEX(R.IRR_BM_DOWN, _xlpm.m), _xlpm.rfr * (1 - _xlpm.sm_down) - _xlpm.bm_down) -> 0.01140875962 | K35: 0.01134417051 | L35: 0.01141 | M35: 0.01158556171 | N35: 0.01497979477 | O35: 0.01485
G36: 15 | H36: 0.03143 | I36: 0.03107379801 | J36: =_xlfn.LET(_xlpm.m, G36, _xlpm.rfr, I36, _xlpm.sm_down, INDEX(R.IRR_SM_DOWN, _xlpm.m), _xlpm.bm_down, INDEX(R.IRR_BM_DOWN, _xlpm.m), _xlpm.rfr * (1 - _xlpm.sm_down) - _xlpm.bm_down) -> 0.0113905889 | K36: 0.0113262046 | L36: 0.01139 | M36: 0.01107468185 | N36: 0.01446891492 | O36: 0.01483
G37: 16 | H37: 0.031742 | I37: 0.03132792462 | J37: =_xlfn.LET(_xlpm.m, G37, _xlpm.rfr, I37, _xlpm.sm_down, INDEX(R.IRR_SM_DOWN, _xlpm.m), _xlpm.bm_down, INDEX(R.IRR_BM_DOWN, _xlpm.m), _xlpm.rfr * (1 - _xlpm.sm_down) - _xlpm.bm_down) -> 0.01100380005 | K37: 0.01094369873 | L37: 0.011 | M37: 0.005206110678 | N37: 0.008600343746 | O37: 0.01444
G38: 17 | H38: 0.03196 | I38: 0.03155220599 | J38: =_xlfn.LET(_xlpm.m, G38, _xlpm.rfr, I38, _xlpm.sm_down, INDEX(R.IRR_SM_DOWN, _xlpm.m), _xlpm.bm_down, INDEX(R.IRR_BM_DOWN, _xlpm.m), _xlpm.rfr * (1 - _xlpm.sm_down) - _xlpm.bm_down) -> 0.01090714711 | K38: 0.0108480932 | L38: 0.01091 | M38: 0.009318404753 | N38: 0.01271263782 | O38: 0.01434
G39: 18 | H39: 0.032131 | I39: 0.03175160816 | J39: =_xlfn.LET(_xlpm.m, G39, _xlpm.rfr, I39, _xlpm.sm_down, INDEX(R.IRR_SM_DOWN, _xlpm.m), _xlpm.bm_down, INDEX(R.IRR_BM_DOWN, _xlpm.m), _xlpm.rfr * (1 - _xlpm.sm_down) - _xlpm.bm_down) -> 0.01079332016 | K39: 0.01073548804 | L39: 0.01079 | M39: 0.008821200276 | N39: 0.01221543334 | O39: 0.01423
G40: 19 | H40: 0.032272 | I40: 0.03193005329 | J40: =_xlfn.LET(_xlpm.m, G40, _xlpm.rfr, I40, _xlpm.sm_down, INDEX(R.IRR_SM_DOWN, _xlpm.m), _xlpm.bm_down, INDEX(R.IRR_BM_DOWN, _xlpm.m), _xlpm.rfr * (1 - _xlpm.sm_down) - _xlpm.bm_down) -> 0.01108432718 | K40: 0.01102334623 | L40: 0.01108 | M40: 0.01620479369 | N40: 0.01959902676 | O40: 0.01452
G41: 20 | H41: 0.03233 | I41: 0.0320906803 | J41: =_xlfn.LET(_xlpm.m, G41, _xlpm.rfr, I41, _xlpm.sm_down, INDEX(R.IRR_SM_DOWN, _xlpm.m), _xlpm.bm_down, INDEX(R.IRR_BM_DOWN, _xlpm.m), _xlpm.rfr * (1 - _xlpm.sm_down) - _xlpm.bm_down) -> 0.01104534015 | K41: 0.01098478587 | L41: 0.01105 | M41: 0.01025213896 | N41: 0.01364637203 | O41: 0.01448
G42: 21 | H42: 0.03246 | I42: 0.03211260871 | J42: =_xlfn.LET(_xlpm.m, G42, _xlpm.rfr, I42, _xlpm.sm_down, INDEX(R.IRR_SM_DOWN, _xlpm.m), _xlpm.bm_down, INDEX(R.IRR_BM_DOWN, _xlpm.m), _xlpm.rfr * (1 - _xlpm.sm_down) - _xlpm.bm_down) -> 0.01147743044 | K42: 0.01141206442 | L42: 0.01106 | M42: 0.01995763534 | N42: 0.02335186841 | O42: 0.01438
G43: 22 | H43: 0.032511 | I43: 0.03213254402 | J43: =_xlfn.LET(_xlpm.m, G43, _xlpm.rfr, I43, _xlpm.sm_down, INDEX(R.IRR_SM_DOWN, _xlpm.m), _xlpm.bm_down, INDEX(R.IRR_BM_DOWN, _xlpm.m), _xlpm.rfr * (1 - _xlpm.sm_down) - _xlpm.bm_down) -> 0.01116627201 | K43: 0.01110438943 | L43: 0.01116 | M43: 0.00464321482 | N43: 0.008037447888 | O43: 0.01438
G44: 23 | H44: 0.032542 | I44: 0.03215074617 | J44: =_xlfn.LET(_xlpm.m, G44, _xlpm.rfr, I44, _xlpm.sm_down, INDEX(R.IRR_SM_DOWN, _xlpm.m), _xlpm.bm_down, INDEX(R.IRR_BM_DOWN, _xlpm.m), _xlpm.rfr * (1 - _xlpm.sm_down) - _xlpm.bm_down) -> 0.01095386562 | K44: 0.01089430658 | L44: 0.01134 | M44: 0.006272483683 | N44: 0.009666716751 | O44: 0.01446
G45: 24 | H45: 0.032551 | I45: 0.03216743175 | J45: =_xlfn.LET(_xlpm.m, G45, _xlpm.rfr, I45, _xlpm.sm_down, INDEX(R.IRR_SM_DOWN, _xlpm.m), _xlpm.bm_down, INDEX(R.IRR_BM_DOWN, _xlpm.m), _xlpm.rfr * (1 - _xlpm.sm_down) - _xlpm.bm_down) -> 0.01096204156 | K45: 0.01090239389 | L45: 0.01157 | M45: 0.01108840213 | N45: 0.0144826352 | O45: 0.01459
G46: 25 | H46: 0.0325 | I46: 0.03218278272 | J46: =_xlfn.LET(_xlpm.m, G46, _xlpm.rfr, I46, _xlpm.sm_down, INDEX(R.IRR_SM_DOWN, _xlpm.m), _xlpm.bm_down, INDEX(R.IRR_BM_DOWN, _xlpm.m), _xlpm.rfr * (1 - _xlpm.sm_down) - _xlpm.bm_down) -> 0.01074773571 | K46: 0.01069038933 | L46: 0.01185 | M46: 0.005602279768 | N46: 0.008996512836 | O46: 0.01477
G47: 26 | H47: 0.03254 | I47: 0.03213156744 | J47: =_xlfn.LET(_xlpm.m, G47, _xlpm.rfr, I47, _xlpm.sm_down, INDEX(R.IRR_SM_DOWN, _xlpm.m), _xlpm.bm_down, INDEX(R.IRR_BM_DOWN, _xlpm.m), _xlpm.rfr * (1 - _xlpm.sm_down) - _xlpm.bm_down) -> 0.01082315237 | K47: 0.01076500127 | L47: 0.01215 | M47: 0.01263029981 | N47: 0.01602453288 | O47: 0.01499
G48: 27 | H48: 0.032528 | I48: 0.03208414815 | J48: =_xlfn.LET(_xlpm.m, G48, _xlpm.rfr, I48, _xlpm.sm_down, INDEX(R.IRR_SM_DOWN, _xlpm.m), _xlpm.bm_down, INDEX(R.IRR_BM_DOWN, _xlpm.m), _xlpm.rfr * (1 - _xlpm.sm_down) - _xlpm.bm_down) -> 0.01057954963 | K48: 0.0105239778 | L48: 0.01248 | M48: 0.004257367687 | N48: 0.007651600755 | O48: 0.01523
G49: 28 | H49: 0.03251 | I49: 0.0320401179 | J49: =_xlfn.LET(_xlpm.m, G49, _xlpm.rfr, I49, _xlpm.sm_down, INDEX(R.IRR_SM_DOWN, _xlpm.m), _xlpm.bm_down, INDEX(R.IRR_BM_DOWN, _xlpm.m), _xlpm.rfr * (1 - _xlpm.sm_down) - _xlpm.bm_down) -> 0.01065885541 | K49: 0.01060245027 | L49: 0.01282 | M49: 0.01272120691 | N49: 0.01611543998 | O49: 0.01549
G50: 29 | H50: 0.03249 | I50: 0.03199912591 | J50: =_xlfn.LET(_xlpm.m, G50, _xlpm.rfr, I50, _xlpm.sm_down, INDEX(R.IRR_SM_DOWN, _xlpm.m), _xlpm.bm_down, INDEX(R.IRR_BM_DOWN, _xlpm.m), _xlpm.rfr * (1 - _xlpm.sm_down) - _xlpm.bm_down) -> 0.01083958918 | K50: 0.01078126195 | L50: 0.01317 | M50: 0.01578798894 | N50: 0.019182222 | O50: 0.01577
G51: 30 | H51: 0.032431 | I51: 0.03196086819 | J51: =_xlfn.LET(_xlpm.m, G51, _xlpm.rfr, I51, _xlpm.sm_down, INDEX(R.IRR_SM_DOWN, _xlpm.m), _xlpm.bm_down, INDEX(R.IRR_BM_DOWN, _xlpm.m), _xlpm.rfr * (1 - _xlpm.sm_down) - _xlpm.bm_down) -> 0.01092160805 | K51: 0.01086239801 | L51: 0.01353 | M51: 0.01321534379 | N51: 0.01660957686 | O51: 0.01605
G52: 31 | I52: 0.03186198827 | J52: =_xlfn.LET(_xlpm.m, G52, _xlpm.rfr, I52, _xlpm.sm_down, INDEX(R.IRR_SM_DOWN, _xlpm.m), _xlpm.bm_down, INDEX(R.IRR_BM_DOWN, _xlpm.m), _xlpm.rfr * (1 - _xlpm.sm_down) - _xlpm.bm_down) -> 0.01097513449 | K52: 0.01091534477 | L52: 0.01389 | M52: 0.01250374752 | N52: 0.01589798059 | O52: 0.01634
G53: 32 | I53: 0.03176929695 | J53: =_xlfn.LET(_xlpm.m, G53, _xlpm.rfr, I53, _xlpm.sm_down, INDEX(R.IRR_SM_DOWN, _xlpm.m), _xlpm.bm_down, INDEX(R.IRR_BM_DOWN, _xlpm.m), _xlpm.rfr * (1 - _xlpm.sm_down) - _xlpm.bm_down) -> 0.01103156957 | K53: 0.01097116563 | L53: 0.01425 | M53: 0.01270161243 | N53: 0.0160958455 | O53: 0.01664
G54: 33 | I54: 0.03168223088 | J54: =_xlfn.LET(_xlpm.m, G54, _xlpm.rfr, I54, _xlpm.sm_down, INDEX(R.IRR_SM_DOWN, _xlpm.m), _xlpm.bm_down, INDEX(R.IRR_BM_DOWN, _xlpm.m), _xlpm.rfr * (1 - _xlpm.sm_down) - _xlpm.bm_down) -> 0.0108738262 | K54: 0.01081513126 | L54: 0.0146 | M54: 0.005822031492 | N54: =M54+LN(1+V.TOTAL_VA) -> 0.00921626456 | O54: 0.01693
G55: 34 | I55: 0.03160029304 | J55: =_xlfn.LET(_xlpm.m, G55, _xlpm.rfr, I55, _xlpm.sm_down, INDEX(R.IRR_SM_DOWN, _xlpm.m), _xlpm.bm_down, INDEX(R.IRR_BM_DOWN, _xlpm.m), _xlpm.rfr * (1 - _xlpm.sm_down) - _xlpm.bm_down) -> 0.0109361348 | K55: 0.01087676772 | L55: 0.01495 | M55: =G55*K55-G54*K54 -> 0.01291077068 | N55: 0.01630500374 | O55: 0.01722
G56: 35 | I56: 0.03152304334 | J56: =_xlfn.LET(_xlpm.m, G56, _xlpm.rfr, I56, _xlpm.sm_down, INDEX(R.IRR_SM_DOWN, _xlpm.m), _xlpm.bm_down, INDEX(R.IRR_BM_DOWN, _xlpm.m), _xlpm.rfr * (1 - _xlpm.sm_down) - _xlpm.bm_down) -> 0.01100059993 | K56: 0.01094053345 | L56: 0.0153 | M56: 0.0131085682 | N56: 0.01650280126 | O56: 0.01751
G57: 36 | I57: 0.03145009059 | J57: =_xlfn.LET(_xlpm.m, G57, _xlpm.rfr, I57, _xlpm.sm_down, INDEX(R.IRR_SM_DOWN, _xlpm.m), _xlpm.bm_down, INDEX(R.IRR_BM_DOWN, _xlpm.m), _xlpm.rfr * (1 - _xlpm.sm_down) - _xlpm.bm_down) -> 0.01106704167 | K57: 0.01100625008 | L57: 0.01564 | M57: 0.01330633216 | N57: 0.01670056523 | O57: 0.0178
G58: 37 | I58: 0.03138108598 | J58: =_xlfn.LET(_xlpm.m, G58, _xlpm.rfr, I58, _xlpm.sm_down, INDEX(R.IRR_SM_DOWN, _xlpm.m), _xlpm.bm_down, INDEX(R.IRR_BM_DOWN, _xlpm.m), _xlpm.rfr * (1 - _xlpm.sm_down) - _xlpm.bm_down) -> 0.01082148869 | K58: 0.0107633554 | L58: 0.01597 | M58: 0.002019147053 | N58: 0.005413380121 | O58: 0.01807
G59: 38 | I59: 0.03131571746 | J59: =_xlfn.LET(_xlpm.m, G59, _xlpm.rfr, I59, _xlpm.sm_down, INDEX(R.IRR_SM_DOWN, _xlpm.m), _xlpm.bm_down, INDEX(R.IRR_BM_DOWN, _xlpm.m), _xlpm.rfr * (1 - _xlpm.sm_down) - _xlpm.bm_down) -> 0.01089207285 | K59: 0.01083318148 | L59: 0.0163 | M59: 0.01341674631 | N59: 0.01681097938 | O59: 0.01835
G60: 39 | I60: 0.03125370499 | J60: =_xlfn.LET(_xlpm.m, G60, _xlpm.rfr, I60, _xlpm.sm_down, INDEX(R.IRR_SM_DOWN, _xlpm.m), _xlpm.bm_down, INDEX(R.IRR_BM_DOWN, _xlpm.m), _xlpm.rfr * (1 - _xlpm.sm_down) - _xlpm.bm_down) -> 0.0106516302 | K60: 0.01059530123 | L60: 0.01661 | M60: 0.001555851747 | N60: 0.004950084815 | O60: 0.01862
G61: 40 | H61: 0.03206 | I61: 0.0311947966 | J61: =_xlfn.LET(_xlpm.m, G61, _xlpm.rfr, I61, _xlpm.sm_down, INDEX(R.IRR_SM_DOWN, _xlpm.m), _xlpm.bm_down, INDEX(R.IRR_BM_DOWN, _xlpm.m), _xlpm.rfr * (1 - _xlpm.sm_down) - _xlpm.bm_down) -> 0.01041376254 | K61: 0.01035991284 | L61: 0.01692 | M61: 0.001179765891 | N61: 0.004573998959 | O61: 0.01888
G62: 41 | I62: 0.03101102737 | J62: =_xlfn.LET(_xlpm.m, G62, _xlpm.rfr, I62, _xlpm.sm_down, INDEX(R.IRR_SM_DOWN, _xlpm.m), _xlpm.bm_down, INDEX(R.IRR_BM_DOWN, _xlpm.m), _xlpm.rfr * (1 - _xlpm.sm_down) - _xlpm.bm_down) -> 0.01043474177 | K62: 0.01038067564 | L62: 0.01722 | M62: 0.01121118732 | N62: 0.01460542039 | O62: 0.01913
G63: 42 | I63: 0.03083603949 | J63: =_xlfn.LET(_xlpm.m, G63, _xlpm.rfr, I63, _xlpm.sm_down, INDEX(R.IRR_SM_DOWN, _xlpm.m), _xlpm.bm_down, INDEX(R.IRR_BM_DOWN, _xlpm.m), _xlpm.rfr * (1 - _xlpm.sm_down) - _xlpm.bm_down) -> 0.01015113659 | K63: 0.01009995984 | L63: 0.01751 | M63: -0.001409387599 | N63: 0.001984845469 | O63: 0.01938
G64: 43 | I64: 0.03066921825 | J64: =_xlfn.LET(_xlpm.m, G64, _xlpm.rfr, I64, _xlpm.sm_down, INDEX(R.IRR_SM_DOWN, _xlpm.m), _xlpm.bm_down, INDEX(R.IRR_BM_DOWN, _xlpm.m), _xlpm.rfr * (1 - _xlpm.sm_down) - _xlpm.bm_down) -> 0.009874379484 | K64: 0.009825946369 | L64: 0.01779 | M64: -0.001682619585 | N64: 0.001711613483 | O64: 0.01962
G65: 44 | I65: 0.03051000498 | J65: =_xlfn.LET(_xlpm.m, G65, _xlpm.rfr, I65, _xlpm.sm_down, INDEX(R.IRR_SM_DOWN, _xlpm.m), _xlpm.bm_down, INDEX(R.IRR_BM_DOWN, _xlpm.m), _xlpm.rfr * (1 - _xlpm.sm_down) - _xlpm.bm_down) -> 0.009298901942 | K65: 0.009255933322 | L65: 0.01806 | M65: -0.0152546277 | N65: -0.01186039464 | O65: 0.01985
G66: 45 | I66: 0.03035789083 | J66: =_xlfn.LET(_xlpm.m, G66, _xlpm.rfr, I66, _xlpm.sm_down, INDEX(R.IRR_SM_DOWN, _xlpm.m), _xlpm.bm_down, INDEX(R.IRR_BM_DOWN, _xlpm.m), _xlpm.rfr * (1 - _xlpm.sm_down) - _xlpm.bm_down) -> 0.009035998516 | K66: 0.008995418154 | L66: 0.01833 | M66: -0.00246724924 | N66: 0.0009269838277 | O66: 0.02008
G67: 46 | I67: 0.03021241135 | J67: =_xlfn.LET(_xlpm.m, G67, _xlpm.rfr, I67, _xlpm.sm_down, INDEX(R.IRR_SM_DOWN, _xlpm.m), _xlpm.bm_down, INDEX(R.IRR_BM_DOWN, _xlpm.m), _xlpm.rfr * (1 - _xlpm.sm_down) - _xlpm.bm_down) -> 0.009180716313 | K67: 0.009138829708 | L67: 0.01858 | M67: 0.01559234965 | N67: 0.01898658272 | O67: 0.0203
G68: 47 | I68: 0.03007314174 | J68: =_xlfn.LET(_xlpm.m, G68, _xlpm.rfr, I68, _xlpm.sm_down, INDEX(R.IRR_SM_DOWN, _xlpm.m), _xlpm.bm_down, INDEX(R.IRR_BM_DOWN, _xlpm.m), _xlpm.rfr * (1 - _xlpm.sm_down) - _xlpm.bm_down) -> 0.008927062442 | K68: 0.008887451784 | L68: 0.01883 | M68: -0.002675932748 | N68: 0.0007183003196 | O68: 0.02051
G69: 48 | I69: 0.02993969269 | J69: =_xlfn.LET(_xlpm.m, G69, _xlpm.rfr, I69, _xlpm.sm_down, INDEX(R.IRR_SM_DOWN, _xlpm.m), _xlpm.bm_down, INDEX(R.IRR_BM_DOWN, _xlpm.m), _xlpm.rfr * (1 - _xlpm.sm_down) - _xlpm.bm_down) -> 0.008678289368 | K69: 0.008640849468 | L69: 0.01907 | M69: -0.002949459364 | N69: 0.0004447737039 | O69: 0.02072
G70: 49 | I70: 0.02981170678 | J70: =_xlfn.LET(_xlpm.m, G70, _xlpm.rfr, I70, _xlpm.sm_down, INDEX(R.IRR_SM_DOWN, _xlpm.m), _xlpm.bm_down, INDEX(R.IRR_BM_DOWN, _xlpm.m), _xlpm.rfr * (1 - _xlpm.sm_down) - _xlpm.bm_down) -> 0.008832214442 | K70: 0.008793438587 | L70: 0.01931 | M70: 0.0161177163 | N70: 0.01951194936 | O70: 0.02092
G71: 50 | H71: 0.03131 | I71: 0.02968885528 | J71: =_xlfn.LET(_xlpm.m, G71, _xlpm.rfr, I71, _xlpm.sm_down, INDEX(R.IRR_SM_DOWN, _xlpm.m), _xlpm.bm_down, INDEX(R.IRR_BM_DOWN, _xlpm.m), _xlpm.rfr * (1 - _xlpm.sm_down) - _xlpm.bm_down) -> 0.008591099348 | K71: 0.008554405862 | L71: 0.01953 | M71: -0.003158197636 | N71: 0.0002360354321 | O71: 0.02112
G72: 51 | J72: =_xlfn.LET(_xlpm.m, G72, _xlpm.rfr, I72, _xlpm.sm_down, INDEX(R.IRR_SM_DOWN, _xlpm.m), _xlpm.bm_down, INDEX(R.IRR_BM_DOWN, _xlpm.m), _xlpm.rfr * (1 - _xlpm.sm_down) - _xlpm.bm_down) ->  | L72: 0.01975 | O72: 0.02131
G73: 52 | J73: =_xlfn.LET(_xlpm.m, G73, _xlpm.rfr, I73, _xlpm.sm_down, INDEX(R.IRR_SM_DOWN, _xlpm.m), _xlpm.bm_down, INDEX(R.IRR_BM_DOWN, _xlpm.m), _xlpm.rfr * (1 - _xlpm.sm_down) - _xlpm.bm_down) ->  | L73: 0.01996 | O73: 0.02149
G74: 53 | J74: =_xlfn.LET(_xlpm.m, G74, _xlpm.rfr, I74, _xlpm.sm_down, INDEX(R.IRR_SM_DOWN, _xlpm.m), _xlpm.bm_down, INDEX(R.IRR_BM_DOWN, _xlpm.m), _xlpm.rfr * (1 - _xlpm.sm_down) - _xlpm.bm_down) ->  | L74: 0.02017 | O74: 0.02167
G75: 54 | J75: =_xlfn.LET(_xlpm.m, G75, _xlpm.rfr, I75, _xlpm.sm_down, INDEX(R.IRR_SM_DOWN, _xlpm.m), _xlpm.bm_down, INDEX(R.IRR_BM_DOWN, _xlpm.m), _xlpm.rfr * (1 - _xlpm.sm_down) - _xlpm.bm_down) ->  | L75: 0.02037 | O75: 0.02184
G76: 55 | J76: =_xlfn.LET(_xlpm.m, G76, _xlpm.rfr, I76, _xlpm.sm_down, INDEX(R.IRR_SM_DOWN, _xlpm.m), _xlpm.bm_down, INDEX(R.IRR_BM_DOWN, _xlpm.m), _xlpm.rfr * (1 - _xlpm.sm_down) - _xlpm.bm_down) ->  | L76: 0.02056 | O76: 0.02201
G77: 56 | J77: =_xlfn.LET(_xlpm.m, G77, _xlpm.rfr, I77, _xlpm.sm_down, INDEX(R.IRR_SM_DOWN, _xlpm.m), _xlpm.bm_down, INDEX(R.IRR_BM_DOWN, _xlpm.m), _xlpm.rfr * (1 - _xlpm.sm_down) - _xlpm.bm_down) ->  | L77: 0.02075 | O77: 0.02217
G78: 57 | J78: =_xlfn.LET(_xlpm.m, G78, _xlpm.rfr, I78, _xlpm.sm_down, INDEX(R.IRR_SM_DOWN, _xlpm.m), _xlpm.bm_down, INDEX(R.IRR_BM_DOWN, _xlpm.m), _xlpm.rfr * (1 - _xlpm.sm_down) - _xlpm.bm_down) ->  | L78: 0.02093 | O78: 0.02232
G79: 58 | J79: =_xlfn.LET(_xlpm.m, G79, _xlpm.rfr, I79, _xlpm.sm_down, INDEX(R.IRR_SM_DOWN, _xlpm.m), _xlpm.bm_down, INDEX(R.IRR_BM_DOWN, _xlpm.m), _xlpm.rfr * (1 - _xlpm.sm_down) - _xlpm.bm_down) ->  | L79: 0.0211 | O79: 0.02248
G80: 59 | J80: =_xlfn.LET(_xlpm.m, G80, _xlpm.rfr, I80, _xlpm.sm_down, INDEX(R.IRR_SM_DOWN, _xlpm.m), _xlpm.bm_down, INDEX(R.IRR_BM_DOWN, _xlpm.m), _xlpm.rfr * (1 - _xlpm.sm_down) - _xlpm.bm_down) ->  | L80: 0.02127 | O80: 0.02262
G81: 60 | J81: =_xlfn.LET(_xlpm.m, G81, _xlpm.rfr, I81, _xlpm.sm_down, INDEX(R.IRR_SM_DOWN, _xlpm.m), _xlpm.bm_down, INDEX(R.IRR_BM_DOWN, _xlpm.m), _xlpm.rfr * (1 - _xlpm.sm_down) - _xlpm.bm_down) ->  | L81: 0.02144 | O81: 0.02277
G82: 61 | J82: =_xlfn.LET(_xlpm.m, G82, _xlpm.rfr, I82, _xlpm.sm_down, INDEX(R.IRR_SM_DOWN, _xlpm.m), _xlpm.bm_down, INDEX(R.IRR_BM_DOWN, _xlpm.m), _xlpm.rfr * (1 - _xlpm.sm_down) - _xlpm.bm_down) ->  | L82: 0.0216 | O82: 0.0229
G83: 62 | J83: =_xlfn.LET(_xlpm.m, G83, _xlpm.rfr, I83, _xlpm.sm_down, INDEX(R.IRR_SM_DOWN, _xlpm.m), _xlpm.bm_down, INDEX(R.IRR_BM_DOWN, _xlpm.m), _xlpm.rfr * (1 - _xlpm.sm_down) - _xlpm.bm_down) ->  | L83: 0.02175 | O83: 0.02304
G84: 63 | J84: =_xlfn.LET(_xlpm.m, G84, _xlpm.rfr, I84, _xlpm.sm_down, INDEX(R.IRR_SM_DOWN, _xlpm.m), _xlpm.bm_down, INDEX(R.IRR_BM_DOWN, _xlpm.m), _xlpm.rfr * (1 - _xlpm.sm_down) - _xlpm.bm_down) ->  | L84: 0.0219 | O84: 0.02317
G85: 64 | J85: =_xlfn.LET(_xlpm.m, G85, _xlpm.rfr, I85, _xlpm.sm_down, INDEX(R.IRR_SM_DOWN, _xlpm.m), _xlpm.bm_down, INDEX(R.IRR_BM_DOWN, _xlpm.m), _xlpm.rfr * (1 - _xlpm.sm_down) - _xlpm.bm_down) ->  | L85: 0.02205 | O85: 0.0233
G86: 65 | J86: =_xlfn.LET(_xlpm.m, G86, _xlpm.rfr, I86, _xlpm.sm_down, INDEX(R.IRR_SM_DOWN, _xlpm.m), _xlpm.bm_down, INDEX(R.IRR_BM_DOWN, _xlpm.m), _xlpm.rfr * (1 - _xlpm.sm_down) - _xlpm.bm_down) ->  | L86: 0.02219 | N86: =M86+LN(1+V.TOTAL_VA) ->  | O86: 0.02342
G87: 66 | J87: =_xlfn.LET(_xlpm.m, G87, _xlpm.rfr, I87, _xlpm.sm_down, INDEX(R.IRR_SM_DOWN, _xlpm.m), _xlpm.bm_down, INDEX(R.IRR_BM_DOWN, _xlpm.m), _xlpm.rfr * (1 - _xlpm.sm_down) - _xlpm.bm_down) ->  | K87: =LN(1+J87) ->  | L87: 0.02233 | M87: =G87*K87-G86*K86 ->  | O87: 0.02354
G88: 67 | J88: =_xlfn.LET(_xlpm.m, G88, _xlpm.rfr, I88, _xlpm.sm_down, INDEX(R.IRR_SM_DOWN, _xlpm.m), _xlpm.bm_down, INDEX(R.IRR_BM_DOWN, _xlpm.m), _xlpm.rfr * (1 - _xlpm.sm_down) - _xlpm.bm_down) ->  | L88: 0.02247 | O88: 0.02366
G89: 68 | J89: =_xlfn.LET(_xlpm.m, G89, _xlpm.rfr, I89, _xlpm.sm_down, INDEX(R.IRR_SM_DOWN, _xlpm.m), _xlpm.bm_down, INDEX(R.IRR_BM_DOWN, _xlpm.m), _xlpm.rfr * (1 - _xlpm.sm_down) - _xlpm.bm_down) ->  | L89: 0.0226 | O89: 0.02377
G90: 69 | J90: =_xlfn.LET(_xlpm.m, G90, _xlpm.rfr, I90, _xlpm.sm_down, INDEX(R.IRR_SM_DOWN, _xlpm.m), _xlpm.bm_down, INDEX(R.IRR_BM_DOWN, _xlpm.m), _xlpm.rfr * (1 - _xlpm.sm_down) - _xlpm.bm_down) ->  | L90: 0.02272 | O90: 0.02388
G91: 70 | J91: =_xlfn.LET(_xlpm.m, G91, _xlpm.rfr, I91, _xlpm.sm_down, INDEX(R.IRR_SM_DOWN, _xlpm.m), _xlpm.bm_down, INDEX(R.IRR_BM_DOWN, _xlpm.m), _xlpm.rfr * (1 - _xlpm.sm_down) - _xlpm.bm_down) ->  | L91: 0.02285 | O91: 0.02399
G92: 71 | J92: =_xlfn.LET(_xlpm.m, G92, _xlpm.rfr, I92, _xlpm.sm_down, INDEX(R.IRR_SM_DOWN, _xlpm.m), _xlpm.bm_down, INDEX(R.IRR_BM_DOWN, _xlpm.m), _xlpm.rfr * (1 - _xlpm.sm_down) - _xlpm.bm_down) ->  | L92: 0.02297 | O92: 0.02409
G93: 72 | J93: =_xlfn.LET(_xlpm.m, G93, _xlpm.rfr, I93, _xlpm.sm_down, INDEX(R.IRR_SM_DOWN, _xlpm.m), _xlpm.bm_down, INDEX(R.IRR_BM_DOWN, _xlpm.m), _xlpm.rfr * (1 - _xlpm.sm_down) - _xlpm.bm_down) ->  | L93: 0.02308 | O93: 0.02419
G94: 73 | J94: =_xlfn.LET(_xlpm.m, G94, _xlpm.rfr, I94, _xlpm.sm_down, INDEX(R.IRR_SM_DOWN, _xlpm.m), _xlpm.bm_down, INDEX(R.IRR_BM_DOWN, _xlpm.m), _xlpm.rfr * (1 - _xlpm.sm_down) - _xlpm.bm_down) ->  | L94: 0.0232 | O94: 0.02429
G95: 74 | J95: =_xlfn.LET(_xlpm.m, G95, _xlpm.rfr, I95, _xlpm.sm_down, INDEX(R.IRR_SM_DOWN, _xlpm.m), _xlpm.bm_down, INDEX(R.IRR_BM_DOWN, _xlpm.m), _xlpm.rfr * (1 - _xlpm.sm_down) - _xlpm.bm_down) ->  | L95: 0.02331 | O95: 0.02439
G96: 75 | J96: =_xlfn.LET(_xlpm.m, G96, _xlpm.rfr, I96, _xlpm.sm_down, INDEX(R.IRR_SM_DOWN, _xlpm.m), _xlpm.bm_down, INDEX(R.IRR_BM_DOWN, _xlpm.m), _xlpm.rfr * (1 - _xlpm.sm_down) - _xlpm.bm_down) ->  | L96: 0.02342 | O96: 0.02448
G97: 76 | J97: =_xlfn.LET(_xlpm.m, G97, _xlpm.rfr, I97, _xlpm.sm_down, INDEX(R.IRR_SM_DOWN, _xlpm.m), _xlpm.bm_down, INDEX(R.IRR_BM_DOWN, _xlpm.m), _xlpm.rfr * (1 - _xlpm.sm_down) - _xlpm.bm_down) ->  | L97: 0.02352 | O97: 0.02457
G98: 77 | J98: =_xlfn.LET(_xlpm.m, G98, _xlpm.rfr, I98, _xlpm.sm_down, INDEX(R.IRR_SM_DOWN, _xlpm.m), _xlpm.bm_down, INDEX(R.IRR_BM_DOWN, _xlpm.m), _xlpm.rfr * (1 - _xlpm.sm_down) - _xlpm.bm_down) ->  | L98: 0.02362 | O98: 0.02466
G99: 78 | J99: =_xlfn.LET(_xlpm.m, G99, _xlpm.rfr, I99, _xlpm.sm_down, INDEX(R.IRR_SM_DOWN, _xlpm.m), _xlpm.bm_down, INDEX(R.IRR_BM_DOWN, _xlpm.m), _xlpm.rfr * (1 - _xlpm.sm_down) - _xlpm.bm_down) ->  | L99: 0.02372 | O99: 0.02475
G100: 79 | J100: =_xlfn.LET(_xlpm.m, G100, _xlpm.rfr, I100, _xlpm.sm_down, INDEX(R.IRR_SM_DOWN, _xlpm.m), _xlpm.bm_down, INDEX(R.IRR_BM_DOWN, _xlpm.m), _xlpm.rfr * (1 - _xlpm.sm_down) - _xlpm.bm_down) ->  | L100: 0.02382 | O100: 0.02483
G101: 80 | J101: =_xlfn.LET(_xlpm.m, G101, _xlpm.rfr, I101, _xlpm.sm_down, INDEX(R.IRR_SM_DOWN, _xlpm.m), _xlpm.bm_down, INDEX(R.IRR_BM_DOWN, _xlpm.m), _xlpm.rfr * (1 - _xlpm.sm_down) - _xlpm.bm_down) ->  | L101: 0.02392 | O101: 0.02492
G102: 81 | J102: =_xlfn.LET(_xlpm.m, G102, _xlpm.rfr, I102, _xlpm.sm_down, INDEX(R.IRR_SM_DOWN, _xlpm.m), _xlpm.bm_down, INDEX(R.IRR_BM_DOWN, _xlpm.m), _xlpm.rfr * (1 - _xlpm.sm_down) - _xlpm.bm_down) ->  | L102: 0.02401 | O102: 0.025
G103: 82 | J103: =_xlfn.LET(_xlpm.m, G103, _xlpm.rfr, I103, _xlpm.sm_down, INDEX(R.IRR_SM_DOWN, _xlpm.m), _xlpm.bm_down, INDEX(R.IRR_BM_DOWN, _xlpm.m), _xlpm.rfr * (1 - _xlpm.sm_down) - _xlpm.bm_down) ->  | L103: 0.0241 | O103: 0.02508
G104: 83 | J104: =_xlfn.LET(_xlpm.m, G104, _xlpm.rfr, I104, _xlpm.sm_down, INDEX(R.IRR_SM_DOWN, _xlpm.m), _xlpm.bm_down, INDEX(R.IRR_BM_DOWN, _xlpm.m), _xlpm.rfr * (1 - _xlpm.sm_down) - _xlpm.bm_down) ->  | L104: 0.02419 | O104: 0.02515
G105: 84 | J105: =_xlfn.LET(_xlpm.m, G105, _xlpm.rfr, I105, _xlpm.sm_down, INDEX(R.IRR_SM_DOWN, _xlpm.m), _xlpm.bm_down, INDEX(R.IRR_BM_DOWN, _xlpm.m), _xlpm.rfr * (1 - _xlpm.sm_down) - _xlpm.bm_down) ->  | L105: 0.02428 | O105: 0.02523
G106: 85 | J106: =_xlfn.LET(_xlpm.m, G106, _xlpm.rfr, I106, _xlpm.sm_down, INDEX(R.IRR_SM_DOWN, _xlpm.m), _xlpm.bm_down, INDEX(R.IRR_BM_DOWN, _xlpm.m), _xlpm.rfr * (1 - _xlpm.sm_down) - _xlpm.bm_down) ->  | L106: 0.02436 | O106: 0.0253
G107: 86 | J107: =_xlfn.LET(_xlpm.m, G107, _xlpm.rfr, I107, _xlpm.sm_down, INDEX(R.IRR_SM_DOWN, _xlpm.m), _xlpm.bm_down, INDEX(R.IRR_BM_DOWN, _xlpm.m), _xlpm.rfr * (1 - _xlpm.sm_down) - _xlpm.bm_down) ->  | L107: 0.02444 | O107: 0.02537
G108: 87 | J108: =_xlfn.LET(_xlpm.m, G108, _xlpm.rfr, I108, _xlpm.sm_down, INDEX(R.IRR_SM_DOWN, _xlpm.m), _xlpm.bm_down, INDEX(R.IRR_BM_DOWN, _xlpm.m), _xlpm.rfr * (1 - _xlpm.sm_down) - _xlpm.bm_down) ->  | L108: 0.02452 | O108: 0.02544
G109: 88 | J109: =_xlfn.LET(_xlpm.m, G109, _xlpm.rfr, I109, _xlpm.sm_down, INDEX(R.IRR_SM_DOWN, _xlpm.m), _xlpm.bm_down, INDEX(R.IRR_BM_DOWN, _xlpm.m), _xlpm.rfr * (1 - _xlpm.sm_down) - _xlpm.bm_down) ->  | L109: 0.0246 | O109: 0.02551
G110: 89 | J110: =_xlfn.LET(_xlpm.m, G110, _xlpm.rfr, I110, _xlpm.sm_down, INDEX(R.IRR_SM_DOWN, _xlpm.m), _xlpm.bm_down, INDEX(R.IRR_BM_DOWN, _xlpm.m), _xlpm.rfr * (1 - _xlpm.sm_down) - _xlpm.bm_down) ->  | L110: 0.02468 | O110: 0.02558
G111: 90 | J111: =_xlfn.LET(_xlpm.m, G111, _xlpm.rfr, I111, _xlpm.sm_down, INDEX(R.IRR_SM_DOWN, _xlpm.m), _xlpm.bm_down, INDEX(R.IRR_BM_DOWN, _xlpm.m), _xlpm.rfr * (1 - _xlpm.sm_down) - _xlpm.bm_down) ->  | L111: 0.02476 | O111: 0.02564
G112: 91 | J112: =_xlfn.LET(_xlpm.m, G112, _xlpm.rfr, I112, _xlpm.sm_down, INDEX(R.IRR_SM_DOWN, _xlpm.m), _xlpm.bm_down, INDEX(R.IRR_BM_DOWN, _xlpm.m), _xlpm.rfr * (1 - _xlpm.sm_down) - _xlpm.bm_down) ->  | L112: 0.02483 | O112: 0.02571
G113: 92 | J113: =_xlfn.LET(_xlpm.m, G113, _xlpm.rfr, I113, _xlpm.sm_down, INDEX(R.IRR_SM_DOWN, _xlpm.m), _xlpm.bm_down, INDEX(R.IRR_BM_DOWN, _xlpm.m), _xlpm.rfr * (1 - _xlpm.sm_down) - _xlpm.bm_down) ->  | L113: 0.0249 | O113: 0.02577
G114: 93 | J114: =_xlfn.LET(_xlpm.m, G114, _xlpm.rfr, I114, _xlpm.sm_down, INDEX(R.IRR_SM_DOWN, _xlpm.m), _xlpm.bm_down, INDEX(R.IRR_BM_DOWN, _xlpm.m), _xlpm.rfr * (1 - _xlpm.sm_down) - _xlpm.bm_down) ->  | L114: 0.02497 | O114: 0.02583
G115: 94 | J115: =_xlfn.LET(_xlpm.m, G115, _xlpm.rfr, I115, _xlpm.sm_down, INDEX(R.IRR_SM_DOWN, _xlpm.m), _xlpm.bm_down, INDEX(R.IRR_BM_DOWN, _xlpm.m), _xlpm.rfr * (1 - _xlpm.sm_down) - _xlpm.bm_down) ->  | L115: 0.02504 | O115: 0.02589
G116: 95 | J116: =_xlfn.LET(_xlpm.m, G116, _xlpm.rfr, I116, _xlpm.sm_down, INDEX(R.IRR_SM_DOWN, _xlpm.m), _xlpm.bm_down, INDEX(R.IRR_BM_DOWN, _xlpm.m), _xlpm.rfr * (1 - _xlpm.sm_down) - _xlpm.bm_down) ->  | L116: 0.02511 | O116: 0.02595
G117: 96 | J117: =_xlfn.LET(_xlpm.m, G117, _xlpm.rfr, I117, _xlpm.sm_down, INDEX(R.IRR_SM_DOWN, _xlpm.m), _xlpm.bm_down, INDEX(R.IRR_BM_DOWN, _xlpm.m), _xlpm.rfr * (1 - _xlpm.sm_down) - _xlpm.bm_down) ->  | L117: 0.02518 | O117: 0.02601
G118: 97 | J118: =_xlfn.LET(_xlpm.m, G118, _xlpm.rfr, I118, _xlpm.sm_down, INDEX(R.IRR_SM_DOWN, _xlpm.m), _xlpm.bm_down, INDEX(R.IRR_BM_DOWN, _xlpm.m), _xlpm.rfr * (1 - _xlpm.sm_down) - _xlpm.bm_down) ->  | L118: 0.02524 | N118: =M118+LN(1+V.TOTAL_VA) ->  | O118: 0.02607
G119: 98 | J119: =_xlfn.LET(_xlpm.m, G119, _xlpm.rfr, I119, _xlpm.sm_down, INDEX(R.IRR_SM_DOWN, _xlpm.m), _xlpm.bm_down, INDEX(R.IRR_BM_DOWN, _xlpm.m), _xlpm.rfr * (1 - _xlpm.sm_down) - _xlpm.bm_down) ->  | L119: 0.0253 | M119: =G119*K119-G118*K118 ->  | O119: 0.02612
G120: 99 | J120: =_xlfn.LET(_xlpm.m, G120, _xlpm.rfr, I120, _xlpm.sm_down, INDEX(R.IRR_SM_DOWN, _xlpm.m), _xlpm.bm_down, INDEX(R.IRR_BM_DOWN, _xlpm.m), _xlpm.rfr * (1 - _xlpm.sm_down) - _xlpm.bm_down) ->  | L120: 0.02537 | O120: 0.02617
G121: 100 | J121: =_xlfn.LET(_xlpm.m, G121, _xlpm.rfr, I121, _xlpm.sm_down, INDEX(R.IRR_SM_DOWN, _xlpm.m), _xlpm.bm_down, INDEX(R.IRR_BM_DOWN, _xlpm.m), _xlpm.rfr * (1 - _xlpm.sm_down) - _xlpm.bm_down) ->  | L121: 0.02543 | O121: 0.02623
G122: 101 | J122: =_xlfn.LET(_xlpm.m, G122, _xlpm.rfr, I122, _xlpm.sm_down, INDEX(R.IRR_SM_DOWN, _xlpm.m), _xlpm.bm_down, INDEX(R.IRR_BM_DOWN, _xlpm.m), _xlpm.rfr * (1 - _xlpm.sm_down) - _xlpm.bm_down) ->  | L122: 0.02549 | O122: 0.02628
G123: 102 | J123: =_xlfn.LET(_xlpm.m, G123, _xlpm.rfr, I123, _xlpm.sm_down, INDEX(R.IRR_SM_DOWN, _xlpm.m), _xlpm.bm_down, INDEX(R.IRR_BM_DOWN, _xlpm.m), _xlpm.rfr * (1 - _xlpm.sm_down) - _xlpm.bm_down) ->  | L123: 0.02555 | O123: 0.02633
G124: 103 | J124: =_xlfn.LET(_xlpm.m, G124, _xlpm.rfr, I124, _xlpm.sm_down, INDEX(R.IRR_SM_DOWN, _xlpm.m), _xlpm.bm_down, INDEX(R.IRR_BM_DOWN, _xlpm.m), _xlpm.rfr * (1 - _xlpm.sm_down) - _xlpm.bm_down) ->  | L124: 0.0256 | O124: 0.02638
G125: 104 | J125: =_xlfn.LET(_xlpm.m, G125, _xlpm.rfr, I125, _xlpm.sm_down, INDEX(R.IRR_SM_DOWN, _xlpm.m), _xlpm.bm_down, INDEX(R.IRR_BM_DOWN, _xlpm.m), _xlpm.rfr * (1 - _xlpm.sm_down) - _xlpm.bm_down) ->  | L125: 0.02566 | O125: 0.02643
G126: 105 | J126: =_xlfn.LET(_xlpm.m, G126, _xlpm.rfr, I126, _xlpm.sm_down, INDEX(R.IRR_SM_DOWN, _xlpm.m), _xlpm.bm_down, INDEX(R.IRR_BM_DOWN, _xlpm.m), _xlpm.rfr * (1 - _xlpm.sm_down) - _xlpm.bm_down) ->  | L126: 0.02572 | O126: 0.02648
G127: 106 | J127: =_xlfn.LET(_xlpm.m, G127, _xlpm.rfr, I127, _xlpm.sm_down, INDEX(R.IRR_SM_DOWN, _xlpm.m), _xlpm.bm_down, INDEX(R.IRR_BM_DOWN, _xlpm.m), _xlpm.rfr * (1 - _xlpm.sm_down) - _xlpm.bm_down) ->  | L127: 0.02577 | O127: 0.02653
G128: 107 | J128: =_xlfn.LET(_xlpm.m, G128, _xlpm.rfr, I128, _xlpm.sm_down, INDEX(R.IRR_SM_DOWN, _xlpm.m), _xlpm.bm_down, INDEX(R.IRR_BM_DOWN, _xlpm.m), _xlpm.rfr * (1 - _xlpm.sm_down) - _xlpm.bm_down) ->  | L128: 0.02582 | O128: 0.02657
G129: 108 | J129: =_xlfn.LET(_xlpm.m, G129, _xlpm.rfr, I129, _xlpm.sm_down, INDEX(R.IRR_SM_DOWN, _xlpm.m), _xlpm.bm_down, INDEX(R.IRR_BM_DOWN, _xlpm.m), _xlpm.rfr * (1 - _xlpm.sm_down) - _xlpm.bm_down) ->  | L129: 0.02588 | O129: 0.02662
G130: 109 | J130: =_xlfn.LET(_xlpm.m, G130, _xlpm.rfr, I130, _xlpm.sm_down, INDEX(R.IRR_SM_DOWN, _xlpm.m), _xlpm.bm_down, INDEX(R.IRR_BM_DOWN, _xlpm.m), _xlpm.rfr * (1 - _xlpm.sm_down) - _xlpm.bm_down) ->  | L130: 0.02593 | O130: 0.02666
G131: 110 | J131: =_xlfn.LET(_xlpm.m, G131, _xlpm.rfr, I131, _xlpm.sm_down, INDEX(R.IRR_SM_DOWN, _xlpm.m), _xlpm.bm_down, INDEX(R.IRR_BM_DOWN, _xlpm.m), _xlpm.rfr * (1 - _xlpm.sm_down) - _xlpm.bm_down) ->  | L131: 0.02598 | O131: 0.02671
G132: 111 | J132: =_xlfn.LET(_xlpm.m, G132, _xlpm.rfr, I132, _xlpm.sm_down, INDEX(R.IRR_SM_DOWN, _xlpm.m), _xlpm.bm_down, INDEX(R.IRR_BM_DOWN, _xlpm.m), _xlpm.rfr * (1 - _xlpm.sm_down) - _xlpm.bm_down) ->  | L132: 0.02603 | O132: 0.02675
G133: 112 | J133: =_xlfn.LET(_xlpm.m, G133, _xlpm.rfr, I133, _xlpm.sm_down, INDEX(R.IRR_SM_DOWN, _xlpm.m), _xlpm.bm_down, INDEX(R.IRR_BM_DOWN, _xlpm.m), _xlpm.rfr * (1 - _xlpm.sm_down) - _xlpm.bm_down) ->  | L133: 0.02608 | O133: 0.02679
G134: 113 | J134: =_xlfn.LET(_xlpm.m, G134, _xlpm.rfr, I134, _xlpm.sm_down, INDEX(R.IRR_SM_DOWN, _xlpm.m), _xlpm.bm_down, INDEX(R.IRR_BM_DOWN, _xlpm.m), _xlpm.rfr * (1 - _xlpm.sm_down) - _xlpm.bm_down) ->  | L134: 0.02612 | O134: 0.02683
G135: 114 | J135: =_xlfn.LET(_xlpm.m, G135, _xlpm.rfr, I135, _xlpm.sm_down, INDEX(R.IRR_SM_DOWN, _xlpm.m), _xlpm.bm_down, INDEX(R.IRR_BM_DOWN, _xlpm.m), _xlpm.rfr * (1 - _xlpm.sm_down) - _xlpm.bm_down) ->  | L135: 0.02617 | O135: 0.02687
G136: 115 | J136: =_xlfn.LET(_xlpm.m, G136, _xlpm.rfr, I136, _xlpm.sm_down, INDEX(R.IRR_SM_DOWN, _xlpm.m), _xlpm.bm_down, INDEX(R.IRR_BM_DOWN, _xlpm.m), _xlpm.rfr * (1 - _xlpm.sm_down) - _xlpm.bm_down) ->  | L136: 0.02622 | O136: 0.02691
G137: 116 | J137: =_xlfn.LET(_xlpm.m, G137, _xlpm.rfr, I137, _xlpm.sm_down, INDEX(R.IRR_SM_DOWN, _xlpm.m), _xlpm.bm_down, INDEX(R.IRR_BM_DOWN, _xlpm.m), _xlpm.rfr * (1 - _xlpm.sm_down) - _xlpm.bm_down) ->  | L137: 0.02626 | O137: 0.02695
G138: 117 | J138: =_xlfn.LET(_xlpm.m, G138, _xlpm.rfr, I138, _xlpm.sm_down, INDEX(R.IRR_SM_DOWN, _xlpm.m), _xlpm.bm_down, INDEX(R.IRR_BM_DOWN, _xlpm.m), _xlpm.rfr * (1 - _xlpm.sm_down) - _xlpm.bm_down) ->  | L138: 0.02631 | O138: 0.02699
G139: 118 | J139: =_xlfn.LET(_xlpm.m, G139, _xlpm.rfr, I139, _xlpm.sm_down, INDEX(R.IRR_SM_DOWN, _xlpm.m), _xlpm.bm_down, INDEX(R.IRR_BM_DOWN, _xlpm.m), _xlpm.rfr * (1 - _xlpm.sm_down) - _xlpm.bm_down) ->  | L139: 0.02635 | O139: 0.02703
G140: 119 | J140: =_xlfn.LET(_xlpm.m, G140, _xlpm.rfr, I140, _xlpm.sm_down, INDEX(R.IRR_SM_DOWN, _xlpm.m), _xlpm.bm_down, INDEX(R.IRR_BM_DOWN, _xlpm.m), _xlpm.rfr * (1 - _xlpm.sm_down) - _xlpm.bm_down) ->  | L140: 0.02639 | O140: 0.02707
G141: 120 | J141: =_xlfn.LET(_xlpm.m, G141, _xlpm.rfr, I141, _xlpm.sm_down, INDEX(R.IRR_SM_DOWN, _xlpm.m), _xlpm.bm_down, INDEX(R.IRR_BM_DOWN, _xlpm.m), _xlpm.rfr * (1 - _xlpm.sm_down) - _xlpm.bm_down) ->  | L141: 0.02644 | O141: 0.0271
G142: 121 | J142: =_xlfn.LET(_xlpm.m, G142, _xlpm.rfr, I142, _xlpm.sm_down, INDEX(R.IRR_SM_DOWN, _xlpm.m), _xlpm.bm_down, INDEX(R.IRR_BM_DOWN, _xlpm.m), _xlpm.rfr * (1 - _xlpm.sm_down) - _xlpm.bm_down) ->  | L142: 0.02648 | O142: 0.02714
G143: 122 | J143: =_xlfn.LET(_xlpm.m, G143, _xlpm.rfr, I143, _xlpm.sm_down, INDEX(R.IRR_SM_DOWN, _xlpm.m), _xlpm.bm_down, INDEX(R.IRR_BM_DOWN, _xlpm.m), _xlpm.rfr * (1 - _xlpm.sm_down) - _xlpm.bm_down) ->  | L143: 0.02652 | O143: 0.02718
G144: 123 | J144: =_xlfn.LET(_xlpm.m, G144, _xlpm.rfr, I144, _xlpm.sm_down, INDEX(R.IRR_SM_DOWN, _xlpm.m), _xlpm.bm_down, INDEX(R.IRR_BM_DOWN, _xlpm.m), _xlpm.rfr * (1 - _xlpm.sm_down) - _xlpm.bm_down) ->  | L144: 0.02656 | O144: 0.02721
G145: 124 | J145: =_xlfn.LET(_xlpm.m, G145, _xlpm.rfr, I145, _xlpm.sm_down, INDEX(R.IRR_SM_DOWN, _xlpm.m), _xlpm.bm_down, INDEX(R.IRR_BM_DOWN, _xlpm.m), _xlpm.rfr * (1 - _xlpm.sm_down) - _xlpm.bm_down) ->  | L145: 0.0266 | O145: 0.02725
G146: 125 | J146: =_xlfn.LET(_xlpm.m, G146, _xlpm.rfr, I146, _xlpm.sm_down, INDEX(R.IRR_SM_DOWN, _xlpm.m), _xlpm.bm_down, INDEX(R.IRR_BM_DOWN, _xlpm.m), _xlpm.rfr * (1 - _xlpm.sm_down) - _xlpm.bm_down) ->  | L146: 0.02664 | O146: 0.02728
G147: 126 | J147: =_xlfn.LET(_xlpm.m, G147, _xlpm.rfr, I147, _xlpm.sm_down, INDEX(R.IRR_SM_DOWN, _xlpm.m), _xlpm.bm_down, INDEX(R.IRR_BM_DOWN, _xlpm.m), _xlpm.rfr * (1 - _xlpm.sm_down) - _xlpm.bm_down) ->  | L147: 0.02668 | O147: 0.02731
G148: 127 | J148: =_xlfn.LET(_xlpm.m, G148, _xlpm.rfr, I148, _xlpm.sm_down, INDEX(R.IRR_SM_DOWN, _xlpm.m), _xlpm.bm_down, INDEX(R.IRR_BM_DOWN, _xlpm.m), _xlpm.rfr * (1 - _xlpm.sm_down) - _xlpm.bm_down) ->  | L148: 0.02671 | O148: 0.02735
G149: 128 | J149: =_xlfn.LET(_xlpm.m, G149, _xlpm.rfr, I149, _xlpm.sm_down, INDEX(R.IRR_SM_DOWN, _xlpm.m), _xlpm.bm_down, INDEX(R.IRR_BM_DOWN, _xlpm.m), _xlpm.rfr * (1 - _xlpm.sm_down) - _xlpm.bm_down) ->  | L149: 0.02675 | O149: 0.02738
G150: 129 | J150: =_xlfn.LET(_xlpm.m, G150, _xlpm.rfr, I150, _xlpm.sm_down, INDEX(R.IRR_SM_DOWN, _xlpm.m), _xlpm.bm_down, INDEX(R.IRR_BM_DOWN, _xlpm.m), _xlpm.rfr * (1 - _xlpm.sm_down) - _xlpm.bm_down) ->  | L150: 0.02679 | N150: =M150+LN(1+V.TOTAL_VA) ->  | O150: 0.02741
G151: 130 | J151: =_xlfn.LET(_xlpm.m, G151, _xlpm.rfr, I151, _xlpm.sm_down, INDEX(R.IRR_SM_DOWN, _xlpm.m), _xlpm.bm_down, INDEX(R.IRR_BM_DOWN, _xlpm.m), _xlpm.rfr * (1 - _xlpm.sm_down) - _xlpm.bm_down) ->  | K151: =LN(1+J151) ->  | L151: 0.02683 | M151: =G151*K151-G150*K150 ->  | O151: 0.02744
G152: 131 | J152: =_xlfn.LET(_xlpm.m, G152, _xlpm.rfr, I152, _xlpm.sm_down, INDEX(R.IRR_SM_DOWN, _xlpm.m), _xlpm.bm_down, INDEX(R.IRR_BM_DOWN, _xlpm.m), _xlpm.rfr * (1 - _xlpm.sm_down) - _xlpm.bm_down) ->  | L152: 0.02686 | O152: 0.02747
G153: 132 | J153: =_xlfn.LET(_xlpm.m, G153, _xlpm.rfr, I153, _xlpm.sm_down, INDEX(R.IRR_SM_DOWN, _xlpm.m), _xlpm.bm_down, INDEX(R.IRR_BM_DOWN, _xlpm.m), _xlpm.rfr * (1 - _xlpm.sm_down) - _xlpm.bm_down) ->  | L153: 0.0269 | O153: 0.0275
G154: 133 | J154: =_xlfn.LET(_xlpm.m, G154, _xlpm.rfr, I154, _xlpm.sm_down, INDEX(R.IRR_SM_DOWN, _xlpm.m), _xlpm.bm_down, INDEX(R.IRR_BM_DOWN, _xlpm.m), _xlpm.rfr * (1 - _xlpm.sm_down) - _xlpm.bm_down) ->  | L154: 0.02693 | O154: 0.02753
G155: 134 | J155: =_xlfn.LET(_xlpm.m, G155, _xlpm.rfr, I155, _xlpm.sm_down, INDEX(R.IRR_SM_DOWN, _xlpm.m), _xlpm.bm_down, INDEX(R.IRR_BM_DOWN, _xlpm.m), _xlpm.rfr * (1 - _xlpm.sm_down) - _xlpm.bm_down) ->  | L155: 0.02696 | O155: 0.02756
G156: 135 | J156: =_xlfn.LET(_xlpm.m, G156, _xlpm.rfr, I156, _xlpm.sm_down, INDEX(R.IRR_SM_DOWN, _xlpm.m), _xlpm.bm_down, INDEX(R.IRR_BM_DOWN, _xlpm.m), _xlpm.rfr * (1 - _xlpm.sm_down) - _xlpm.bm_down) ->  | L156: 0.027 | O156: 0.02759
G157: 136 | J157: =_xlfn.LET(_xlpm.m, G157, _xlpm.rfr, I157, _xlpm.sm_down, INDEX(R.IRR_SM_DOWN, _xlpm.m), _xlpm.bm_down, INDEX(R.IRR_BM_DOWN, _xlpm.m), _xlpm.rfr * (1 - _xlpm.sm_down) - _xlpm.bm_down) ->  | L157: 0.02703 | O157: 0.02762
G158: 137 | J158: =_xlfn.LET(_xlpm.m, G158, _xlpm.rfr, I158, _xlpm.sm_down, INDEX(R.IRR_SM_DOWN, _xlpm.m), _xlpm.bm_down, INDEX(R.IRR_BM_DOWN, _xlpm.m), _xlpm.rfr * (1 - _xlpm.sm_down) - _xlpm.bm_down) ->  | L158: 0.02706 | O158: 0.02765
G159: 138 | J159: =_xlfn.LET(_xlpm.m, G159, _xlpm.rfr, I159, _xlpm.sm_down, INDEX(R.IRR_SM_DOWN, _xlpm.m), _xlpm.bm_down, INDEX(R.IRR_BM_DOWN, _xlpm.m), _xlpm.rfr * (1 - _xlpm.sm_down) - _xlpm.bm_down) ->  | L159: 0.0271 | O159: 0.02768
G160: 139 | J160: =_xlfn.LET(_xlpm.m, G160, _xlpm.rfr, I160, _xlpm.sm_down, INDEX(R.IRR_SM_DOWN, _xlpm.m), _xlpm.bm_down, INDEX(R.IRR_BM_DOWN, _xlpm.m), _xlpm.rfr * (1 - _xlpm.sm_down) - _xlpm.bm_down) ->  | L160: 0.02713 | O160: 0.0277
G161: 140 | J161: =_xlfn.LET(_xlpm.m, G161, _xlpm.rfr, I161, _xlpm.sm_down, INDEX(R.IRR_SM_DOWN, _xlpm.m), _xlpm.bm_down, INDEX(R.IRR_BM_DOWN, _xlpm.m), _xlpm.rfr * (1 - _xlpm.sm_down) - _xlpm.bm_down) ->  | L161: 0.02716 | O161: 0.02773
G162: 141 | J162: =_xlfn.LET(_xlpm.m, G162, _xlpm.rfr, I162, _xlpm.sm_down, INDEX(R.IRR_SM_DOWN, _xlpm.m), _xlpm.bm_down, INDEX(R.IRR_BM_DOWN, _xlpm.m), _xlpm.rfr * (1 - _xlpm.sm_down) - _xlpm.bm_down) ->  | L162: 0.02719 | O162: 0.02776
G163: 142 | J163: =_xlfn.LET(_xlpm.m, G163, _xlpm.rfr, I163, _xlpm.sm_down, INDEX(R.IRR_SM_DOWN, _xlpm.m), _xlpm.bm_down, INDEX(R.IRR_BM_DOWN, _xlpm.m), _xlpm.rfr * (1 - _xlpm.sm_down) - _xlpm.bm_down) ->  | L163: 0.02722 | O163: 0.02778
G164: 143 | J164: =_xlfn.LET(_xlpm.m, G164, _xlpm.rfr, I164, _xlpm.sm_down, INDEX(R.IRR_SM_DOWN, _xlpm.m), _xlpm.bm_down, INDEX(R.IRR_BM_DOWN, _xlpm.m), _xlpm.rfr * (1 - _xlpm.sm_down) - _xlpm.bm_down) ->  | L164: 0.02725 | O164: 0.02781
G165: 144 | J165: =_xlfn.LET(_xlpm.m, G165, _xlpm.rfr, I165, _xlpm.sm_down, INDEX(R.IRR_SM_DOWN, _xlpm.m), _xlpm.bm_down, INDEX(R.IRR_BM_DOWN, _xlpm.m), _xlpm.rfr * (1 - _xlpm.sm_down) - _xlpm.bm_down) ->  | L165: 0.02728 | O165: 0.02784
G166: 145 | J166: =_xlfn.LET(_xlpm.m, G166, _xlpm.rfr, I166, _xlpm.sm_down, INDEX(R.IRR_SM_DOWN, _xlpm.m), _xlpm.bm_down, INDEX(R.IRR_BM_DOWN, _xlpm.m), _xlpm.rfr * (1 - _xlpm.sm_down) - _xlpm.bm_down) ->  | L166: 0.02731 | O166: 0.02786
G167: 146 | J167: =_xlfn.LET(_xlpm.m, G167, _xlpm.rfr, I167, _xlpm.sm_down, INDEX(R.IRR_SM_DOWN, _xlpm.m), _xlpm.bm_down, INDEX(R.IRR_BM_DOWN, _xlpm.m), _xlpm.rfr * (1 - _xlpm.sm_down) - _xlpm.bm_down) ->  | L167: 0.02734 | O167: 0.02789
G168: 147 | J168: =_xlfn.LET(_xlpm.m, G168, _xlpm.rfr, I168, _xlpm.sm_down, INDEX(R.IRR_SM_DOWN, _xlpm.m), _xlpm.bm_down, INDEX(R.IRR_BM_DOWN, _xlpm.m), _xlpm.rfr * (1 - _xlpm.sm_down) - _xlpm.bm_down) ->  | L168: 0.02736 | O168: 0.02791
G169: 148 | J169: =_xlfn.LET(_xlpm.m, G169, _xlpm.rfr, I169, _xlpm.sm_down, INDEX(R.IRR_SM_DOWN, _xlpm.m), _xlpm.bm_down, INDEX(R.IRR_BM_DOWN, _xlpm.m), _xlpm.rfr * (1 - _xlpm.sm_down) - _xlpm.bm_down) ->  | L169: 0.02739 | O169: 0.02793
G170: 149 | J170: =_xlfn.LET(_xlpm.m, G170, _xlpm.rfr, I170, _xlpm.sm_down, INDEX(R.IRR_SM_DOWN, _xlpm.m), _xlpm.bm_down, INDEX(R.IRR_BM_DOWN, _xlpm.m), _xlpm.rfr * (1 - _xlpm.sm_down) - _xlpm.bm_down) ->  | L170: 0.02742 | O170: 0.02796
G171: 150 | J171: =_xlfn.LET(_xlpm.m, G171, _xlpm.rfr, I171, _xlpm.sm_down, INDEX(R.IRR_SM_DOWN, _xlpm.m), _xlpm.bm_down, INDEX(R.IRR_BM_DOWN, _xlpm.m), _xlpm.rfr * (1 - _xlpm.sm_down) - _xlpm.bm_down) ->  | L171: 0.02745 | O171: 0.02798

Sheet Disclaimer
M3: =V.COPYRIGHT -> ©EIOPA, 2026.
F6: Disclaimer
F8: The content of this workbook is made available by EIOPA for public information purposes only. It is not intended to be used for any other purpose. EIOPA shall not be liable for any error or inaccuracy in the content of this workbook, for any action taken in reliance thereon. EIOPA expressly disclaims all warranties, expressed or implied, as to the accuracy of any of the content provided or as to the merchantability or fitness of the content provided. © EIOPA - European Insurance and Occupational Pensions Authority, 2026. Reproduction is authorised provided that you acknowledge EIOPA as the source: "Source: EIOPA - European Insurance and Occupational Pensions Authority".

Sheet Parameters (hidden)
M3: ©EIOPA, 2026.
F6: Parameters
G8: Instrument | H8: Boolean
G9: SWP | H9: TRUE
G10: GVT | H10: FALSE
G15: Interest Rate Risk
G16: Maturity m [years] | H16: smup | I16: bmup | J16: smdown | K16: bmdown | L16: rmfloor
G17: 1 | H17: 0.61 | I17: 0.0214 | J17: 0.58 | K17: 0.0116 | L17: -0.0125
G18: 2 | H18: 0.53 | I18: 0.0186 | J18: 0.51 | K18: 0.0099 | L18: -0.0125
G19: 3 | H19: 0.49 | I19: 0.0172 | J19: 0.44 | K19: 0.0083 | L19: -0.0125
G20: 4 | H20: 0.46 | I20: 0.0161 | J20: 0.4 | K20: 0.0074 | L20: -0.0125
G21: 5 | H21: 0.45 | I21: 0.0158 | J21: 0.4 | K21: 0.0071 | L21: -0.0125
G22: 6 | H22: 0.41 | I22: 0.0144 | J22: 0.38 | K22: 0.0067 | L22: -0.0125
G23: 7 | H23: 0.37 | I23: 0.013 | J23: 0.37 | K23: 0.0063 | L23: -0.0125
G24: 8 | H24: 0.34 | I24: 0.0119 | J24: 0.38 | K24: 0.0062 | L24: =$L$23+($L$36-$L$23)/($G$36-$G$23)*($G24-$G$23) -> -0.01222538462
G25: 9 | H25: 0.32 | I25: 0.0112 | J25: 0.39 | K25: 0.0061 | L25: =$L$23+($L$36-$L$23)/($G$36-$G$23)*($G25-$G$23) -> -0.01195076923
G26: 10 | H26: 0.3 | I26: 0.0105 | J26: 0.4 | K26: 0.0061 | L26: -0.01167615385
G27: 11 | H27: 0.3 | I27: 0.0105 | J27: 0.41 | K27: 0.006 | L27: -0.01140153846
G28: 12 | H28: 0.3 | I28: 0.0105 | J28: 0.42 | K28: 0.006 | L28: -0.01112692308
G29: 13 | H29: 0.3 | I29: 0.0105 | J29: 0.43 | K29: 0.0059 | L29: -0.01085230769
G30: 14 | H30: 0.29 | I30: 0.0102 | J30: 0.44 | K30: 0.0058 | L30: -0.01057769231
G31: 15 | H31: 0.28 | I31: 0.0098 | J31: 0.45 | K31: 0.0057 | L31: -0.01030307692
G32: 16 | H32: 0.28 | I32: 0.0098 | J32: 0.47 | K32: 0.0056 | L32: -0.01002846154
G33: 17 | H33: 0.27 | I33: 0.0095 | J33: 0.48 | K33: 0.0055 | L33: -0.009753846154
G34: 18 | H34: 0.26 | I34: 0.0091 | J34: 0.49 | K34: 0.0054 | L34: -0.009479230769
G35: 19 | H35: 0.26 | I35: 0.0091 | J35: 0.49 | K35: 0.0052 | L35: -0.009204615385
G36: 20 | H36: 0.25 | I36: 0.0088 | J36: 0.5 | K36: 0.005 | L36: -0.00893
G37: 21 | H37: 0.25 | I37: 0.0087 | J37: 0.49 | K37: 0.0049 | L37: -0.00893
G38: 22 | H38: 0.24 | I38: 0.0085 | J38: 0.5 | K38: 0.0049 | L38: -0.00893
G39: 23 | H39: 0.24 | I39: 0.0082 | J39: 0.51 | K39: 0.0048 | L39: -0.00893
G40: 24 | H40: 0.23 | I40: 0.008 | J40: 0.51 | K40: 0.0048 | L40: -0.00893
G41: 25 | H41: 0.22 | I41: 0.0078 | J41: 0.52 | K41: 0.0047 | L41: -0.00893
G42: 26 | H42: 0.22 | I42: 0.0076 | J42: 0.52 | K42: 0.0046 | L42: -0.00893
G43: 27 | H43: 0.21 | I43: 0.0074 | J43: 0.53 | K43: 0.0045 | L43: -0.00893
G44: 28 | H44: 0.21 | I44: 0.0072 | J44: 0.53 | K44: 0.0044 | L44: -0.00893
G45: 29 | H45: 0.2 | I45: 0.007 | J45: 0.53 | K45: 0.0042 | L45: -0.00893
G46: 30 | H46: 0.2 | I46: 0.0069 | J46: 0.53 | K46: 0.0041 | L46: -0.00893
G47: 31 | H47: 0.2 | I47: 0.007 | J47: 0.53 | K47: 0.004 | L47: -0.00893
G48: 32 | H48: 0.2 | I48: 0.0071 | J48: 0.53 | K48: 0.0039 | L48: -0.00893
G49: 33 | H49: 0.2 | I49: 0.0071 | J49: 0.54 | K49: 0.0037 | L49: -0.00893
G50: 34 | H50: 0.2 | I50: 0.0071 | J50: 0.54 | K50: 0.0036 | L50: -0.00893
G51: 35 | H51: 0.2 | I51: 0.0071 | J51: 0.54 | K51: 0.0035 | L51: -0.00893
G52: 36 | H52: 0.2 | I52: 0.0072 | J52: 0.54 | K52: 0.0034 | L52: -0.00893
G53: 37 | H53: 0.21 | I53: 0.0072 | J53: 0.55 | K53: 0.0033 | L53: -0.00893
G54: 38 | H54: 0.21 | I54: 0.0072 | J54: 0.55 | K54: 0.0032 | L54: -0.00893
G55: 39 | H55: 0.21 | I55: 0.0073 | J55: 0.56 | K55: 0.0031 | L55: -0.00893
G56: 40 | H56: 0.21 | I56: 0.0073 | J56: 0.57 | K56: 0.003 | L56: -0.00893
G57: 41 | H57: 0.21 | I57: 0.0074 | J57: 0.57 | K57: 0.0029 | L57: -0.00893
G58: 42 | H58: 0.21 | I58: 0.0074 | J58: 0.58 | K58: 0.0028 | L58: -0.00893
G59: 43 | H59: 0.21 | I59: 0.0075 | J59: 0.59 | K59: 0.0027 | L59: -0.00893
G60: 44 | H60: 0.21 | I60: 0.0075 | J60: 0.61 | K60: 0.0026 | L60: -0.00893
G61: 45 | H61: 0.21 | I61: 0.0075 | J61: 0.62 | K61: 0.0025 | L61: -0.00893
G62: 46 | H62: 0.21 | I62: 0.0075 | J62: 0.62 | K62: 0.0023 | L62: -0.00893
G63: 47 | H63: 0.21 | I63: 0.0075 | J63: 0.63 | K63: 0.0022 | L63: -0.00893
G64: 48 | H64: 0.21 | I64: 0.0074 | J64: 0.64 | K64: 0.0021 | L64: -0.00893
G65: 49 | H65: 0.21 | I65: 0.0074 | J65: 0.64 | K65: 0.0019 | L65: -0.00893
G66: 50 | H66: 0.21 | I66: 0.0073 | J66: 0.65 | K66: 0.0018 | L66: -0.00893
G67: 51 | H67: =H$66+(H$106-H$66)/($G$106-$G$66) * ($G67-$G$66) -> 0.20975 | I67: =I$66+(I$76-I$66)/($G$76-$G$66) * ($G67-$G$66) -> 0.00657 | J67: =J$66+(J$106-J$66)/($G$106-$G$66) * ($G67-$G$66) -> 0.63875 | K67: =K$66+(K$76-K$66)/($G$76-$G$66) * ($G67-$G$66) -> 0.00162 | L67: -0.00893
G68: 52 | H68: =H$66+(H$106-H$66)/($G$106-$G$66) * ($G68-$G$66) -> 0.2095 | I68: =I$66+(I$76-I$66)/($G$76-$G$66) * ($G68-$G$66) -> 0.00584 | J68: =J$66+(J$106-J$66)/($G$106-$G$66) * ($G68-$G$66) -> 0.6275 | K68: =K$66+(K$76-K$66)/($G$76-$G$66) * ($G68-$G$66) -> 0.00144 | L68: -0.00893
G69: 53 | H69: 0.20925 | I69: 0.00511 | J69: 0.61625 | K69: 0.00126 | L69: -0.00893
G70: 54 | H70: 0.209 | I70: 0.00438 | J70: 0.605 | K70: 0.00108 | L70: -0.00893
G71: 55 | H71: 0.20875 | I71: 0.00365 | J71: 0.59375 | K71: 0.0009 | L71: -0.00893
G72: 56 | H72: 0.2085 | I72: 0.00292 | J72: 0.5825 | K72: 0.00072 | L72: -0.00893
G73: 57 | H73: 0.20825 | I73: 0.00219 | J73: 0.57125 | K73: 0.00054 | L73: -0.00893
G74: 58 | H74: 0.208 | I74: 0.00146 | J74: 0.56 | K74: 0.00036 | L74: -0.00893
G75: 59 | H75: 0.20775 | I75: 0.00073 | J75: 0.54875 | K75: 0.00018 | L75: -0.00893
G76: 60 | H76: 0.2075 | I76: 0 | J76: 0.5375 | K76: 0 | L76: -0.00893
G77: 61 | H77: 0.20725 | I77: 0 | J77: 0.52625 | K77: 0 | L77: -0.00893
G78: 62 | H78: 0.207 | I78: 0 | J78: 0.515 | K78: 0 | L78: -0.00893
G79: 63 | H79: 0.20675 | I79: 0 | J79: 0.50375 | K79: 0 | L79: -0.00893
G80: 64 | H80: 0.2065 | I80: 0 | J80: 0.4925 | K80: 0 | L80: -0.00893
G81: 65 | H81: 0.20625 | I81: 0 | J81: 0.48125 | K81: 0 | L81: -0.00893
G82: 66 | H82: 0.206 | I82: 0 | J82: 0.47 | K82: 0 | L82: -0.00893
G83: 67 | H83: 0.20575 | I83: 0 | J83: 0.45875 | K83: 0 | L83: -0.00893
G84: 68 | H84: 0.2055 | I84: 0 | J84: 0.4475 | K84: 0 | L84: -0.00893
G85: 69 | H85: 0.20525 | I85: 0 | J85: 0.43625 | K85: 0 | L85: -0.00893
G86: 70 | H86: 0.205 | I86: 0 | J86: 0.425 | K86: 0 | L86: -0.00893
G87: 71 | H87: 0.20475 | I87: 0 | J87: 0.41375 | K87: 0 | L87: -0.00893
G88: 72 | H88: 0.2045 | I88: 0 | J88: 0.4025 | K88: 0 | L88: -0.00893
G89: 73 | H89: 0.20425 | I89: 0 | J89: 0.39125 | K89: 0 | L89: -0.00893
G90: 74 | H90: 0.204 | I90: 0 | J90: 0.38 | K90: 0 | L90: -0.00893
G91: 75 | H91: 0.20375 | I91: 0 | J91: 0.36875 | K91: 0 | L91: -0.00893
G92: 76 | H92: 0.2035 | I92: 0 | J92: 0.3575 | K92: 0 | L92: -0.00893
G93: 77 | H93: 0.20325 | I93: 0 | J93: 0.34625 | K93: 0 | L93: -0.00893
G94: 78 | H94: 0.203 | I94: 0 | J94: 0.335 | K94: 0 | L94: -0.00893
G95: 79 | H95: 0.20275 | I95: 0 | J95: 0.32375 | K95: 0 | L95: -0.00893
G96: 80 | H96: 0.2025 | I96: 0 | J96: 0.3125 | K96: 0 | L96: -0.00893
G97: 81 | H97: 0.20225 | I97: 0 | J97: 0.30125 | K97: 0 | L97: -0.00893
G98: 82 | H98: 0.202 | I98: 0 | J98: 0.29 | K98: 0 | L98: -0.00893
G99: 83 | H99: 0.20175 | I99: 0 | J99: 0.27875 | K99: 0 | L99: -0.00893
G100: 84 | H100: 0.2015 | I100: 0 | J100: 0.2675 | K100: 0 | L100: -0.00893
G101: 85 | H101: 0.20125 | I101: 0 | J101: 0.25625 | K101: 0 | L101: -0.00893
G102: 86 | H102: 0.201 | I102: 0 | J102: 0.245 | K102: 0 | L102: -0.00893
G103: 87 | H103: 0.20075 | I103: 0 | J103: 0.23375 | K103: 0 | L103: -0.00893
G104: 88 | H104: 0.2005 | I104: 0 | J104: 0.2225 | K104: 0 | L104: -0.00893
G105: 89 | H105: 0.20025 | I105: 0 | J105: 0.21125 | K105: 0 | L105: -0.00893
G106: 90 | H106: 0.2 | I106: 0 | J106: 0.2 | K106: 0 | L106: -0.00893
G107: 91 | H107: 0.2 | I107: 0 | J107: 0.2 | K107: 0 | L107: -0.00893
G108: 92 | H108: 0.2 | I108: 0 | J108: 0.2 | K108: 0 | L108: -0.00893
G109: 93 | H109: 0.2 | I109: 0 | J109: 0.2 | K109: 0 | L109: -0.00893
G110: 94 | H110: 0.2 | I110: 0 | J110: 0.2 | K110: 0 | L110: -0.00893
G111: 95 | H111: 0.2 | I111: 0 | J111: 0.2 | K111: 0 | L111: -0.00893
G112: 96 | H112: 0.2 | I112: 0 | J112: 0.2 | K112: 0 | L112: -0.00893
G113: 97 | H113: 0.2 | I113: 0 | J113: 0.2 | K113: 0 | L113: -0.00893
G114: 98 | H114: 0.2 | I114: 0 | J114: 0.2 | K114: 0 | L114: -0.00893
G115: 99 | H115: 0.2 | I115: 0 | J115: 0.2 | K115: 0 | L115: -0.00893
G116: 100 | H116: 0.2 | I116: 0 | J116: 0.2 | K116: 0 | L116: -0.00893
G117: 101 | H117: 0.2 | I117: 0 | J117: 0.2 | K117: 0 | L117: -0.00893
G118: 102 | H118: 0.2 | I118: 0 | J118: 0.2 | K118: 0 | L118: -0.00893
G119: 103 | H119: 0.2 | I119: 0 | J119: 0.2 | K119: 0 | L119: -0.00893
G120: 104 | H120: 0.2 | I120: 0 | J120: 0.2 | K120: 0 | L120: -0.00893
G121: 105 | H121: 0.2 | I121: 0 | J121: 0.2 | K121: 0 | L121: -0.00893
G122: 106 | H122: 0.2 | I122: 0 | J122: 0.2 | K122: 0 | L122: -0.00893
G123: 107 | H123: 0.2 | I123: 0 | J123: 0.2 | K123: 0 | L123: -0.00893
G124: 108 | H124: 0.2 | I124: 0 | J124: 0.2 | K124: 0 | L124: -0.00893
G125: 109 | H125: 0.2 | I125: 0 | J125: 0.2 | K125: 0 | L125: -0.00893
G126: 110 | H126: 0.2 | I126: 0 | J126: 0.2 | K126: 0 | L126: -0.00893
G127: 111 | H127: 0.2 | I127: 0 | J127: 0.2 | K127: 0 | L127: -0.00893
G128: 112 | H128: 0.2 | I128: 0 | J128: 0.2 | K128: 0 | L128: -0.00893
G129: 113 | H129: 0.2 | I129: 0 | J129: 0.2 | K129: 0 | L129: -0.00893
G130: 114 | H130: 0.2 | I130: 0 | J130: 0.2 | K130: 0 | L130: -0.00893
G131: 115 | H131: 0.2 | I131: 0 | J131: 0.2 | K131: 0 | L131: -0.00893
G132: 116 | H132: 0.2 | I132: 0 | J132: 0.2 | K132: 0 | L132: -0.00893
G133: 117 | H133: 0.2 | I133: 0 | J133: 0.2 | K133: 0 | L133: -0.00893
G134: 118 | H134: 0.2 | I134: 0 | J134: 0.2 | K134: 0 | L134: -0.00893
G135: 119 | H135: 0.2 | I135: 0 | J135: 0.2 | K135: 0 | L135: -0.00893
G136: 120 | H136: 0.2 | I136: 0 | J136: 0.2 | K136: 0 | L136: -0.00893
G137: 121 | H137: 0.2 | I137: 0 | J137: 0.2 | K137: 0 | L137: -0.00893
G138: 122 | H138: 0.2 | I138: 0 | J138: 0.2 | K138: 0 | L138: -0.00893
G139: 123 | H139: 0.2 | I139: 0 | J139: 0.2 | K139: 0 | L139: -0.00893
G140: 124 | H140: 0.2 | I140: 0 | J140: 0.2 | K140: 0 | L140: -0.00893
G141: 125 | H141: 0.2 | I141: 0 | J141: 0.2 | K141: 0 | L141: -0.00893
G142: 126 | H142: 0.2 | I142: 0 | J142: 0.2 | K142: 0 | L142: -0.00893
G143: 127 | H143: 0.2 | I143: 0 | J143: 0.2 | K143: 0 | L143: -0.00893
G144: 128 | H144: 0.2 | I144: 0 | J144: 0.2 | K144: 0 | L144: -0.00893
G145: 129 | H145: 0.2 | I145: 0 | J145: 0.2 | K145: 0 | L145: -0.00893
G146: 130 | H146: 0.2 | I146: 0 | J146: 0.2 | K146: 0 | L146: -0.00893
G147: 131 | H147: 0.2 | I147: 0 | J147: 0.2 | K147: 0 | L147: -0.00893
G148: 132 | H148: 0.2 | I148: 0 | J148: 0.2 | K148: 0 | L148: -0.00893
G149: 133 | H149: 0.2 | I149: 0 | J149: 0.2 | K149: 0 | L149: -0.00893
G150: 134 | H150: 0.2 | I150: 0 | J150: 0.2 | K150: 0 | L150: -0.00893
G151: 135 | H151: 0.2 | I151: 0 | J151: 0.2 | K151: 0 | L151: -0.00893
G152: 136 | H152: 0.2 | I152: 0 | J152: 0.2 | K152: 0 | L152: -0.00893
G153: 137 | H153: 0.2 | I153: 0 | J153: 0.2 | K153: 0 | L153: -0.00893
G154: 138 | H154: 0.2 | I154: 0 | J154: 0.2 | K154: 0 | L154: -0.00893
G155: 139 | H155: 0.2 | I155: 0 | J155: 0.2 | K155: 0 | L155: -0.00893
G156: 140 | H156: 0.2 | I156: 0 | J156: 0.2 | K156: 0 | L156: -0.00893
G157: 141 | H157: 0.2 | I157: 0 | J157: 0.2 | K157: 0 | L157: -0.00893
G158: 142 | H158: 0.2 | I158: 0 | J158: 0.2 | K158: 0 | L158: -0.00893
G159: 143 | H159: 0.2 | I159: 0 | J159: 0.2 | K159: 0 | L159: -0.00893
G160: 144 | H160: 0.2 | I160: 0 | J160: 0.2 | K160: 0 | L160: -0.00893
G161: 145 | H161: 0.2 | I161: 0 | J161: 0.2 | K161: 0 | L161: -0.00893
G162: 146 | H162: 0.2 | I162: 0 | J162: 0.2 | K162: 0 | L162: -0.00893
G163: 147 | H163: 0.2 | I163: 0 | J163: 0.2 | K163: 0 | L163: -0.00893
G164: 148 | H164: 0.2 | I164: 0 | J164: 0.2 | K164: 0 | L164: -0.00893
G165: 149 | H165: 0.2 | I165: 0 | J165: 0.2 | K165: 0 | L165: -0.00893
G166: 150 | H166: 0.2 | I166: 0 | J166: 0.2 | K166: 0 | L166: -0.00893
